Workbook

Sheet Utilitaire (hidden)
B3: Mot de passe: | C3: !1320PACC | D3: Fiche verrouillée: | E3: Oui - diffusion en ligne
B4: Fiche validée: | C4: Oui | D4: Fiche générée
B5: GES attendu: | D5: Est-ce que le pop-up "validation" s'affiche: | E5: Générée
B6: Feuille accueil complètement remplie: | C6: Oui | D6: Exercice de suivi: | E6: 2022-03-31 | F6: Date de l'exercice: | G6: 2022-03-31
B7: Statut action: | C7: =Accueil!D58 -> en cours | F7: Année Courante | G7: 2022-2023
B8: Feuille Utilitaire visible: | C8: Non | D8: Titre des Onglets: | E8: Plan d'action 2013-2020 sur les changements climatiques
B9: Dernière ligne de la zone de défilement de l'onglet détail des projets: | C9: 393
B10: nombre d'indicateurs approuvés: | C10: 5
B11: Secteur: | C11: Plan d'action 2013-2020 sur les changements climatiques
B12: Numéro de séquence de l'action: | C12: 13.04 | D12: Remplir la section Évaluation requis : | E12: =IF(Utilitaire!C7=I21,"Oui",IF(C7=I23,"Oui","Non")) -> Non | F12: Première ligne masquée dans l'onglet Indicateurs : | G12: 164
B13: Première ligne masquée dans l'onglet Description: | C13: 76 | D13: Affiche onglet Évaluation: | E13: Oui | F13: Première ligne masquée dans l'onglet Évaluation: | G13: 51
B15: Listes Déroulantes
B16: Onglet "Détail des projets" | G16: Onglet "Indicateurs" | H16: DRFM COF | I16: Accueil
B17: Région Administrative | C17: Statut | D17: Classification | E17: Type d'émissions | F17: Info GES | G17: Type d'indicateur | H17: Exercice de suivi | I17: Statut de l'action | J17: Programmes | K17: Fiche verrouillée
B18: 99-toutes les régions | C18: COVID-19 - Reporté ou prolongé | D18: SU-Subvention | E18: QC-Québec | F18: Oui | G18: Minimum à atteindre | H18: 2013-2014-1 | I18: non démarrée | J18: Sans objet | K18: Oui - partenaire
B19: 01-Bas-Saint-Laurent | C19: COVID-19 - Suspendu | D19: CF-Contrat fonctionnement | E19: HQ-Hors-Québec | F19: Non | G19: Maximum à ne pas dépasser | H19: 2013-2014-2 | I19: en élaboration | J19: Programme "Faites de l'air!" | K19: Oui - diffusion en ligne
B20: 02-Saguenay- Lac-Saint-Jean | C20: COVID-19 - Annulé | D20: CI-Contrat immobilisation | E20: ND-Non distingué | G20: Binaire | H20: 2014-2015-1 | I20: en cours | J20: Programme Action-Climat Québec | K20: Non - BGFV
B21: 03-Capitale-Nationale | C21: AC-Actif | D21: CP-Contrat service professionnel | H21: 2014-2015-2 | I21: terminée | J21: Programme Chauffez vert
B22: 04-Mauricie | C22: TE-Terminé | D22: CT-Contrat service technique | H22: 2015-2016-1 | I22: en suspens | J22: Programme Climat municipalités - Phase 2
B23: 05-Estrie | C23: AT-En attente | D23: PI-Projet à l'interne | H23: 2015-2016-2 | I23: Retirée du PACC | J23: Programme d’aide gouvernementale à l’amélioration des services de transport en commun (PAGASTC )
B24: 06-Montréal | C24: SU-Suspendu | D24: AU-Autre | G24: Étape | H24: 2016-2017-1 | J24: Programme d’aide gouvernementale au transport collectif des personnes (PAGTCP)
B25: 07-Outaouais | C25: AN-Annulé | G25: Recherche | H25: 2016-2017-2 | J25: Programme d’aide gouvernementale transitoire en matière de transport routier des personnes | K25: Commentaires
B26: 08-Abitibi-Témiscamingue | C26: AB-Abandonné | G26: Étude de cas et caractérisation des impacts des CC | H26: 2017-2018-1 | J26: Programme d'aide à la réduction des émissions de gaz à effet de serre dans le transport routier des marchandises - ÉcoCamionnage | K26: Accueil
B27: 09-Côte-Nord | C27: Projet en lien avec le transport | D27: Horizon temporel Potentiel GES | F27: Catégories | G27: Surveillance et prévention | H27: 2017-2018-2 | J27: Programme d'aide à la réhabilitation des terrains contaminés - ClimatSol-Plus - Volet 1 | K27: Description
B28: 10-Nord-du-Québec | C28: Oui | D28: À la fin du projet (suite au dernier versement) | F28: Agricole | G28: Réalisation | H28: 2018-2019-1 | J28: Programme d'aide à l'amélioration de l'efficacité du transport maritime, aérien et ferroviaire en matière de réduction des émissions de GES (PETMAF) | K28: Détail des projets
B29: 11-Gaspésie-Iles-de-la-Madeleine | C29: Non | D29: Cinq ans après la commercialisation du produit | F29: Aménagement du territoire | G29: Aide à la décision | H29: 2018-2019-2 | I29: Part de financement par le PACC | J29: Programme d'aide au développement du transport collectif (PADTC) | K29: GES
B30: 12-Chaudières-Appalaches | D30: Dix ans après la commercialisation du produit | F30: Bâtiment | G30: Sensibilisation et formation | H30: 2019-2020-1 | I30: Variable | J30: Programme d'aide aux nouvelles mobilités des personnes (NOMO) | K30: Indicateurs
B31: 13-Laval | D31: 2030 | F31: Biodiversité, écosystèmes et ressources naturelles | G31: Cadre législatif | H31: 2019-2020-2 | I31: =10 & " %" -> 10 % | J31: Programme d'aide financière au développement des transports actifs dans les périmètres urbains (TAPU) | K31: Validation
B32: 14-Lanaudière | D32: 2040 | F32: Industriel, commercial et institutionnel | H32: 2020-2021-1 | I32: =20 & " %" -> 20 % | J32: Programme d'aide financière pour la planification de milieux de vie durables | K32: Tout - autres
B33: 15-Laurentides | D33: 2050 | F33: Matières résiduelles | H33: 2020-2021-2 | I33: =30 & " %" -> 30 % | J33: Programme d'aide financière pour le compostage domestique et communautaire (ACDC)
B34: 16-Montérégie | F34: Reddition de comptes et partenariats | H34: 2021-2022-1 | I34: =40 & " %" -> 40 % | J34: Programme d'aide gouvernementale au transport collectif régional (PAGTCR)
B35: 17-Centre-du-Québec | F35: Santé et sécurité publique | G35: Ajustements | H35: 2021-2022-2 | I35: =50 & " %" -> 50 % | J35: Programme d'appui à la lutte contre les changements climatiques en agriculture (PALCCA) | K35: Onglet Évaluation
B36: Québec méridional | F36: Transports | G36: Agriculture | H36: 2022-2023-1 | I36: =60 & " %" -> 60 % | J36: Programme de biomasse forestière résiduelle | K36: Type de document
B37: À l'extérieur du Québec | F37: Autres | G37: Aménagement du territoire | H37: 2022-2023-2 | I37: =70 & " %" -> 70 % | J37: Programme de coopération climatique internationale (PCCI) | K37: Cadre d'évaluation
G38: Bâtiments et infrastructures | H38: 2023-2024-1 | I38: =80 & " %" -> 80 % | J38: Programme de formation continue sur l'utilisation du bois dans la construction | K38: Cadre de suivi d'évaluation préliminaire
G39: Forêts | H39: 2023-2024-2 | I39: =90 & " %" -> 90 % | J39: Programme de récupération et de valorisation des réfrigérateurs et congélateurs domestiques | K39: Rapport d'évaluation
B40: Onglet "Description" | G40: Industriel, commercial et institutionnel | I40: =100 & " %" -> 100 % | J40: Programme de soutien à la promotion de l'électrification des transports | K40: Résultats
B41: Clientèle | C41: État d'avancement | D41: Moyens | E41: Finalité | F41: COVID | G41: Océan, fleuve ou cours d'eau | J41: Programme de soutien à la réalisation de projets de démonstration de taxis électriques
B42: Citoyens | C42: Nouvelle | D42: Encadrement légal (politiques, stratégies, codes, réglementations, etc.) | E42: Adaptation aux effets des changements climatiques | F42: Aucun changement prévu | G42: Politiques et gestion | J42: Programme de soutien à l'intégration de l'adaptation aux changements climatiques à la planification municipale (PIACC) | K42: Type d'évaluation
B43: Entreprises (grandes entreprises) | C43: En cours | D43: Innovation, recherche et développement | E43: Réduction des émissions de gaz à effet de serre | F43: Diminution des coûts prévus | G43: Services à la population | J43: Programme de soutien au déploiement des autobus scolaires électriques au Québec | K43: En cours d'action
B44: Entreprises (petites ou moyennes entreprises) | C44: Complétée | D44: Réalisation (programmes et subventions favorisant l'exécution de solutions établies) | E44: Réduction et adaptation | F44: Augmentation des coûts prévus | G44: Suivi de l'état de l'environnement | J44: Programme de soutien aux essais de fertilisation | K44: Lorsque l'action est terminée
B45: Établissements de recherche | C45: Inactive | D45: Sensibilisation, formation et promotion | E45: Coordination | F45: L'augmentation prévue du coûts des projets rend le budget 2013-2020 insuffisant pour garantir la réalisation de tous les projets entamés | G45: Autres | J45: Programme de soutien aux municipalités dans la mise en place d'infrastructures de gestion durable des eaux de pluie à la source
B46: Ministères et organismes gouvernementaux | C46: Abandonnée | F46: moins d'un mois | J46: Programme de subventions à l’adaptation des taxis et des autocars interurbains pour le transport des personnes se déplaçant en fauteuil roulant
B47: Municipalités et organismes municipaux | F47: de 1 à 6 mois | J47: Programme de traitement des matières organiques par biométhanisation et compostage (PTMOBC) | K47: Recommandation
B48: Organismes à but non lucratif | F48: de 7 à 12 mois | J48: Programme de vitrine technologique pour les bâtiments et les solutions innovantes en bois | K48: Reconduire
F49: plus de 12 mois | J49: Programme d'innovation en construction bois | K49: Ne pas reconduire
F50: Aucun changement | G50: Risques | J50: Programme ÉcoPerformance | K50: Voir commentaire ci-dessous
F51: Retards prévus, mais les engagements seront tous pris avant le 31 décembre 2020 | G51: Biodiversité | J51: Programme Prime-Vert 2013-2018 | K51: Objectifs initiaux
F52: Retards prévus et les engagements ne pourront pas tous être pris avant le 31 décembre 2020 | G52: Économie | J52: Programme Roulez vert | K52: Oui
F53: Les échéanciers pourront être devancés | G53: Environnement | J53: Programme Technoclimat | K53: Partiellement
F54: Des cibles pourraient être atteintes avant les délais prévus | G54: Ressources naturelles | J54: Programme visant à rendre les établissements d'enseignement écoresponsables | K54: Non
F55: Toutes les cibles devraient être atteintes dans les délais prévus | G55: Santé et sécurité publique | J55: Programme visant la réduction des émissions de GES par le développement du transport intermodal (PREGTI)
F56: Toutes les cibles devraient être atteintes avec certains retards | G56: Services à la population | J56: Programme visant la réduction, la récupération et le recyclage des matières organiques du secteur des industries, commerces et institutions (ICI)
F58: Aucune cible ne pourra être atteinte | J58: Autre programme
G61: Effets des changements climatiques
G62: Dégradation d'écosystèmes
G63: Dégradation du pergélisol
G64: Intensification de l'érosion
G65: Exacerbation des aléas naturels
G66: Intensification des îlots de chaleur
G67: Modifications des régimes hydriques, de vagues ou de glaces
G68: Modifications des régimes de précipitations
G69: Propagation de maladies ou d'espèces nuisibles
G70: Qualité de l'air
G71: Tous les effets
G72: Autres
K82: Onglet de la fiche
K83: Accueil
K84: Administration
K85: Description
K86: Détail des projets
K87: GES
K88: Adaptation
K89: Indicateurs
K90: Commentaires
B227: ONGLET INDICATEURS: Liste des statuts de l'action
C228: 2013-2014 | D228: 2014-2015 | E228: 2015-2016 | F228: 2016-2017 | G228: 2017-2018 | H228: 2018-2019 | I228: 2019-2020 | J228: 2020-2021 | K228: 2021-2022 | L228: 2022-2023 | M228: 2023-2024 | N228: 2024-2025 | O228: 2025-2026 | P228: 2026-2027 | Q228: 2027-2028 | R228: 2026-2029
B229: Valeurs actuelles | C229: =IF(C228=$G$7,IF(Accueil!$D$58<>$C$239,Accueil!$D$58,IF(ISBLANK(C230),B230,C230)),C230) -> non démarrée | D229: =IF(D228=$G$7,IF(Accueil!$D$58<>$C$239,Accueil!$D$58,IF(ISBLANK(D230),C230,D230)),D230) -> non démarrée | E229: =IF(E228=$G$7,IF(Accueil!$D$58<>$C$239,Accueil!$D$58,IF(ISBLANK(E230),D230,E230)),E230) -> non démarrée | F229: =IF(F228=$G$7,IF(Accueil!$D$58<>$C$239,Accueil!$D$58,IF(ISBLANK(F230),E230,F230)),F230) -> non démarrée | G229: =IF(G228=$G$7,IF(Accueil!$D$58<>$C$239,Accueil!$D$58,IF(ISBLANK(G230),F230,G230)),G230) -> non démarrée | H229: =IF(H228=$G$7,IF(Accueil!$D$58<>$C$239,Accueil!$D$58,IF(ISBLANK(H230),G230,H230)),H230) -> non démarrée | I229: =IF(I228=$G$7,IF(Accueil!$D$58<>$C$239,Accueil!$D$58,IF(ISBLANK(I230),H230,I230)),I230) -> non démarrée | J229: =IF(J228=$G$7,IF(Accueil!$D$58<>$C$239,Accueil!$D$58,IF(ISBLANK(J230),I230,J230)),J230) -> non démarrée | K229: =IF(K228=$G$7,IF(Accueil!$D$58<>$C$239,Accueil!$D$58,IF(ISBLANK(K230),J230,K230)),K230) -> non démarrée | L229: =IF(L228=$G$7,IF(Accueil!$D$58<>$C$239,Accueil!$D$58,IF(ISBLANK(L230),K230,L230)),L230) -> en cours | M229: =IF(M228=$G$7,IF(Accueil!$D$58<>$C$239,Accueil!$D$58,IF(ISBLANK(M230),L230,M230)),M230) -> 0 | N229: =IF(N228=$G$7,IF(Accueil!$D$58<>$C$239,Accueil!$D$58,IF(ISBLANK(N230),M230,N230)),N230) -> 0 | O229: =IF(O228=$G$7,IF(Accueil!$D$58<>$C$239,Accueil!$D$58,IF(ISBLANK(O230),N230,O230)),O230) -> 0 | P229: =IF(P228=$G$7,IF(Accueil!$D$58<>$C$239,Accueil!$D$58,IF(ISBLANK(P230),O230,P230)),P230) -> 0 | Q229: =IF(Q228=$G$7,IF(Accueil!$D$58<>$C$239,Accueil!$D$58,IF(ISBLANK(Q230),P230,Q230)),Q230) -> 0 | R229: =IF(R228=$G$7,IF(Accueil!$D$58<>$C$239,Accueil!$D$58,IF(ISBLANK(R230),Q230,R230)),R230) -> 0
B230: Valeurs précédentes | C230: non démarrée | D230: non démarrée | E230: non démarrée | F230: non démarrée | G230: non démarrée | H230: non démarrée | I230: non démarrée | J230: non démarrée | K230: non démarrée
B233: IdStatutAction | C233: codeStatutAction | D233: valeurStatutAction | E233: rangStatut
B234: 1 | C234: =I18 -> non démarrée | D234: 0 | E234: 1
B235: 2 | C235: =I19 -> en élaboration | D235: 0 | E235: 2
B236: 3 | C236: en cours | D236: 0.5 | E236: 3
B237: 4 | C237: terminée | D237: 1 | E237: 4
B238: 5 | C238: en suspens | D238: 0 | E238: 5
B239: 6 | C239: Retirée du PACC | D239: 0 | E239: 6

Sheet Accueil
E2: EXERCICE DE SUIVI DU PLAN D'ACTION 2013-2020 SUR LES CHANGEMENTS CLIMATIQUES
B10: Bienvenue dans votre fiche de suivi du FECC - Gestion des matières résiduelles
B14: Échéance de transmission : | D14: 2022-06-14
B15: Nouveautés pour l’exercice de suivi de mai 2020
B16: RAPPEL :
B17: * Fin du PACC : Les conventions de subventions se rapportant aux engagements saisis à SAGIR sont maintenant signées.
B18: * Fin du PACC : Les projets réalisés à l'interne dans vos organisations doivent se terminer avant le 31 décembre 2022
B19: * Fin du PACC : Vous devez compléter l'onglet Évaluation.
B20: Consignes générales :
B21: →Les informations doivent correspondre à l'avancement de l'action en date du 31 mars 2022.
B22: →Assurez-vous de valider votre fiche (onglet Validation) avant de la transmettre à l’adresse suivante : suivi.climatique@environnement.gouv.qc.ca
B23: →Toute information confidentielle doit être saisie en bleu.
B24: →Conservez la fiche en format xlsm afin de pouvoir profiter des outils conviviaux.
B25: →La plupart des cellules contenant du texte sont limitées à 250 caractères.
B27: →Copier-coller des informations à partir d’un document Word verrouille les cellules concernées. Pour pouvoir à nouveau écrire et modifier le format de ces cellules, fermez et ouvrez à nouveau la fiche.
B29: →Besoin d’assistance? Écrivez-nous à l’adresse suivante en précisant votre question et vos coordonnées : suivi.climatique@environnement.gouv.qc.ca
K32: suivi.climatique@environnement.gouv.qc.ca
B50: Veuillez vérifier, corriger et compléter les informations ci-dessous :
B52: Priorité : | D52: 13 | E52: Promouvoir le transport collectif et alternatif en améliorant l'offre, en développant les infrastructures et en facilitant les choix durables
B53: Action : | D53: 13.4 | E53: Programme d’aide financière au développement des transports actifs dans les périmètres urbains (TAPU) (FORT)
B54: Sous-action : | D54: 13.4 | E54: Programme d’aide financière au développement des transports actifs dans les périmètres urbains (TAPU) (FORT)
B55: Libellé usuel : | D55: 13.4 | E55: Programme d’aide financière au développement des transports actifs dans les périmètres urbains (TAPU) (FORT)
B56: Programme : | D56: Programme d'aide financière au développement des transports actifs dans les périmètres urbains (TAPU)
B57: Nom du programme :
B58: Statut de l’action : | D58: en cours
B59: Raison du statut de l’action :
B63: Informations en date du : | D63: =Utilitaire!G6 -> 2022-03-31
B65: Ministère porteur : | D65: MTQ | I65: Direction responsable : | K65: Transport terrestre des personnes
B66: Partenaires : | D66: S.O. | I66: Part de financement par le FECC : | K66: Variable
B67: Budget 2013-2020 (M$) : | D67: 59 | I67: Autres sources de financement : | K67: FORT (807)
B68: Date de lancement de l’action : | D68: 2013-10-15 | I68: Date de fin de l’action : | K68: 2023-03-31
B69: Section réservée à l’usage exclusif du BECC (lignes 70 à 73 non publiées)
B70: Chargé de projet : | D70: Roxanne Harton | I70: Tél. : | K70: 418 646-0700 , poste 22971
B71: Responsable ministériel : | D71: Raymond Jeudi | I71: Tél. : | K71: 418 528-6416
B72: Personne ressource pour le BECC : | D72: Isabelle Gattaz | I72: Tél. : | K72: (418) 646-0700 poste 23671
B73: Estimation des sommes résiduelles au 31 décembre 2020 ($) : | D73: 0 | I73: Précisions sur le montant des sommes résiduelles : | K73: s
B74: Téléphone pour informations : | D74: 514 687-7227
B75: Référence Web : | D75: https://www.transports.gouv.qc.ca/fr/aide-finan/municipalites/Pages/programme-developpement-transports-actifs.aspx
B85: Ministère des Transports

Sheet Description
B2: =Utilitaire!E8 -> Plan d'action 2013-2020 sur les changements climatiques
B3: ="Action " & Accueil!D58 -> Action en cours
B4: =Accueil!D55 -> 13.4 | C4: =Accueil!E55 -> Programme d’aide financière au développement des transports actifs dans les périmètres urbains (TAPU) (FORT)
B5: Ministère porteur : | D5: =Accueil!$D$65 -> MTQ
B6: Description
B15: Évaluation des effets de la COVID-19 sur la mise en œuvre de l'action
B16: Résultats attendus :
B17: Échéancier :
B18: Sommes engagées (projets en cours) :
B19: Autres :
B41: Informations en date du : | F41: 2022-03-31
B42: Informations générales
B43: Description de l'action: | C43: Le programme Véloce II, volet 1 est terminé depuis le le 31 mars 2016. Il a été remplacé par le programme d'aide financière au développement des transports actifs dans les périmètres urbains (TAPU) qui est entré en vigueur le 27 février 2017 et a pris fin le 31 mars 2022. Ce programme propose des aides financières pour soutenir la réalisation de projets d'infrastructures cyclables et piétonnes présentés par les municipalités. Le programme prévoit une aide financière d'un maximum de 50 % des coûts des projets présentés.
B44: Objectif de l'action: | C44: Les objectifs du programme sont : • soutenir l'effort municipal en vue d'un transfert modal vers les transports actifs; • développer des infrastructures favorisant les déplacements actifs, efficaces, sécuritaires et concurrentiels par rapport aux autres modes de transport en milieu urbain; • réduire les émissions de gaz à effet de serre causées par les déplacements des personnes.
B45: Bénéficiaires : | C45: Municipalités et organismes municipaux | E45: Organismes à but non lucratif
C46: Autres (précisez) : | E46: Conseil d'arrondissement | G46: Les MRC (municipalités régionale de comté) | J46: Conseil d'arrondissement ou conseil d'agglomération
B47: Critères d'admissibilité : | C47: Pour être admissible, le projet doit être entièrement localisé à l'intérieur d'un périmètre d'urbanisation défini conformément à la Loi sur l'aménagement et de développement ou au plan métropolitain, ou permettre de relier entre eux deux périmètres d'urbanisation de telle sorte que le projet constitue un lien direct favorisant les déplacements actifs à l'intérieur du territoire d'une même municipalité.
B48: Processus de suivi de l'action : | C48: Comme il s'agit d'un programme d'infrastructure, cette action peut être suivie par la constatation des travaux réalisés qui ont fait l'objet d'un engagement. Outre la constatation des travaux réalisés, la lettre d'engagement prévoit la possibilité, pour le Ministère, d'exiger des comptages pour constater le niveau d'utilisation de la nouvelle infrastructure mise en place par la municipalité.
B49: Résultats et co-bénéfices attendus : | C49: Les résultats escomptés sont d'augmenter l'offre en transport actif, notamment en augmentant le nombre de kilomètres de voies cyclables et piétonnes reliant les principales destinations d'une municipalité et offrant des conditions de circulation agréables et sécuritaires pour les cyclistes. Pour chaque investissement en infrastructure de transport actif, les bénéfices sont directs puisque chaque déplacement actif est un déplacement n'émettant aucun gaz à effet de serre. Les résultats attendus sont la réalisation de 50 km de voies cyclables par année, de 10 projets d'apaisement de la circulation dans les corridors scolaires et de 8 aménagements cyclables ou polyvalent sur structures.
B50: Résultats et co-bénéfices obtenus dans la dernière année : | C50: 2021-2022 1. Longueur des voies cyclables et piétionnes financées: 50 KM 2. Nombre de projets d'apaisement de la circulation dans les corridors scolaires financés: 33 3. Nombre de structures financées: 6 4. Pourcentage des adultes utilisant la bicyclette au moins une fois par semaine: non disponible pour le moment 5. Pourcentage des cyclistes utilisant la bicyclette à des fins utilitaires: non disponible pour le moment
B51: Résultats et co-bénéfices obtenus depuis le lancement de l'action : | C51: Depuis 2013-2014 1. Longueur des voies cyclables et piétionnes financées: 336,44 KM 2. Nombre de projets d'apaisement de la circulation dans les corridors scolaires financés: 124 3. Nombre de structures financées: 34 4. Pourcentage des adultes utilisant la bicyclette au moins une fois par semaine: non disponible pour le moment 5. Pourcentage des cyclistes utilisant la bicyclette à des fins utilitaires: non disponible pour le moment
B53: Classification
B54: Finalité : | C54: Réduction des émissions de gaz à effet de serre | H54: Moyen : | J54: Réalisation (programmes et subventions favorisant l'exécution de solutions établies)
B62: Mise en œuvre
B63: Étapes (depuis le début de l'action) | J63: Échéancier | M63: État d'avancement
A64: 1 | B64: Mise en opération du Programme d'aide financière au développement des transports actifs dans les périmètres urbains (TAPU) (2017-2019) | J64: 2017-04-10 | M64: Complétée
A65: 2 | B65: Mise en opération du Programme d'aide financière au développement des transports actifs dans les périmètres urbains (TAPU) (2019-2023) | J65: 2019-07-01 | M65: En cours
A66: 3
A67: 4
A68: 5
A69: 6
A71: 8
A72: 9
B190: Ajouter une ligne
B194: Plans, stratégies ou politiques incluant la mise en œuvre de cette action
B195: Abréviation | D195: Nom complet | N195: Numéro de mesure
B196: PMD 2030 | D196: Plan de mobilité durable 2030 Cadre d'intervention en transport actif
B197: PACC 2013-2020 | D197: Plan d'action 2013-20250 sur les changements climatiques | N197: 13.4

Sheet Détail des projets
B2: =Utilitaire!E8 -> Plan d'action 2013-2020 sur les changements climatiques
B3: ="Action " & Accueil!D58 -> Action en cours
B4: =Accueil!D55 -> 13.4 | C4: =Accueil!E55 -> Programme d’aide financière au développement des transports actifs dans les périmètres urbains (TAPU) (FORT)
B5: Ministère porteur : | C5: =Accueil!$D$65 -> MTQ
B6: Détails et prévisions des dépenses par projet
D19: Informations en date du : | G19: 2022-03-31
B22: DÉTAILS DES PROJETS AUTORISÉS | O22: MONTANTS PROVENANT DU FECC ($) | AA22: =MONTH(#REF!) -> 
A23: No | B23: Nom du projet | C23: Nom du requérant ou du bénéficiaire | D23: Volet ou thématique | E23: Catégorie | F23: Nombre de projets | G23: Région administrative | H23: Municipalité | I23: Statut | J23: Classification du projet | K23: Montant engagé ($) | L23: Date de l'engagement | M23: Date du dernier versement | N23: Budget total du projet ($) | O23: 2013-2014 | P23: 2014-2015 | Q23: 2015-2016 | R23: 2016-2017 | S23: 2017-2018 | T23: 2018-2019 | U23: 2019-2020 | V23: 2020-2021 | W23: 2021-2022 | X23: 2022-2023 | Y23: 2023-2024 | Z23: 2024-2025 | AA23: MONTANT DES DÉPENSES RÉELLES ($) | AB23: TOTAL DES DÉPENSES RÉELLES ET PRÉVUES ($)
K24: (convention signée, contrat, lettre de confirmation du ministre ou de son représentant ou lettre d'octroi) | O24: Réel | P24: Réel | Q24: Réel | R24: Réel | S24: Réel | T24: Réel | U24: Réel | V24: Réel | W24: Réel | X24: Prévu | Y24: Prévu | Z24: Prévu
A25: 1 | B25: Paserelle Normandie | C25: Ville de Longueuil | D25: Transport actif TAPU 2017-2019 | E25: Transports | F25: 1 | G25: 16-Montérégie | H25: Longueuil | I25: AC-Actif | J25: SU-Subvention | K25: 1000000 | L25: 2018-03-31 | M25: 2018-03-31 | N25: 13579000 | S25: 1000000 | AA25: =SUM(O25:W25) -> 1000000 | AB25: =SUM(O25:Z25) -> 1000000
A26: 2 | B26: Piste de la rue Sicotte | C26: Ville de Saint-Hyacinthe | D26: Transport actif (volet 1) | E26: Transports | F26: 1 | G26: 16-Montérégie | H26: Saint-Hyacinthe | I26: TE-Terminé | J26: SU-Subvention | K26: 54230 | L26: 2018-03-31 | M26: 2018-03-31 | N26: 108460 | S26: 54230 | AA26: =SUM(O26:W26) -> 54230 | AB26: =SUM(O26:Z26) -> 54230
A27: 3 | B27: Piste de la rue Laurier | C27: Ville de Gatineau | D27: Transport actif (volet 1) | E27: Transports | F27: 1 | G27: 07-Outaouais | H27: Gatineau | I27: TE-Terminé | J27: SU-Subvention | K27: 293378 | L27: 2018-03-31 | M27: 2018-03-31 | N27: 614386 | S27: 288542 | T27: -4835.62 | AA27: =SUM(O27:W27) -> 283706.38 | AB27: =SUM(O27:Z27) -> 283706.38
A28: 4 | B28: Lien A-20 Saint-Rédempteur | C28: Ville de Lévis | D28: Transport actif (volet 1) | E28: Transports | F28: 1 | G28: 12-Chaudières-Appalaches | H28: Lévis | I28: TE-Terminé | J28: SU-Subvention | K28: 100000 | L28: 2018-03-31 | M28: 2018-03-31 | N28: 200000 | S28: 50000 | T28: 50000 | AA28: =SUM(O28:W28) -> 100000 | AB28: =SUM(O28:Z28) -> 100000
A29: 5 | B29: 1317 Langelier | C29: Ville de Montréal | D29: Transport actif (volet 1) | E29: Transports | F29: 1 | G29: 06-Montréal | H29: Montréal | I29: AC-Actif | J29: SU-Subvention | K29: 300000 | L29: 2018-03-31 | M29: 2018-03-31 | N29: 1392286 | S29: 300000 | AA29: 300000 | AB29: 300000
A30: 6 | B30: 3e Avenue | C30: Ville de Québec | D30: Transport actif (volet 1) | E30: Transports | F30: 1 | G30: 03-Capitale-Nationale | H30: Québec | I30: TE-Terminé | J30: SU-Subvention | K30: 46765 | L30: 2018-03-31 | M30: 2018-03-31 | N30: 303208.13 | S30: 0 | T30: 46765 | V30: 0 | AA30: 46765 | AB30: 46765
A31: 7 | B31: 1508 Desjardins | C31: Ville de Montréal | D31: Transport actif (volet 1) | E31: Transports | F31: 1 | G31: 06-Montréal | H31: Montréal | I31: AC-Actif | J31: SU-Subvention | K31: 552170 | L31: 2018-03-31 | M31: 2018-03-31 | N31: 1192984 | S31: 552170 | AA31: 552170 | AB31: 552170
A32: 8 | B32: Arr. Plateau Mont-Royan (école Saint-Pierre-Claver) | C32: Ville de Montréal | D32: Transport actif (volet 1) | E32: Transports | F32: 1 | G32: 06-Montréal | H32: Montréal | I32: AC-Actif | J32: SU-Subvention | K32: 250000 | L32: 2018-03-31 | M32: 2018-03-31 | N32: 867077.03 | S32: 250000 | AA32: 250000 | AB32: 250000
A33: 9 | B33: École primaire | C33: Municipalité de Boischatel | D33: Transport actif (volet 1) | E33: Transports | F33: 1 | G33: 03-Capitale-Nationale | H33: Boischatel | I33: TE-Terminé | J33: SU-Subvention | K33: 32762 | L33: 2018-03-31 | M33: 2018-03-31 | N33: 65524 | S33: 0 | T33: 32762 | V33: 0 | AA33: 32762 | AB33: 32762
A34: 10 | B34: Piste bidirectionnelle asphaltée | C34: Ville de Rouyn-Noranda | D34: Transport actif (volet 1) | E34: Transports | F34: 1 | G34: 08-Abitibi-Témiscamingue | H34: Rouyn-Noranda | I34: TE-Terminé | J34: SU-Subvention | K34: 72500 | L34: 2018-03-31 | M34: 2018-03-31 | N34: 145000 | S34: 72500 | U34: -21155 | AA34: 51345 | AB34: 51345
A35: 11 | B35: Piste Jean-de-Brébeuf | C35: Ville de Drummondville | D35: Transport actif (volet 1) | E35: Transports | F35: 1 | G35: 17-Centre-du-Québec | H35: Drummondville | I35: TE-Terminé | J35: SU-Subvention | K35: 94400 | L35: 2018-03-31 | M35: 2018-03-31 | N35: 188800 | S35: 94400 | AA35: 94400 | AB35: 94400
A36: 12 | B36: Portion urbaine de la piste dans Beauceville | C36: MRC de Robert-Cliche | D36: Transport actif (volet 1) | E36: Transports | F36: 1 | G36: 12-Chaudières-Appalaches | H36: Beauceville | I36: TE-Terminé | J36: SU-Subvention | K36: 1000000 | L36: 2018-03-31 | M36: 2018-03-31 | N36: 2615764 | S36: 500000 | T36: 500000 | W36: 282650 | AA36: 1282650 | AB36: 1282650
A37: 13 | B37: 0849 Cardinal | C37: Ville de Montréal | D37: Transport actif (volet 1) | E37: Transports | F37: 1 | G37: 06-Montréal | H37: Montréal | I37: AC-Actif | J37: SU-Subvention | K37: 1000000 | L37: 2018-03-31 | M37: 2018-03-31 | N37: 3269150 | S37: 1000000 | AA37: 1000000 | AB37: 1000000
A38: 14 | B38: Piste campus UQTR | C38: Ville de Drummondville (piste campus UQTR) | D38: Transport actif (volet 1) | E38: Transports | F38: 1 | G38: 17-Centre-du-Québec | H38: Drummondville | I38: AC-Actif | J38: SU-Subvention | K38: 41012.25 | L38: 2018-03-31 | M38: 2018-03-31 | N38: 82025 | S38: 41012.25 | AA38: 41012.25 | AB38: 41012.25
A39: 15 | B39: Supports à vélo | C39: Ville de Québec (supports à vélo) | D39: Transport actif (volet 1) | E39: Transports | F39: 1 | G39: 03-Capitale-Nationale | H39: Québec | I39: TE-Terminé | J39: SU-Subvention | K39: 11181.12 | L39: 2018-03-31 | M39: 2018-03-31 | N39: 24489.66 | S39: 0 | T39: 11181.12 | V39: 0 | AA39: 11181.12 | AB39: 11181.12
A40: 16 | B40: Sécurisatin des déplacements actifs dans le village | C40: Municipalité de Saint-Thomas | D40: Transport actif (volet 1) | E40: Transports | F40: 1 | G40: 14-Lanaudière | H40: Saint-Thomas | I40: TE-Terminé | J40: SU-Subvention | K40: 3361 | L40: 2018-03-31 | M40: 2018-03-31 | N40: 10649.72 | S40: 3361 | T40: -558.46 | AA40: 2802.54 | AB40: 2802.54
A41: 17 | B41: Rivière Aulneuse Saint-Nicolas | C41: Ville de Lévis (rivière Aulneuse Saint-Nicolas) | D41: Transport actif (volet 1) | E41: Transports | F41: 1 | G41: 12-Chaudières-Appalaches | H41: Lévis | I41: AC-Actif | J41: SU-Subvention | K41: 5000 | L41: 2018-03-31 | M41: 2018-03-31 | N41: 200000 | S41: 2500 | T41: 2500 | AA41: 5000 | AB41: 5000
A42: 18 | B42: Apaisement de la circulation 6e Avenue et 9e Rue | C42: Ville de La Pocatière | D42: Transport actif (volet 1) | E42: Transports | F42: 1 | G42: 01-Bas-Saint-Laurent | H42: La Pocatière | I42: TE-Terminé | J42: SU-Subvention | K42: 140000 | L42: 2018-02-09 | M42: 2018-03-31 | N42: 297150 | S42: 140000 | AA42: 140000 | AB42: 140000
A43: 19 | B43: Ville de Gatineau | C43: Ville de Gatineau | D43: Transport actif (volet 1) | E43: Transports | F43: 1 | G43: 07-Outaouais | H43: Gatineau | I43: TE-Terminé | J43: SU-Subvention | K43: 180967 | L43: 2016-06-14 | M43: 2016-06-14 | N43: 361935 | Q43: 180967 | R43: -35162.17 | AA43: 145804.83 | AB43: =SUM(O43:Z43) -> 145804.83
A44: 20 | B44: Bande cyclable rue Principale | C44: Municipalité de Saint-Amable | D44: Transport actif (volet 1) | E44: Transports | F44: 1 | G44: 16-Montérégie | H44: Saint-Amable | I44: TE-Terminé | J44: SU-Subvention | K44: 22500 | L44: 2015-11-17 | M44: 2015-12-01 | N44: 45000 | Q44: 22500 | AA44: 22500 | AB44: =SUM(O44:Z44) -> 22500
A45: 21 | B45: Promenade rivière Saint-François | C45: Ville de Drummondville | D45: Transport actif (volet 1) | E45: Transports | F45: 1 | G45: 17-Centre-du-Québec | H45: Drummondville | I45: TE-Terminé | J45: SU-Subvention | K45: 1000000 | L45: 2015-11-12 | M45: 2015-12-01 | N45: 8318204 | Q45: 500000 | S45: 0 | T45: 500000 | AA45: 1000000 | AB45: =SUM(O45:Z45) -> 1000000
A46: 22 | B46: Avenue Legendre | C46: Ville de Québec | D46: Transport actif (volet 1) | E46: Transports | F46: 1 | G46: 03-Capitale-Nationale | H46: Québec | I46: TE-Terminé | J46: SU-Subvention | K46: 108378 | L46: 2015-10-21 | M46: 2016-04-28 | N46: 229243 | Q46: 108378 | R46: -21893.08 | AA46: 86484.92 | AB46: =SUM(O46:Z46) -> 86484.92
A47: 23 | B47: Rue Bourdages | C47: Ville de Québec | D47: Transport actif (volet 1) | E47: Transports | F47: 1 | G47: 03-Capitale-Nationale | H47: Québec | I47: TE-Terminé | J47: SU-Subvention | K47: 970000 | L47: 2015-10-21 | M47: 2015-12-01 | N47: 2743413 | Q47: 970000 | AA47: 970000 | AB47: =SUM(O47:Z47) -> 970000
A48: 24 | B48: Passerelle | C48: Ville de Québec (rue Soumande) | D48: Transport actif (volet 1) | E48: Transports | F48: 1 | G48: 03-Capitale-Nationale | H48: Québec | I48: TE-Terminé | J48: SU-Subvention | K48: 960000 | L48: 2015-10-21 | M48: 2015-12-01 | N48: 2346888 | Q48: 960000 | AA48: 960000 | AB48: =SUM(O48:Z48) -> 960000
A49: 25 | B49: Rotue 116 - Train de banlieue | C49: Saint-Basile-le-Grand | D49: Transport actif (volet 1) | E49: Transports | F49: 1 | G49: 16-Montérégie | H49: Saint-Basile-le-Grand | I49: TE-Terminé | J49: SU-Subvention | K49: 30000 | L49: 2015-09-08 | M49: 2016-08-26 | N49: 60000 | Q49: 15000 | R49: 15000 | AA49: 30000 | AB49: =SUM(O49:Z49) -> 30000
A50: 26 | B50: Piste école secondaire/route 132 | C50: Ville de Montmagny | D50: Transport actif (volet 1) | E50: Transports | F50: 1 | G50: 01-Bas-Saint-Laurent | H50: Montmagny | I50: TE-Terminé | J50: SU-Subvention | K50: 243875 | L50: 2015-09-04 | M50: 2017-01-17 | N50: 671490 | Q50: 204674.37 | R50: 29793.24 | AA50: 234467.61 | AB50: =SUM(O50:Z50) -> 234467.61
A51: 27 | B51: Piste cyclable écoles primaire et secondaire | C51: Municipalité de Saint-Rémi | D51: Transport actif (volet 1) | E51: Transports | F51: 1 | G51: 16-Montérégie | H51: Saint-Rémi | I51: TE-Terminé | J51: SU-Subvention | K51: 50000 | L51: 2015-09-04 | M51: 2016-11-17 | N51: 100000 | Q51: 25000 | R51: 25000 | AA51: 50000 | AB51: =SUM(O51:Z51) -> 50000
A52: 28 | B52: Lien Pincourt-Île-Perrot | C52: Ville de Pincourt | D52: Transport actif (volet 1) | E52: Transports | F52: 1 | G52: 16-Montérégie | H52: Pincourt | I52: TE-Terminé | J52: SU-Subvention | K52: 46916 | L52: 2015-09-04 | M52: 2016-08-24 | N52: 166626 | Q52: 46916 | AA52: =SUM(O52:W52) -> 46916 | AB52: =SUM(O52:Z52) -> 46916
A53: 29 | B53: Supports à vélo | C53: Arrondissement Saint-Laurent | D53: Transport actif (volet 1) | E53: Transports | F53: 1 | G53: 06-Montréal | H53: Montréal | I53: TE-Terminé | J53: SU-Subvention | K53: 35631 | L53: 2015-09-03 | M53: 2015-10-01 | N53: 75848 | Q53: 35631 | AA53: =SUM(O53:W53) -> 35631 | AB53: =SUM(O53:Z53) -> 35631
A54: 30 | B54: Piste cyclable en milieu urbain | C54: Municipalité de Havre-Saint-Pierre | D54: Transport actif (volet 1) | E54: Transports | F54: 1 | G54: 09-Côte-Nord | H54: Havre-Saint-Pierre | I54: TE-Terminé | J54: SU-Subvention | K54: 124108 | L54: 2015-09-03 | M54: 2015-10-01 | N54: 248217 | Q54: 124108 | AA54: =SUM(O54:W54) -> 124108 | AB54: =SUM(O54:Z54) -> 124108
A55: 31 | B55: Piste cyclable Rivière-au-Renard | C55: Groupe Beau-Village Rivière-au-Renard | D55: Transport actif (volet 1) | E55: Transports | F55: 1 | G55: 11-Gaspésie-Iles-de-la-Madeleine | H55: Rivière-au-Renard | I55: TE-Terminé | J55: SU-Subvention | K55: 23000 | L55: 2015-09-03 | M55: 2017-03-16 | N55: 50755 | Q55: 11500 | R55: 11500 | AA55: =SUM(O55:W55) -> 23000 | AB55: =SUM(O55:Z55) -> 23000
A56: 32 | B56: Rue des Vétérans | C56: Rimouski | D56: Transport actif (volet 1) | E56: Transports | F56: 1 | G56: 11-Gaspésie-Iles-de-la-Madeleine | H56: Rimouski | I56: TE-Terminé | J56: SU-Subvention | K56: 25000 | L56: 2015-09-03 | M56: 2017-01-13 | N56: 50000 | Q56: 12500 | R56: 8077.8 | AA56: =SUM(O56:W56) -> 20577.8 | AB56: =SUM(O56:Z56) -> 20577.8
A57: 33 | B57: Piste cyclable en milieu urbain | C57: Ville de Richelieu | D57: Transport actif (volet 1) | E57: Transports | F57: 1 | G57: 16-Montérégie | H57: Richelieu | I57: TE-Terminé | J57: SU-Subvention | K57: 24063 | L57: 2015-09-02 | M57: 2017-01-24 | N57: 314875 | Q57: 24063 | AA57: =SUM(O57:W57) -> 24063 | AB57: =SUM(O57:Z57) -> 24063
A58: 34 | B58: Piste cyclable en milieu urbain | C58: Municipalité de Rigaud | D58: Transport actif (volet 1) | E58: Transports | F58: 1 | G58: 16-Montérégie | H58: Rigaud | I58: AN-Annulé | J58: SU-Subvention | K58: 122898 | L58: 2015-09-01 | M58: 2015-10-01 | N58: 245797 | Q58: 61449 | S58: 0 | T58: 61449 | AA58: =SUM(O58:W58) -> 122898 | AB58: =SUM(O58:Z58) -> 122898
A59: 35 | B59: Rue Jacques-Cartier | C59: Ville de Gatineau | D59: Transport actif (volet 1) | E59: Transports | F59: 1 | G59: 07-Outaouais | H59: Gatineau | I59: TE-Terminé | J59: SU-Subvention | K59: 536428 | L59: 2015-08-20 | M59: 2015-10-01 | N59: 1702486 | Q59: 429143 | S59: 107285 | AA59: =SUM(O59:W59) -> 536428 | AB59: =SUM(O59:Z59) -> 536428
A60: 36 | B60: #944 Ste-Croix | C60: Ville de Montréal | D60: Transport actif (volet 1) | E60: Transports | F60: 1 | G60: 06-Montréal | H60: Montréal | I60: AC-Actif | J60: SU-Subvention | K60: 198000 | L60: 2015-08-20 | M60: 2015-10-01 | N60: 928000 | Q60: 198000 | AA60: =SUM(O60:W60) -> 198000 | AB60: =SUM(O60:Z60) -> 198000
A61: 37 | B61: Corridor scolaire rues Réjean et Caron | C61: Saint-Joseph-du-Lac | D61: Transport actif (volet 1) | E61: Transports | F61: 1 | G61: 15-Laurentides | H61: Saint-Joseph-du-Lac | I61: TE-Terminé | J61: SU-Subvention | K61: 239838 | L61: 2015-08-20 | M61: 2015-10-01 | N61: 622460 | Q61: 239838 | AA61: =SUM(O61:W61) -> 239838 | AB61: =SUM(O61:Z61) -> 239838
A62: 38 | B62: École Saint-Jean-de-la-Lande | C62: Arrondissement Rosemont-La Petite-Patrie | D62: Transport actif (volet 1) | E62: Transports | F62: 1 | G62: 06-Montréal | H62: Montréal | I62: AC-Actif | J62: SU-Subvention | K62: 249823 | L62: 2015-08-20 | M62: 2015-10-01 | N62: 514646 | Q62: 124911.5 | S62: 124911 | AA62: =SUM(O62:W62) -> 249822.5 | AB62: =SUM(O62:Z62) -> 249822.5
A63: 39 | B63: École Saint-Albert-Le-Grand | C63: Arrondissement Rosemont-La Petite-Patrie | D63: Transport actif (volet 1) | E63: Transports | F63: 1 | G63: 06-Montréal | H63: Montréal | I63: AC-Actif | J63: SU-Subvention | K63: 250000 | L63: 2015-08-20 | M63: 2015-10-01 | N63: 777040 | Q63: 125000 | S63: 125000 | AA63: =SUM(O63:W63) -> 250000 | AB63: =SUM(O63:Z63) -> 250000
A64: 40 | B64: École Saint-Louis-de-Gonzague | C64: Arrondissement Le Plateau-Mont-Royal | D64: Transport actif (volet 1) | E64: Transports | F64: 1 | G64: 06-Montréal | H64: Montréal | I64: AC-Actif | J64: SU-Subvention | K64: 133677 | L64: 2015-08-20 | M64: 2015-10-01 | N64: 267355 | Q64: 66838.5 | S64: 66839 | AA64: =SUM(O64:W64) -> 133677.5 | AB64: =SUM(O64:Z64) -> 133677.5
A65: 41 | B65: Prolongement Trans-Terrebonne | C65: Ville de Terrebonne | D65: Transport actif (volet 1) | E65: Transports | F65: 1 | G65: 14-Lanaudière | H65: Terrebonne | I65: AC-Actif | J65: SU-Subvention | K65: 920000 | L65: 2015-08-20 | M65: 2019-12-31 | N65: 6806700 | Q65: 754400 | R65: 110400 | S65: 0 | T65: 460000 | AA65: =SUM(O65:W65) -> 1324800 | AB65: =SUM(O65:Z65) -> 1324800
A66: 42 | B66: #1211 De Marseille | C66: Ville de Montréal | D66: Transport actif (volet 1) | E66: Transports | F66: 1 | G66: 06-Montréal | H66: Montréal | I66: AC-Actif | J66: SU-Subvention | K66: 95000 | L66: 2015-08-20 | M66: 2015-10-01 | N66: 190000 | Q66: 47500 | S66: 47500 | AA66: =SUM(O66:W66) -> 95000 | AB66: =SUM(O66:Z66) -> 95000
A67: 43 | B67: Pistes cyclables sur rue | C67: Beauharnois | D67: Transport actif (volet 1) | E67: Transports | F67: 1 | G67: 16-Montérégie | H67: Beauharnois | I67: AC-Actif | J67: SU-Subvention | K67: 253545 | L67: 2015-08-20 | M67: 2015-10-01 | N67: 1140000 | Q67: 253545 | AA67: =SUM(O67:W67) -> 253545 | AB67: =SUM(O67:Z67) -> 253545
A68: 44 | B68: École Lanaudière | C68: Arrorndissement Le Plateau-Mont-Royal | D68: Transport actif (volet 1) | E68: Transports | F68: 1 | G68: 06-Montréal | H68: Montréal | I68: AC-Actif | J68: SU-Subvention | K68: 126537 | L68: 2015-08-20 | M68: 2015-10-01 | N68: 253075 | Q68: 63268.5 | S68: 63269 | AA68: =SUM(O68:W68) -> 126537.5 | AB68: =SUM(O68:Z68) -> 126537.5
A69: 45 | B69: #1313 Dudemaine | C69: Ville de Montréal | D69: Transport actif (volet 1) | E69: Transports | F69: 1 | G69: 06-Montréal | H69: Montréal | I69: AC-Actif | J69: SU-Subvention | K69: 88600 | L69: 2015-08-20 | M69: 2015-10-01 | N69: 177200 | Q69: 88600 | AA69: =SUM(O69:W69) -> 88600 | AB69: =SUM(O69:Z69) -> 88600
A70: 46 | B70: École Saint-Pierre-Claver | C70: Arrondissement Le Plateau-Mont-Royal (École Saint-Pierre-Claver) | D70: Transport actif (volet 1) | E70: Transports | F70: 1 | G70: 06-Montréal | H70: Montréal | I70: AC-Actif | J70: SU-Subvention | K70: 40787 | L70: 2015-08-20 | M70: 2015-10-01 | N70: 81574 | Q70: 20393.5 | S70: 20394 | AA70: =SUM(O70:W70) -> 40787.5 | AB70: =SUM(O70:Z70) -> 40787.5
A71: 47 | B71: École Nesbit | C71: Arrondissement Rosemont-La Petite-Patrie (École Nesbitt) | D71: Transport actif (volet 1) | E71: Transports | F71: 1 | G71: 06-Montréal | H71: Montréal | I71: AC-Actif | J71: SU-Subvention | K71: 132247 | L71: 2015-08-20 | M71: 2015-10-01 | N71: 264494 | Q71: 66123.5 | S71: 66124 | AA71: =SUM(O71:W71) -> 132247.5 | AB71: =SUM(O71:Z71) -> 132247.5
A72: 48 | B72: École Au-Pied-de-la-Montagne | C72: Arrondissement Le Plateau-Mont-Royal (École Au Pied de la Montagne) | D72: Transport actif (volet 1) | E72: Transports | F72: 1 | G72: 06-Montréal | H72: Montréal | I72: AC-Actif | J72: SU-Subvention | K72: 178163 | L72: 2015-08-20 | M72: 2015-10-01 | N72: 356327 | Q72: 178163 | AA72: =SUM(O72:W72) -> 178163 | AB72: =SUM(O72:Z72) -> 178163
A73: 49 | B73: Piste cyclable en milieu urbain | C73: Ville de Waterville | D73: Transport actif (volet 1) | E73: Transports | F73: 1 | G73: 05-Estrie | H73: Waterville | I73: TE-Terminé | J73: SU-Subvention | K73: 4000 | L73: 2015-08-20 | M73: 2015-10-01 | N73: 12000 | Q73: 4000 | AA73: =SUM(O73:W73) -> 4000 | AB73: =SUM(O73:Z73) -> 4000
A74: 50 | B74: Boulevard Chevrier | C74: Ville de Brossard | D74: Transport actif (volet 1) | E74: Transports | F74: 1 | G74: 16-Montérégie | H74: Brossard | I74: TE-Terminé | J74: SU-Subvention | K74: 84000 | L74: 2015-08-15 | M74: 2015-10-01 | N74: 168000 | Q74: 42000 | S74: 55200 | T74: -55200 | AA74: =SUM(O74:W74) -> 42000 | AB74: =SUM(O74:Z74) -> 42000
A75: 51 | B75: Boulevard Jacques-Cartier | C75: Ville de Longueuil | D75: Transport actif (volet 1) | E75: Transports | F75: 1 | G75: 16-Montérégie | H75: Longueuil | I75: TE-Terminé | J75: SU-Subvention | K75: 94000 | L75: 2014-12-04 | M75: 2014-12-30 | N75: 294000 | P75: 94000 | AA75: =SUM(O75:W75) -> 94000 | AB75: =SUM(O75:Z75) -> 94000
A76: 52 | B76: Sentier pour désenclavement | C76: Ville de Lac-Mégantic | D76: Transport actif (volet 1) | E76: Transports | F76: 1 | G76: 05-Estrie | H76: Lac-Mégantic | I76: TE-Terminé | J76: SU-Subvention | K76: 108021.5 | L76: 2014-12-04 | M76: 2014-12-30 | N76: 497743 | P76: 76695.27 | Q76: 31326.24 | AA76: =SUM(O76:W76) -> 108021.51 | AB76: =SUM(O76:Z76) -> 108021.51
A77: 53 | B77: 12e Avenue | C77: Ville de Shawinigan | D77: Transport actif (volet 1) | E77: Transports | F77: 1 | G77: 04-Mauricie | H77: Shawinigan | I77: TE-Terminé | J77: SU-Subvention | K77: 470000 | L77: 2014-11-24 | M77: 2017-03-28 | N77: 2900000 | P77: 235000 | R77: 235000 | AA77: =SUM(O77:W77) -> 470000 | AB77: =SUM(O77:Z77) -> 470000
A78: 54 | B78: Apaisement de la circulation, écoles Rose-des-Vents, St-Jean-Vianney, Ste-Anne et Madeleine-de-Verchères | C78: Ville de Montréal - Rosemon Petite-Patrie | D78: Transport actif (volet 1) | E78: Transports | F78: 4 | G78: 06-Montréal | H78: Montréal | I78: AC-Actif | J78: SU-Subvention | K78: 560235 | L78: 2014-11-24 | M78: 2014-12-11 | N78: 1354622 | P78: 280117.5 | Q78: 103617.98 | S78: 176500 | AA78: =SUM(O78:W78) -> 560235.48 | AB78: =SUM(O78:Z78) -> 560235.48
A79: 55 | B79: Notre-Dame-Est | C79: Ville de Victoriaville | D79: Transport actif (volet 1) | E79: Transports | F79: 1 | G79: 17-Centre-du-Québec | H79: Victoriaville | I79: TE-Terminé | J79: SU-Subvention | K79: 616360 | L79: 2014-11-24 | M79: 2014-12-30 | N79: 1232720 | P79: 602724 | T79: -105921.96 | V79: -294544 | AA79: =SUM(O79:W79) -> 202258.04 | AB79: =SUM(O79:Z79) -> 202258.04
A80: 56 | B80: Stationnements vélo | C80: Municipalité de St-Liboire | D80: Transport actif (volet 1) | E80: Transports | F80: 1 | G80: 16-Montérégie | H80: Saint-Liboire | I80: TE-Terminé | J80: SU-Subvention | K80: 2931.07 | L80: 2014-11-24 | M80: 2014-12-17 | N80: 5860 | P80: 1465 | Q80: 1028.24 | S80: 0 | AA80: =SUM(O80:W80) -> 2493.24 | AB80: =SUM(O80:Z80) -> 2493.24
A81: 57 | B81: Lac-des-Sables | C81: Sainte-Agathe-des-Monts | D81: Transport actif (volet 1) | E81: Transports | F81: 1 | G81: 15-Laurentides | H81: Sainte-Agathe-des-Monts | I81: TE-Terminé | J81: SU-Subvention | K81: 225000 | L81: 2014-11-13 | M81: 2016-02-17 | N81: 1102465 | P81: 112500 | Q81: 112500 | R81: -1935 | AA81: =SUM(O81:W81) -> 223065 | AB81: =SUM(O81:Z81) -> 223065
A82: 58 | B82: Piste dans le village | C82: Municipalité de Petite-Rivière-Saint-François | D82: Transport actif (volet 1) | E82: Transports | F82: 1 | G82: 03-Capitale-Nationale | H82: Petite-Rivière-Saint-François | I82: TE-Terminé | J82: SU-Subvention | K82: 209745 | L82: 2014-11-06 | M82: 2014-12-26 | N82: 444828 | P82: 109873 | S82: 0 | V82: 83943 | AA82: =SUM(O82:W82) -> 193816 | AB82: =SUM(O82:Z82) -> 193816
A83: 59 | B83: Boulevard Laflèche | C83: Ville de Baie-Comeau | D83: Transport actif (volet 1) | E83: Transports | F83: 1 | G83: 09-Côte-Nord | H83: Baie-Comeau | I83: AC-Actif | J83: SU-Subvention | K83: 197000 | L83: 2014-10-21 | M83: 2014-12-11 | N83: 594000 | P83: 98500 | Q83: 98500 | AA83: =SUM(O83:W83) -> 197000 | AB83: =SUM(O83:Z83) -> 197000
A84: 60 | B84: Vieux-Verchères | C84: Ville de Verchères | D84: Transport actif (volet 1) | E84: Transports | F84: 1 | G84: 16-Montérégie | H84: Verchères | I84: TE-Terminé | J84: SU-Subvention | K84: 216717 | L84: 2014-10-21 | M84: 2016-10-19 | N84: 433435 | P84: 108358.5 | R84: 108358.5 | AA84: =SUM(O84:W84) -> 216717 | AB84: =SUM(O84:Z84) -> 216717
A85: 61 | B85: Signalisation cyclable noyaux villageois. | C85: MRC / CLD de l'Ile-d'Orléans | D85: Transport actif (volet 1) | E85: Transports | F85: 1 | G85: 03-Capitale-Nationale | H85: MRC Île-d'Orléans | I85: TE-Terminé | J85: SU-Subvention | K85: 7773 | L85: 2014-10-21 | M85: 2014-12-11 | N85: 15545 | P85: 3887 | S85: 0 | AA85: =SUM(O85:W85) -> 3887 | AB85: =SUM(O85:Z85) -> 3887
A86: 62 | B86: Bandes cyclables secteur commercial et communautaire. | C86: Cantons unis de Stoneham-et-Tewkesbury | D86: Transport actif (volet 1) | E86: Transports | F86: 1 | G86: 03-Capitale-Nationale | H86: Stoneham-et-Tewkesbury | I86: TE-Terminé | J86: SU-Subvention | K86: 98400 | L86: 2014-10-15 | M86: 2016-08-08 | N86: 196800 | P86: 49200 | Q86: 49200 | AA86: =SUM(O86:W86) -> 98400 | AB86: =SUM(O86:Z86) -> 98400
A87: 63 | B87: Feux de circulation, train de l'Est, projet Oka-Mont-St-Hilaire, Antenne Longue-Pointe et canal de l'Aqueduc. | C87: Ville de Montréal | D87: Transport actif (volet 1) | E87: Transports | F87: 5 | G87: 06-Montréal | H87: Montréal | I87: AC-Actif | J87: SU-Subvention | K87: 2553568 | L87: 2014-10-02 | M87: 2014-12-11 | N87: 5836816 | P87: 1880784 | Q87: 172784 | S87: 500000 | AA87: =SUM(O87:W87) -> 2553568 | AB87: =SUM(O87:Z87) -> 2553568
A88: 64 | B88: Rue Laurier | C88: Montréal - Arrondissement Le Plateau-Mont-Royal) | D88: Transport actif (volet 1) | E88: Transports | F88: 1 | G88: 06-Montréal | H88: Montréal | I88: AC-Actif | J88: SU-Subvention | K88: 635100 | L88: 2014-10-01 | M88: 2014-12-14 | N88: 1408160 | P88: 381060 | Q88: 254040 | AA88: =SUM(O88:W88) -> 635100 | AB88: =SUM(O88:Z88) -> 635100
A89: 65 | B89: Apaisement de la circulation dans un corridor scolaire | C89: Municipalité de Saint-Amable | D89: Transport actif (volet 1) | E89: Transports | F89: 1 | G89: 16-Montérégie | H89: Saint-Amable | I89: TE-Terminé | J89: SU-Subvention | K89: 2465 | L89: 2014-09-26 | M89: 2014-11-05 | N89: 4930 | P89: 2465 | AA89: =SUM(O89:W89) -> 2465 | AB89: =SUM(O89:Z89) -> 2465
A90: 66 | B90: Passerelle | C90: Ville d'Alma | D90: Transport actif (volet 1) | E90: Transports | F90: 1 | G90: 02-Saguenay- Lac-Saint-Jean | H90: Alma | I90: TE-Terminé | J90: SU-Subvention | K90: 1000000 | L90: 2014-03-31 | M90: 2017-03-02 | N90: 4000000 | O90: 500000 | R90: 500000 | AA90: =SUM(O90:W90) -> 1000000 | AB90: =SUM(O90:Z90) -> 1000000
A91: 67 | B91: Boulevard Sardaigne | C91: Ville de Candiac | D91: Transport actif (volet 1) | E91: Transports | F91: 1 | G91: 16-Montérégie | H91: Candiac | I91: AC-Actif | J91: SU-Subvention | K91: 84000 | L91: 2014-03-31 | M91: 2014-04-22 | N91: 168000 | O91: 42000 | S91: 0 | T91: 42000 | V91: -42000 | AA91: =SUM(O91:W91) -> 42000 | AB91: =SUM(O91:Z91) -> 42000
A92: 68 | B92: Rue Jacques-Cartier | C92: Ville de Gatineau | D92: Transport actif (volet 1) | E92: Transports | F92: 1 | G92: 07-Outaouais | H92: Gatineau | I92: TE-Terminé | J92: SU-Subvention | K92: 402523 | L92: 2014-03-31 | M92: 2014-04-22 | N92: 805047 | O92: 201261 | P92: 120757.4 | Q92: 60377.45 | S92: 20127.15 | AA92: =SUM(O92:W92) -> 402523 | AB92: =SUM(O92:Z92) -> 402523
A93: 69 | B93: Connexion cyclable entre les quartiers | C93: Ville de Coaticook | D93: Transport actif (volet 1) | E93: Transports | F93: 1 | G93: 05-Estrie | H93: Coaticook | I93: TE-Terminé | J93: SU-Subvention | K93: 92494 | L93: 2014-03-31 | M93: 2014-04-22 | N93: 231234 | O93: 46247 | P93: 46247 | Q93: -29291.3 | AA93: =SUM(O93:W93) -> 63202.7 | AB93: =SUM(O93:Z93) -> 63202.7
A94: 70 | B94: Boulevard Portland | C94: Ville de Sherbrooke | D94: Transport actif (volet 1) | E94: Transports | F94: 1 | G94: 05-Estrie | H94: Sherbrooke | I94: TE-Terminé | J94: SU-Subvention | K94: 973205 | L94: 2014-03-31 | M94: 2014-04-22 | N94: 1946410 | O94: 486602 | S94: 0 | T94: 486603 | AA94: =SUM(O94:W94) -> 973205 | AB94: =SUM(O94:Z94) -> 973205
A95: 71 | B95: Apaisement de la circulation : École St-Arsène, St-Étienne et Ste-Bernadette-Soubirou | C95: Ville de Montréal Rosemont École St-Arsène | D95: Transport actif (volet 1) | E95: Transports | F95: 3 | G95: 06-Montréal | H95: Montréal | I95: AC-Actif | J95: SU-Subvention | K95: 164222 | L95: 2014-03-31 | M95: 2014-04-22 | N95: 679012 | O95: 82111 | Q95: 543.4 | S95: 0 | T95: 81568 | AA95: =SUM(O95:W95) -> 164222.4 | AB95: =SUM(O95:Z95) -> 164222.4
A96: 72 | B96: Traverse du chemin de fer du CP à la hauteur de Saint-Laurent et Bellechasse. | C96: Ville de Montréal Saint-Laurent Bellechasse | D96: Transport actif (volet 1) | E96: Transports | F96: 1 | G96: 06-Montréal | H96: Montréal | I96: AC-Actif | J96: SU-Subvention | K96: 280900 | L96: 2014-03-31 | M96: 2014-04-22 | N96: 611800 | O96: 140450 | P96: 22472 | Q96: 117978 | AA96: =SUM(O96:W96) -> 280900 | AB96: =SUM(O96:Z96) -> 280900
A97: 73 | B97: Piste centre-ville Causapscal | C97: MRC de la Matapédia | D97: Transport actif (volet 1) | E97: Transports | F97: 1 | G97: 11-Gaspésie-Iles-de-la-Madeleine | H97: Causapscal | I97: AN-Annulé | J97: SU-Subvention | K97: 90496 | L97: 2018-08-30 | N97: 207793 | T97: 90496 | V97: -90496 | AA97: =SUM(O97:W97) -> 0 | AB97: =SUM(O97:Z97) -> 0
A98: 74 | B98: Piste cyclable centre du village | C98: Saint-Marc-de-Figuery | D98: Transport actif (volet 1) | E98: Transports | F98: 1 | G98: 08-Abitibi-Témiscamingue | H98: Saint-Marc-de-Figuery | I98: TE-Terminé | J98: SU-Subvention | K98: 3319 | L98: 2018-08-30 | M98: 2019-06-26 | N98: 10138 | T98: 3319 | AA98: =SUM(O98:W98) -> 3319 | AB98: =SUM(O98:Z98) -> 3319
A99: 75 | B99: Piste du boulevard Montcalm Nord | C99: Ville de Candiac | D99: Transport actif (volet 1) | E99: Transports | F99: 1 | G99: 16-Montérégie | H99: Candiac | I99: AC-Actif | J99: SU-Subvention | K99: 375000 | L99: 2018-08-30 | M99: 2019-03-31 | N99: 750000 | T99: 375000 | AA99: =SUM(O99:W99) -> 375000 | AB99: =SUM(O99:Z99) -> 375000
A100: 76 | B100: Piste et passerelle du parc des Saules | C100: Ville de Québec | D100: Transport actif (volet 1) | E100: Transports | F100: 1 | G100: 03-Capitale-Nationale | H100: Québec | I100: AC-Actif | J100: SU-Subvention | K100: 1000000 | L100: 2018-08-30 | M100: 2019-03-31 | N100: 3000000 | T100: 1000000 | AA100: =SUM(O100:W100) -> 1000000 | AB100: =SUM(O100:Z100) -> 1000000
A101: 77 | B101: Piste du boulevard Taché, du Rapibus à Montcalm | C101: Ville de Gatineau | D101: Transport actif (volet 1) | E101: Transports | F101: 1 | G101: 07-Outaouais | H101: Gatineau | I101: AC-Actif | J101: SU-Subvention | K101: 146033 | L101: 2018-08-30 | M101: 2019-03-31 | N101: 341470 | T101: 146033 | V101: -20363 | AA101: =SUM(O101:W101) -> 125670 | AB101: =SUM(O101:Z101) -> 125670
A102: 78 | B102: Lien cyclo-pédestre entre la route 116 et la piste du Grand-Tronc | C102: Ville de Lévis | D102: Transport actif (volet 1) | E102: Transports | F102: 1 | G102: 12-Chaudières-Appalaches | H102: Lévis | I102: AC-Actif | J102: SU-Subvention | K102: 85000 | L102: 2018-08-30 | M102: 2019-03-31 | N102: 170000 | T102: 85000 | AA102: =SUM(O102:W102) -> 85000 | AB102: =SUM(O102:Z102) -> 85000
A103: 79 | B103: Bandes cyclables sur 21 segments dans la ville. | C103: Ville de Laval | D103: Transport actif (volet 1) | E103: Transports | F103: 1 | G103: 13-Laval | H103: Laval | I103: AC-Actif | J103: SU-Subvention | K103: 288924 | L103: 2018-08-30 | M103: 2019-03-31 | N103: 1391787 | T103: 288924 | AA103: =SUM(O103:W103) -> 288924 | AB103: =SUM(O103:Z103) -> 288924
A104: 80 | B104: Piste cyclable sur la 12e Avenue | C104: Ville de Sherbrooke | D104: Transport actif (volet 1) | E104: Transports | F104: 1 | G104: 05-Estrie | H104: Sherbrooke | I104: AC-Actif | J104: SU-Subvention | K104: 570256 | L104: 2018-08-30 | M104: 2019-03-31 | N104: 2000000 | T104: 570256 | AA104: =SUM(O104:W104) -> 570256 | AB104: =SUM(O104:Z104) -> 570256
A105: 81 | B105: 2e phase du projet de voie cyclable de la 3e Avenue (projet 2017-2018) | C105: Ville de Québec | D105: Transport actif (volet 1) | E105: Transports | F105: 1 | G105: 03-Capitale-Nationale | H105: Québec | I105: TE-Terminé | J105: SU-Subvention | K105: 68770 | L105: 2018-08-30 | M105: 2020-01-10 | N105: 303208 | T105: 68770 | V105: 0 | AA105: =SUM(O105:W105) -> 68770 | AB105: =SUM(O105:Z105) -> 68770
A106: 82 | B106: Piste du boulevard Royal | C106: Ville de Shawinigan | D106: Transport actif (volet 1) | E106: Transports | F106: 1 | G106: 04-Mauricie | H106: Shawinigan | I106: AC-Actif | J106: SU-Subvention | K106: 775000 | L106: 2018-08-30 | M106: 2019-03-31 | N106: 1550000 | T106: 1115316 | AA106: =SUM(O106:W106) -> 1115316 | AB106: =SUM(O106:Z106) -> 1115316
A107: 83 | B107: Piste de la rue Franck-Carrel | C107: Ville de Québec | D107: Transport actif (volet 1) | E107: Transports | F107: 1 | G107: 03-Capitale-Nationale | H107: Québec | I107: TE-Terminé | J107: SU-Subvention | K107: 569989 | L107: 2018-08-30 | M107: 2019-03-31 | N107: 1139979 | T107: 753332 | AA107: =SUM(O107:W107) -> 753332 | AB107: =SUM(O107:Z107) -> 753332
A108: 84 | B108: Lien entre une piste multifonctionnelle et la route 132 | C108: Ville de Bonaventure | D108: Transport actif (volet 1) | E108: Transports | F108: 1 | G108: 11-Gaspésie-Iles-de-la-Madeleine | H108: Bonaventure | I108: TE-Terminé | J108: SU-Subvention | K108: 20724 | L108: 2018-08-30 | M108: 2020-03-09 | N108: 50066 | T108: 20724 | AA108: =SUM(O108:W108) -> 20724 | AB108: =SUM(O108:Z108) -> 20724
A109: 85 | B109: Piste de la 3e Rue | C109: Ville de Shawinigan | D109: Transport actif (volet 1) | E109: Transports | F109: 1 | G109: 04-Mauricie | H109: Shawinigan | I109: AC-Actif | J109: SU-Subvention | K109: 212075 | L109: 2018-08-30 | M109: 2019-03-31 | N109: 424150 | T109: 212075 | AA109: =SUM(O109:W109) -> 212075 | AB109: =SUM(O109:Z109) -> 212075
A110: 86 | B110: Piste de la rue Garnier | C110: Ville de Shawinigan | D110: Transport actif (volet 1) | E110: Transports | F110: 1 | G110: 04-Mauricie | H110: Shawinigan | I110: AC-Actif | J110: SU-Subvention | K110: 130225 | L110: 2018-08-30 | M110: 2019-03-31 | N110: 290000 | T110: 130225 | AA110: =SUM(O110:W110) -> 130225 | AB110: =SUM(O110:Z110) -> 130225
A111: 87 | B111: Aménagement de corridors scolaires autour de deux écoles | C111: Ville de Saint-Honoré | D111: Transport actif (volet 1) | E111: Transports | F111: 1 | G111: 02-Saguenay- Lac-Saint-Jean | H111: Saint-Honoré | I111: TE-Terminé | J111: SU-Subvention | K111: 68250 | L111: 2018-08-30 | M111: 2020-02-26 | N111: 136500 | T111: 68250 | AA111: =SUM(O111:W111) -> 68250 | AB111: =SUM(O111:Z111) -> 68250
A112: 88 | B112: Apaisement de la circulation à Simone-Monet | C112: Ville de Montréal - Arr. CDN-NDG | D112: Transport actif (volet 1) | E112: Transports | F112: 1 | G112: 06-Montréal | H112: Montréal | I112: TE-Terminé | J112: SU-Subvention | K112: 92 | L112: 2018-08-30 | M112: 2019-03-31 | N112: 444349 | T112: 92 | AA112: =SUM(O112:W112) -> 92 | AB112: =SUM(O112:Z112) -> 92
A113: 89 | B113: Piste de la base de plein-air Sainte-Foy | C113: Ville de Québec | D113: Transport actif (volet 1) | E113: Transports | F113: 1 | G113: 03-Capitale-Nationale | H113: Québec | I113: TE-Terminé | J113: SU-Subvention | K113: 360174 | L113: 2018-08-30 | M113: 2019-03-31 | N113: 720379 | T113: 360174 | AA113: =SUM(O113:W113) -> 360174 | AB113: =SUM(O113:Z113) -> 360174
A114: 90 | B114: Apaisement de la circulation à l'école Bedford | C114: Ville de Montréal - Arr. CDN-NDG | D114: Transport actif (volet 1) | E114: Transports | F114: 1 | G114: 06-Montréal | H114: Montréal | I114: TE-Terminé | J114: SU-Subvention | K114: 250000 | L114: 2018-08-30 | M114: 2019-03-31 | N114: 563649 | T114: 250000 | AA114: =SUM(O114:W114) -> 250000 | AB114: =SUM(O114:Z114) -> 250000
A115: 91 | B115: Piste du boulevard Taché, de Ferme Moore à Saint-Dominique | C115: Ville de Gatineau | D115: Transport actif (volet 1) | E115: Transports | F115: 1 | G115: 07-Outaouais | H115: Gatineau | I115: TE-Terminé | J115: SU-Subvention | K115: 65988 | L115: 2018-08-30 | M115: 2019-03-31 | N115: 131977 | T115: 65988 | AA115: =SUM(O115:W115) -> 65988 | AB115: =SUM(O115:Z115) -> 65988
A116: 92 | B116: Apaisement de la circulation à l'Académie Beth-Rivkah | C116: Ville de Montréal - Arr. CDN-NDG | D116: Transport actif (volet 1) | E116: Transports | F116: 1 | G116: 06-Montréal | H116: Montréal | I116: TE-Terminé | J116: SU-Subvention | K116: 205571 | L116: 2018-08-30 | M116: 2019-03-31 | N116: 411141 | T116: 205571 | AA116: =SUM(O116:W116) -> 205571 | AB116: =SUM(O116:Z116) -> 205571
A117: 93 | B117: Apaisement de la circulation à l'école Des Nations | C117: Ville de Montréal - Arr. CDN-NDG | D117: Transport actif (volet 1) | E117: Transports | F117: 1 | G117: 06-Montréal | H117: Montréal | I117: TE-Terminé | J117: SU-Subvention | K117: 226093 | L117: 2018-08-30 | M117: 2019-03-31 | N117: 452186 | T117: 226093 | AA117: =SUM(O117:W117) -> 226093 | AB117: =SUM(O117:Z117) -> 226093
A118: 94 | B118: Piste rues Hubert, Biermans et Chahoon | C118: Ville de Shawinigan | D118: Transport actif (volet 1) | E118: Transports | F118: 1 | G118: 04-Mauricie | H118: Shawinigan | I118: AC-Actif | J118: SU-Subvention | K118: 1000000 | L118: 2018-08-30 | M118: 2019-03-31 | N118: 2000000 | T118: 1000000 | AA118: =SUM(O118:W118) -> 1000000 | AB118: =SUM(O118:Z118) -> 1000000
A119: 95 | B119: Piste multifonctionnelle parallèle à la route 132 | C119: Ville de Carleton-sur-Mer | D119: Transport actif (volet 1) | E119: Transports | F119: 1 | G119: 11-Gaspésie-Iles-de-la-Madeleine | H119: Carleton-sur-Mer | I119: AC-Actif | J119: SU-Subvention | K119: 35592 | L119: 2018-08-30 | M119: 2019-03-31 | N119: 71185 | T119: 35592 | AA119: =SUM(O119:W119) -> 35592 | AB119: =SUM(O119:Z119) -> 35592
A120: 96 | B120: Piste reliant le village au secteur des Jardins de Saint-Rémi | C120: Ville de Saint-Rémi | D120: Transport actif (volet 1) | E120: Transports | F120: 1 | G120: 16-Montérégie | H120: Saint-Rémi | I120: AC-Actif | J120: SU-Subvention | K120: 160000 | L120: 2018-08-30 | M120: 2019-03-31 | N120: 320000 | T120: 160000 | AA120: =SUM(O120:W120) -> 160000 | AB120: =SUM(O120:Z120) -> 160000
A121: 97 | B121: Apaisement de la circulation en milieu scolaire | C121: Municipalité d'Henryville | D121: Transport actif (volet 1) | E121: Transports | F121: 1 | G121: 16-Montérégie | H121: Henryville | I121: TE-Terminé | J121: SU-Subvention | K121: 19825 | L121: 2018-08-30 | M121: 2020-04-20 | N121: 45300 | T121: 19825 | AA121: =SUM(O121:W121) -> 19825 | AB121: =SUM(O121:Z121) -> 19825
A122: 98 | B122: Piste cyclable en milieu urbain | C122: Ville de Saint-Urbain-Premier | D122: Transport actif (volet 1) | E122: Transports | F122: 1 | G122: 16-Montérégie | H122: Saint-Urbain-Premier | I122: AC-Actif | J122: SU-Subvention | K122: 56837 | L122: 2018-08-30 | M122: 2019-03-31 | N122: 202736 | T122: 56837 | V122: -4781.33 | AA122: =SUM(O122:W122) -> 52055.67 | AB122: =SUM(O122:Z122) -> 52055.67
A123: 99 | B123: Piste cyclable dans une emprise d'H-Q à Sainte-Anne-de-Bellevue | C123: Ville de Montréal | D123: Transport actif (volet 1) | E123: Transports | F123: 1 | G123: 06-Montréal | H123: Montréal | I123: AC-Actif | J123: SU-Subvention | K123: 110506 | L123: 2018-08-30 | M123: 2019-03-31 | N123: 240944 | T123: 110506 | AA123: =SUM(O123:W123) -> 110506 | AB123: =SUM(O123:Z123) -> 110506
A124: 100 | B124: Apaisement de la circulation près d'une école au centre du village | C124: Municipalité de Notre-Dame-de-Laus | D124: Transport actif (volet 1) | E124: Transports | F124: 1 | G124: 15-Laurentides | H124: Notre-Dame-du-Laus | I124: TE-Terminé | J124: SU-Subvention | K124: 9350 | L124: 2018-08-30 | M124: 2020-05-15 | N124: 22300 | T124: 9350 | V124: -5386.72 | AA124: =SUM(O124:W124) -> 3963.28 | AB124: =SUM(O124:Z124) -> 3963.28
A125: 101 | B125: Abris 4 saisons pour vélo | C125: Ville de Montréal - Arr. Plateau-Mont-Royal | D125: Transport actif (volet 1) | E125: Transports | F125: 1 | G125: 06-Montréal | H125: Montréal | I125: TE-Terminé | J125: SU-Subvention | K125: 27000 | L125: 2018-08-30 | M125: 2019-03-31 | N125: 300000 | T125: 27000 | AA125: =SUM(O125:W125) -> 27000 | AB125: =SUM(O125:Z125) -> 27000
A126: 102 | B126: Piste de la rue des Ruisseaux | C126: Ville de Gatineau | D126: Transport actif (volet 1) | E126: Transports | F126: 1 | G126: 07-Outaouais | H126: Gatineau | I126: AC-Actif | J126: SU-Subvention | K126: 246170 | L126: 2018-08-30 | M126: 2019-03-31 | N126: 598093 | T126: 246170 | AA126: =SUM(O126:W126) -> 246170 | AB126: =SUM(O126:Z126) -> 246170
A127: 103 | B127: Apaisement de la circulation à l'école Les-Enfants-du-Monde | C127: Ville de Montréal - Arr. CDN-NDG | D127: Transport actif (volet 1) | E127: Transports | F127: 1 | G127: 06-Montréal | H127: Montréal | I127: TE-Terminé | J127: SU-Subvention | K127: 180914 | L127: 2018-08-30 | M127: 2019-03-31 | N127: 361828 | T127: 180914 | AA127: =SUM(O127:W127) -> 180914 | AB127: =SUM(O127:Z127) -> 180914
A128: 104 | B128: Apaisement de la circulation à l'école Saint-Raymond | C128: Ville de Montréal - Arr. CDN-NDG | D128: Transport actif (volet 1) | E128: Transports | F128: 1 | G128: 06-Montréal | H128: Montréal | I128: TE-Terminé | J128: SU-Subvention | K128: 89653 | L128: 2018-08-30 | M128: 2019-03-31 | N128: 179305 | T128: 89653 | AA128: =SUM(O128:W128) -> 89653 | AB128: =SUM(O128:Z128) -> 89653
A129: 105 | B129: Piste multifonctionnelle et voies cyclables des rues Demsey, Proudfoot, Principale et Romain. | C129: Municipalité de Fort-Coulonge | D129: Transport actif (volet 1) | E129: Transports | F129: 1 | G129: 07-Outaouais | H129: Fort-Coulonge | I129: AC-Actif | J129: SU-Subvention | K129: 51566 | L129: 2018-08-30 | M129: 2019-03-31 | N129: 103114 | T129: 51566 | AA129: =SUM(O129:W129) -> 51566 | AB129: =SUM(O129:Z129) -> 51566
A130: 106 | B130: Sentier rue Westem | C130: Ville de Waterloo | D130: Transport actif (volet 1) | E130: Transports | F130: 1 | G130: 16-Montérégie | H130: Ville de Waterloo | I130: TE-Terminé | J130: SU-Subvention | K130: 147304 | L130: 2020-03-31 | M130: 2020-04-22 | N130: 294608 | U130: 117843 | W130: 10552 | AA130: =SUM(O130:W130) -> 128395 | AB130: =SUM(O130:Z130) -> 128395
A131: 107 | B131: Piste rue St-Hubert | C131: Ville de Granby | D131: Transport actif (volet 1) | E131: Transports | F131: 1 | G131: 16-Montérégie | H131: Ville de Granby | I131: TE-Terminé | J131: SU-Subvention | K131: 1379130 | L131: 2020-03-31 | M131: 2020-04-22 | N131: 2785000 | U131: 1103304 | W131: 275826 | AA131: =SUM(O131:W131) -> 1379130 | AB131: =SUM(O131:Z131) -> 1379130
A132: 108 | B132: Sentier polyvalent | C132: Municipalité du Canton d'Orford | D132: Transport actif (volet 1) | E132: Transports | F132: 1 | G132: 05-Estrie | H132: Municipalité du Canton d'Orford | I132: AC-Actif | J132: SU-Subvention | K132: 139682 | L132: 2020-03-31 | M132: 2020-04-22 | N132: 279364 | U132: 111746 | W132: 27936 | AA132: =SUM(O132:W132) -> 139682 | AB132: =SUM(O132:Z132) -> 139682
A133: 109 | B133: Piste cyclable bidirectionnelle | C133: Ville de Bromont | D133: Transport actif (volet 1) | E133: Transports | F133: 1 | G133: 16-Montérégie | H133: Ville de Bromont | I133: AC-Actif | J133: SU-Subvention | K133: 545350 | L133: 2020-03-31 | M133: 2020-04-22 | N133: 1200000 | U133: 436280 | W133: 109070 | AA133: =SUM(O133:W133) -> 545350 | AB133: =SUM(O133:Z133) -> 545350
A134: 110 | B134: Piste route 108 | C134: Municipalité de Lambton | D134: Transport actif (volet 1) | E134: Transports | F134: 1 | G134: 05-Estrie | H134: Municipalité de Lambton | I134: AC-Actif | J134: SU-Subvention | K134: 120000 | L134: 2020-03-31 | M134: 2020-04-22 | N134: 249000 | U134: 96000 | W134: 24000 | AA134: =SUM(O134:W134) -> 120000 | AB134: =SUM(O134:Z134) -> 120000
A135: 111 | B135: Sentier Donnacona | C135: Ville de Donnacona | D135: Transport actif (volet 1) | E135: Transports | F135: 1 | G135: 03-Capitale-Nationale | H135: Ville de Donnacona | I135: AC-Actif | J135: SU-Subvention | K135: 250000 | L135: 2020-03-31 | M135: 2020-04-22 | N135: 500000 | U135: 200000 | W135: 50000 | AA135: =SUM(O135:W135) -> 250000 | AB135: =SUM(O135:Z135) -> 250000
A136: 112 | B136: Infra cyc. L-Beauport | C136: Municipalité de Lac-Beauport | D136: Transport actif (volet 1) | E136: Transports | F136: 1 | G136: 03-Capitale-Nationale | H136: Municipalité de Lac-Beauport | I136: AC-Actif | J136: SU-Subvention | K136: 95250 | L136: 2020-03-31 | M136: 2020-04-22 | N136: 217500 | U136: 76200 | W136: 19050 | AA136: =SUM(O136:W136) -> 95250 | AB136: =SUM(O136:Z136) -> 95250
A137: 113 | B137: Piste cyclo Québec | C137: Ville de Québec | D137: Transport actif (volet 1) | E137: Transports | F137: 1 | G137: 03-Capitale-Nationale | H137: Ville de Québec | I137: TE-Terminé | J137: SU-Subvention | K137: 172593 | L137: 2020-03-31 | M137: 2020-04-22 | N137: 345186 | U137: 138074 | W137: 30116 | AA137: =SUM(O137:W137) -> 168190 | AB137: =SUM(O137:Z137) -> 168190
A138: 114 | B138: Rang Montagne | C138: Municipalité de Mont-Saint-Grégoire | D138: Transport actif (volet 1) | E138: Transports | F138: 1 | G138: 16-Montérégie | H138: Municipalité de Mont-Saint-Grégoire | I138: TE-Terminé | J138: SU-Subvention | K138: 120375 | L138: 2020-03-31 | M138: 2020-04-22 | N138: 283500 | U138: 96300 | W138: 13705 | AA138: =SUM(O138:W138) -> 110005 | AB138: =SUM(O138:Z138) -> 110005
A139: 115 | B139: Rue Gilmore | C139: Municipalité de Mont-Saint-Grégoire | D139: Transport actif (volet 1) | E139: Transports | F139: 1 | G139: 16-Montérégie | H139: Municipalité de Mont-Saint-Grégoire | I139: AC-Actif | J139: SU-Subvention | K139: 27900 | L139: 2020-03-31 | M139: 2020-04-22 | N139: 56200 | U139: 22320 | W139: 5580 | AA139: =SUM(O139:W139) -> 27900 | AB139: =SUM(O139:Z139) -> 27900
A140: 116 | B140: Secteur Sud ville | C140: Ville de Salaberry-de-Valleyfield | D140: Transport actif (volet 1) | E140: Transports | F140: 1 | G140: 16-Montérégie | H140: Ville de Salaberry-de-Valleyfield | I140: AC-Actif | J140: SU-Subvention | K140: 761899 | L140: 2020-03-31 | M140: 2020-04-22 | N140: 2113881 | U140: 609519 | W140: 152380 | AA140: =SUM(O140:W140) -> 761899 | AB140: =SUM(O140:Z140) -> 761899
A141: 117 | B141: Boul. Casavant O. | C141: Ville Saint-Hyacinthe | D141: Transport actif (volet 1) | E141: Transports | F141: 1 | G141: 16-Montérégie | H141: Ville Saint-Hyacinthe | I141: AC-Actif | J141: SU-Subvention | K141: 280939 | L141: 2020-03-31 | M141: 2020-04-22 | N141: 561878 | U141: 224751 | W141: 56188 | AA141: =SUM(O141:W141) -> 280939 | AB141: =SUM(O141:Z141) -> 280939
A142: 118 | B142: Piste cyclable | C142: Ville de Lachute | D142: Transport actif (volet 1) | E142: Transports | F142: 1 | G142: 15-Laurentides | H142: Ville de Lachute | I142: AC-Actif | J142: SU-Subvention | K142: 337750 | L142: 2020-03-31 | M142: 2020-04-22 | N142: 675500 | U142: 270200 | W142: 67550 | AA142: =SUM(O142:W142) -> 337750 | AB142: =SUM(O142:Z142) -> 337750
A143: 119 | B143: Réseau cyclable | C143: Ville de Carleton-sur-Mer | D143: Transport actif (volet 1) | E143: Transports | F143: 1 | G143: 11-Gaspésie-Iles-de-la-Madeleine | H143: Ville de Carleton-sur-Mer | I143: AC-Actif | J143: SU-Subvention | K143: 32000 | L143: 2020-03-31 | M143: 2020-04-22 | N143: 64000 | U143: 25600 | W143: 6400 | AA143: =SUM(O143:W143) -> 32000 | AB143: =SUM(O143:Z143) -> 32000
A144: 120 | B144: P. Cyclable Riv. au Renard | C144: Ville de Gaspé | D144: Transport actif (volet 1) | E144: Transports | F144: 1 | G144: 11-Gaspésie-Iles-de-la-Madeleine | H144: Ville de Gaspé | I144: AC-Actif | J144: SU-Subvention | K144: 185238 | L144: 2020-03-31 | M144: 2020-04-22 | N144: 1179235 | U144: 148190 | W144: 37048 | AA144: =SUM(O144:W144) -> 185238 | AB144: =SUM(O144:Z144) -> 185238
A145: 121 | B145: Emprise ferr. | C145: Ville de Charlemagne | D145: Transport actif (volet 1) | E145: Transports | F145: 1 | G145: 15-Laurentides | H145: Ville de Charlemagne | I145: AC-Actif | J145: SU-Subvention | K145: 230800 | L145: 2020-03-31 | M145: 2020-04-22 | N145: 461600 | U145: 184640 | W145: 46160 | AA145: =SUM(O145:W145) -> 230800 | AB145: =SUM(O145:Z145) -> 230800
A146: 122 | B146: Hector-Lanthier | C146: Ville de Saint-Eustache | D146: Transport actif (volet 1) | E146: Transports | F146: 1 | G146: 15-Laurentides | H146: Ville de Saint-Eustache | I146: AC-Actif | J146: SU-Subvention | K146: 271600 | L146: 2020-03-31 | M146: 2020-04-22 | N146: 543200 | U146: 217280 | W146: 54320 | AA146: =SUM(O146:W146) -> 271600 | AB146: =SUM(O146:Z146) -> 271600
A147: 123 | B147: Passerelle | C147: Ville de L'Assomption | D147: Transport actif (volet 1) | E147: Transports | F147: 1 | G147: 15-Laurentides | H147: Ville de L'Assomption | I147: AC-Actif | J147: SU-Subvention | K147: 1689000 | L147: 2020-03-31 | M147: 2020-04-22 | N147: 3378000 | U147: 1351200 | W147: 337800 | AA147: =SUM(O147:W147) -> 1689000 | AB147: =SUM(O147:Z147) -> 1689000
A148: 124 | B148: Arthur-Sauvé | C148: Ville de Laval | D148: Transport actif (volet 1) | E148: Transports | F148: 1 | G148: 13-Laval | H148: Ville de Laval | I148: AC-Actif | J148: SU-Subvention | K148: 26275 | L148: 2020-03-31 | M148: 2020-04-22 | N148: 52550 | U148: 21020 | W148: 5255 | AA148: =SUM(O148:W148) -> 26275 | AB148: =SUM(O148:Z148) -> 26275
A149: 125 | B149: Curé-Labelle | C149: Ville de Laval | D149: Transport actif (volet 1) | E149: Transports | F149: 1 | G149: 13-Laval | H149: Ville de Laval | I149: AC-Actif | J149: SU-Subvention | K149: 200513 | L149: 2020-03-31 | M149: 2020-04-22 | N149: 401026 | U149: 160410 | W149: 40103 | AA149: =SUM(O149:W149) -> 200513 | AB149: =SUM(O149:Z149) -> 200513
A150: 126 | B150: Parcours Écoles | C150: Ville de Laval | D150: Transport actif (volet 1) | E150: Transports | F150: 1 | G150: 13-Laval | H150: Ville de Laval | I150: AC-Actif | J150: SU-Subvention | K150: 888064 | L150: 2020-03-31 | M150: 2020-04-22 | N150: 1776131 | U150: 710451 | W150: 177613 | AA150: =SUM(O150:W150) -> 888064 | AB150: =SUM(O150:Z150) -> 888064
A151: 127 | B151: St-Martin O. | C151: Ville de Laval | D151: Transport actif (volet 1) | E151: Transports | F151: 1 | G151: 13-Laval | H151: Ville de Laval | I151: AC-Actif | J151: SU-Subvention | K151: 60000 | L151: 2020-03-31 | M151: 2020-04-22 | N151: 579475 | U151: 48000 | W151: 12000 | AA151: =SUM(O151:W151) -> 60000 | AB151: =SUM(O151:Z151) -> 60000
A152: 128 | B152: Inters. 132-204 | C152: Municipalité de Saint-Jean-Port-Joli | D152: Transport actif (volet 1) | E152: Transports | F152: 1 | G152: 12-Chaudières-Appalaches | H152: Municipalité de Saint-Jean-Port-Joli | I152: AC-Actif | J152: SU-Subvention | K152: 41672 | L152: 2020-03-31 | M152: 2020-04-22 | N152: 74250 | U152: 33338 | V152: 6745 | W152: 1589 | AA152: =SUM(O152:W152) -> 41672 | AB152: =SUM(O152:Z152) -> 41672
A153: 129 | B153: Piste boul. Taché | C153: Ville de Montmagny | D153: Transport actif (volet 1) | E153: Transports | F153: 1 | G153: 12-Chaudières-Appalaches | H153: Ville de Montmagny | I153: AC-Actif | J153: SU-Subvention | K153: 44420 | L153: 2020-03-31 | M153: 2020-04-22 | N153: 88840 | U153: 35536 | W153: 8884 | AA153: =SUM(O153:W153) -> 44420 | AB153: =SUM(O153:Z153) -> 44420
A154: 130 | B154: 30e Rue et 1ere Avenue | C154: Municipalité de la Paroisse de Notre-Dame-des-Pins | D154: Transport actif (volet 1) | E154: Transports | F154: 1 | G154: 12-Chaudières-Appalaches | H154: Municipalité de la Paroisse de Notre-Dame-des-Pins | I154: AC-Actif | J154: SU-Subvention | K154: 299286 | L154: 2020-03-31 | M154: 2020-04-22 | N154: 598572 | U154: 239429 | W154: 59857 | AA154: =SUM(O154:W154) -> 299286 | AB154: =SUM(O154:Z154) -> 299286
A155: 131 | B155: Tunnel Exo | C155: Ville de Vaudreuil-Dorion | D155: Transport actif (volet 1) | E155: Transports | F155: 1 | G155: 16-Montérégie | H155: Ville de Vaudreuil-Dorion | I155: AC-Actif | J155: SU-Subvention | K155: 1744003 | L155: 2020-03-31 | M155: 2020-04-22 | N155: 3488007 | U155: 1395202 | W155: 348801 | AA155: =SUM(O155:W155) -> 1744003 | AB155: =SUM(O155:Z155) -> 1744003
A156: 132 | B156: Rue Ampère | C156: Ville de Boucherville | D156: Transport actif (volet 1) | E156: Transports | F156: 1 | G156: 16-Montérégie | H156: Ville de Boucherville | I156: AC-Actif | J156: SU-Subvention | K156: 655810 | L156: 2020-03-31 | M156: 2020-04-22 | N156: 1311619 | U156: 524648 | W156: 131162 | AA156: =SUM(O156:W156) -> 655810 | AB156: =SUM(O156:Z156) -> 655810
A157: 133 | B157: Avenue Fouquet | C157: Ville de Candiac | D157: Transport actif (volet 1) | E157: Transports | F157: 1 | G157: 16-Montérégie | H157: Ville de Candiac | I157: AC-Actif | J157: SU-Subvention | K157: 29000 | L157: 2020-03-31 | M157: 2020-04-22 | N157: 523136 | U157: 23200 | W157: 5800 | AA157: =SUM(O157:W157) -> 29000 | AB157: =SUM(O157:Z157) -> 29000
A158: 134 | B158: Piste cyclable | C158: Ville de Chambly | D158: Transport actif (volet 1) | E158: Transports | F158: 1 | G158: 16-Montérégie | H158: Ville de Chambly | I158: AC-Actif | J158: SU-Subvention | K158: 185120 | L158: 2020-03-31 | M158: 2020-04-22 | N158: 596084 | U158: 148096 | V158: 37024 | AA158: =SUM(O158:W158) -> 185120 | AB158: =SUM(O158:Z158) -> 185120
A159: 135 | B159: Avenue Mont-Bruno | C159: Ville de Saint-Basile-le-Grand | D159: Transport actif (volet 1) | E159: Transports | F159: 1 | G159: 16-Montérégie | H159: Ville de Saint-Basile-le-Grand | I159: AC-Actif | J159: SU-Subvention | K159: 99676 | L159: 2020-03-31 | M159: 2020-04-22 | N159: 199352 | U159: 79741 | W159: 19935 | AA159: =SUM(O159:W159) -> 99676 | AB159: =SUM(O159:Z159) -> 99676
A160: 136 | B160: A-Frappier Paris | C160: Ville de Sainte-Julie | D160: Transport actif (volet 1) | E160: Transports | F160: 1 | G160: 16-Montérégie | H160: Ville de Sainte-Julie | I160: TE-Terminé | J160: SU-Subvention | K160: 93500 | L160: 2020-03-31 | M160: 2020-04-22 | N160: 187000 | U160: 74800 | W160: 8466 | AA160: =SUM(O160:W160) -> 83266 | AB160: =SUM(O160:Z160) -> 83266
A161: 137 | B161: A-Frappier - A20 | C161: Ville de Sainte-Julie | D161: Transport actif (volet 1) | E161: Transports | F161: 1 | G161: 16-Montérégie | H161: Ville de Sainte-Julie | I161: TE-Terminé | J161: SU-Subvention | K161: 122500 | L161: 2020-03-31 | M161: 2020-04-22 | N161: 245000 | U161: 98000 | W161: 24500 | AA161: =SUM(O161:W161) -> 122500 | AB161: =SUM(O161:Z161) -> 122500
A162: 138 | B162: Rue Borduas | C162: Ville de Sainte-Julie | D162: Transport actif (volet 1) | E162: Transports | F162: 1 | G162: 16-Montérégie | H162: Ville de Sainte-Julie | I162: TE-Terminé | J162: SU-Subvention | K162: 100000 | L162: 2020-03-31 | M162: 2020-04-22 | N162: 200000 | U162: 80000 | W162: 20000 | AA162: =SUM(O162:W162) -> 100000 | AB162: =SUM(O162:Z162) -> 100000
A163: 139 | B163: Rue Robert | C163: Municipalité de Saint-Jean-Baptiste | D163: Transport actif (volet 1) | E163: Transports | F163: 1 | G163: 16-Montérégie | H163: Municipalité de Saint-Jean-Baptiste | I163: AC-Actif | J163: SU-Subvention | K163: 90275 | L163: 2020-03-31 | M163: 2020-04-22 | N163: 180550 | U163: 72220 | AA163: =SUM(O163:W163) -> 72220 | AB163: =SUM(O163:Z163) -> 72220
A164: 140 | B164: Viaduc Chenaux | C164: Ville de Vaudreuil-Dorion | D164: Transport actif (volet 1) | E164: Transports | F164: 1 | G164: 16-Montérégie | H164: Ville de Vaudreuil-Dorion | I164: AC-Actif | J164: SU-Subvention | K164: 205647 | L164: 2020-03-31 | M164: 2020-04-22 | N164: 411294 | U164: 164518 | AA164: =SUM(O164:W164) -> 164518 | AB164: =SUM(O164:Z164) -> 164518
A165: 141 | B165: Nénuphars | C165: Ville de Vaudreuil-Dorion | D165: Transport actif (volet 1) | E165: Transports | F165: 1 | G165: 16-Montérégie | H165: Ville de Vaudreuil-Dorion | I165: AC-Actif | J165: SU-Subvention | K165: 415500 | L165: 2020-03-31 | M165: 2020-04-22 | N165: 831000 | U165: 332400 | AA165: =SUM(O165:W165) -> 332400 | AB165: =SUM(O165:Z165) -> 332400
A166: 142 | B166: RPP - St-Zotique | C166: Ville de Montréal | D166: Transport actif (volet 1) | E166: Transports | F166: 1 | G166: 06-Montréal | H166: Ville de Montréal | I166: AC-Actif | J166: SU-Subvention | K166: 25133 | L166: 2020-03-31 | M166: 2020-04-22 | N166: 47850 | U166: 20106 | AA166: =SUM(O166:W166) -> 20106 | AB166: =SUM(O166:Z166) -> 20106
A167: 143 | B167: RPP - Station | C167: Ville de Montréal | D167: Transport actif (volet 1) | E167: Transports | F167: 1 | G167: 06-Montréal | H167: Ville de Montréal | I167: AC-Actif | J167: SU-Subvention | K167: 116116 | L167: 2020-03-31 | M167: 2020-04-22 | N167: 232232 | U167: 92893 | AA167: =SUM(O167:W167) -> 92893 | AB167: =SUM(O167:Z167) -> 92893
A168: 144 | B168: RPP - Bellechasse | C168: Ville de Montréal | D168: Transport actif (volet 1) | E168: Transports | F168: 1 | G168: 06-Montréal | H168: Ville de Montréal | I168: AC-Actif | J168: SU-Subvention | K168: 130798 | L168: 2020-03-31 | M168: 2020-04-22 | N168: 385781 | U168: 104638 | AA168: =SUM(O168:W168) -> 104638 | AB168: =SUM(O168:Z168) -> 104638
A169: 145 | B169: CDN - Yeshiva | C169: Ville de Montréal | D169: Transport actif (volet 1) | E169: Transports | F169: 1 | G169: 06-Montréal | H169: Ville de Montréal | I169: AC-Actif | J169: SU-Subvention | K169: 96571 | L169: 2020-03-31 | M169: 2020-04-22 | N169: 211515 | U169: 77257 | AA169: =SUM(O169:W169) -> 77257 | AB169: =SUM(O169:Z169) -> 77257
A170: 146 | B170: CDN - Supports vélo | C170: Ville de Montréal | D170: Transport actif (volet 1) | E170: Transports | F170: 1 | G170: 06-Montréal | H170: Ville de Montréal | I170: AC-Actif | J170: SU-Subvention | K170: 67500 | L170: 2020-03-31 | M170: 2020-04-22 | N170: 67500 | U170: 54000 | AA170: =SUM(O170:W170) -> 54000 | AB170: =SUM(O170:Z170) -> 54000
A171: 147 | B171: CDN - ND-des-Neiges | C171: Ville de Montréal | D171: Transport actif (volet 1) | E171: Transports | F171: 1 | G171: 06-Montréal | H171: Ville de Montréal | I171: AC-Actif | J171: SU-Subvention | K171: 33768 | L171: 2020-03-31 | M171: 2020-04-22 | N171: 71064 | U171: 27014 | AA171: =SUM(O171:W171) -> 27014 | AB171: =SUM(O171:Z171) -> 27014
A172: 148 | B172: CDN - L-Teasdale | C172: Ville de Montréal | D172: Transport actif (volet 1) | E172: Transports | F172: 1 | G172: 06-Montréal | H172: Ville de Montréal | I172: AC-Actif | J172: SU-Subvention | K172: 49880 | L172: 2020-03-31 | M172: 2020-04-22 | N172: 110285 | U172: 39904 | AA172: =SUM(O172:W172) -> 39904 | AB172: =SUM(O172:Z172) -> 39904
A173: 149 | B173: Piste H-Q | C173: Ville de Trois-Rivières | D173: Transport actif (volet 1) | E173: Transports | F173: 1 | G173: 04-Mauricie | H173: Ville de Trois-Rivières | I173: AC-Actif | J173: SU-Subvention | K173: 614250 | L173: 2020-03-31 | M173: 2020-04-22 | N173: 1228500 | U173: 491400 | AA173: =SUM(O173:W173) -> 491400 | AB173: =SUM(O173:Z173) -> 491400
A174: 150 | B174: Bellefeuille | C174: Ville de Trois-Rivières | D174: Transport actif (volet 1) | E174: Transports | F174: 1 | G174: 04-Mauricie | H174: Ville de Trois-Rivières | I174: TE-Terminé | J174: SU-Subvention | K174: 304375 | L174: 2020-03-31 | M174: 2020-04-22 | N174: 1199000 | U174: 243500 | W174: 60875 | AA174: =SUM(O174:W174) -> 304375 | AB174: =SUM(O174:Z174) -> 304375
A175: 151 | B175: Rue Pelletier | C175: Ville de Drummondville | D175: Transport actif (volet 1) | E175: Transports | F175: 1 | G175: 17-Centre-du-Québec | H175: Ville de Drummondville | I175: AC-Actif | J175: SU-Subvention | K175: 100950 | L175: 2020-03-31 | M175: 2020-04-22 | N175: 201900 | U175: 80760 | AA175: =SUM(O175:W175) -> 80760 | AB175: =SUM(O175:Z175) -> 80760
A176: 152 | B176: Grande-Allée | C176: Ville de Drummondville | D176: Transport actif (volet 1) | E176: Transports | F176: 1 | G176: 17-Centre-du-Québec | H176: Ville de Drummondville | I176: AC-Actif | J176: SU-Subvention | K176: 307624 | L176: 2020-03-31 | M176: 2020-04-22 | N176: 615248 | U176: 246099 | AA176: =SUM(O176:W176) -> 246099 | AB176: =SUM(O176:Z176) -> 246099
A177: 153 | B177: Feux Évêché/Rivière | C177: Ville de Rimouski | D177: Transport actif (volet 1) | E177: Transports | F177: 1 | G177: 01-Bas-Saint-Laurent | H177: Ville de Rimouski | I177: AC-Actif | J177: SU-Subvention | K177: 26000 | L177: 2020-03-31 | M177: 2020-04-22 | N177: 52000 | U177: 20800 | AA177: =SUM(O177:W177) -> 20800 | AB177: =SUM(O177:Z177) -> 20800
A178: 154 | B178: Feux Roul/St-J.-Bapt | C178: Ville de Rimouski | D178: Transport actif (volet 1) | E178: Transports | F178: 1 | G178: 01-Bas-Saint-Laurent | H178: Ville de Rimouski | I178: AC-Actif | J178: SU-Subvention | K178: 30300 | L178: 2020-03-31 | M178: 2020-04-22 | N178: 60600 | U178: 24240 | AA178: =SUM(O178:W178) -> 24240 | AB178: =SUM(O178:Z178) -> 24240
A179: 155 | B179: Ferm. rue Ste-Marie | C179: Ville de Rimouski | D179: Transport actif (volet 1) | E179: Transports | F179: 1 | G179: 01-Bas-Saint-Laurent | H179: Ville de Rimouski | I179: AC-Actif | J179: SU-Subvention | K179: 12500 | L179: 2020-03-31 | M179: 2020-04-22 | N179: 25000 | U179: 10000 | AA179: =SUM(O179:W179) -> 10000 | AB179: =SUM(O179:Z179) -> 10000
A180: 156 | B180: Amén. rue St-Pierre | C180: Ville de Rimouski | D180: Transport actif (volet 1) | E180: Transports | F180: 1 | G180: 01-Bas-Saint-Laurent | H180: Ville de Rimouski | I180: AC-Actif | J180: SU-Subvention | K180: 132750 | L180: 2020-03-31 | M180: 2020-04-22 | N180: 265500 | U180: 106200 | AA180: =SUM(O180:W180) -> 106200 | AB180: =SUM(O180:Z180) -> 106200
A181: 157 | B181: P. bidirectionelle | C181: Ville de Rimouski | D181: Transport actif (volet 1) | E181: Transports | F181: 1 | G181: 01-Bas-Saint-Laurent | H181: Ville de Rimouski | I181: AC-Actif | J181: SU-Subvention | K181: 40500 | L181: 2020-03-31 | M181: 2020-04-22 | N181: 81000 | U181: 32400 | AA181: =SUM(O181:W181) -> 32400 | AB181: =SUM(O181:Z181) -> 32400
A182: 158 | B182: CDN École Prep international | C182: Ville de Montréal | D182: Transport actif (volet 1) | E182: Transports | F182: 1 | G182: 06-Montréal | H182: Ville de Montréal | I182: AC-Actif | J182: SU-Subvention | K182: 55099 | L182: 2020-03-31 | M182: 2020-04-22 | N182: 110198 | U182: 44079 | AA182: =SUM(O182:W182) -> 44079 | AB182: =SUM(O182:Z182) -> 44079
A183: 159 | B183: CND - Réam. École Iona | C183: Ville de Montréal | D183: Transport actif (volet 1) | E183: Transports | F183: 1 | G183: 06-Montréal | H183: Ville de Montréal | I183: AC-Actif | J183: SU-Subvention | K183: 250000 | L183: 2020-03-31 | M183: 2020-04-22 | N183: 877835 | U183: 200000 | AA183: =SUM(O183:W183) -> 200000 | AB183: =SUM(O183:Z183) -> 200000
A184: 160 | B184: AHU E. Louisbourg | C184: Ville de Montréal | D184: Transport actif (volet 1) | E184: Transports | F184: 1 | G184: 06-Montréal | H184: Ville de Montréal | I184: AC-Actif | J184: SU-Subvention | K184: 94000 | L184: 2020-03-31 | M184: 2020-04-22 | N184: 188000 | U184: 75200 | AA184: =SUM(O184:W184) -> 75200 | AB184: =SUM(O184:Z184) -> 75200
A185: 161 | B185: AHU - Laval/Roscelli | C185: Ville de Montréal | D185: Transport actif (volet 1) | E185: Transports | F185: 1 | G185: 06-Montréal | H185: Ville de Montréal | I185: AC-Actif | J185: SU-Subvention | K185: 243850 | L185: 2020-03-31 | M185: 2020-04-22 | N185: 487700 | U185: 195080 | AA185: =SUM(O185:W185) -> 195080 | AB185: =SUM(O185:Z185) -> 195080
A186: 162 | B186: CDN - Pas de géant | C186: Ville de Montréal | D186: Transport actif (volet 1) | E186: Transports | F186: 1 | G186: 06-Montréal | H186: Ville de Montréal | I186: AC-Actif | J186: SU-Subvention | K186: 103425 | L186: 2020-03-31 | M186: 2020-04-22 | N186: 226580 | U186: 82740 | AA186: =SUM(O186:W186) -> 82740 | AB186: =SUM(O186:Z186) -> 82740
A187: 163 | B187: CDN/A. Talmud Torah | C187: Ville de Montréal | D187: Transport actif (volet 1) | E187: Transports | F187: 1 | G187: 06-Montréal | H187: Ville de Montréal | I187: AC-Actif | J187: SU-Subvention | K187: 250000 | L187: 2020-03-31 | M187: 2020-04-22 | N187: 598496 | U187: 200000 | AA187: =SUM(O187:W187) -> 200000 | AB187: =SUM(O187:Z187) -> 200000
A188: 164 | B188: CDN/5-Continents | C188: Ville de Montréal | D188: Transport actif (volet 1) | E188: Transports | F188: 1 | G188: 06-Montréal | H188: Ville de Montréal | I188: AC-Actif | J188: SU-Subvention | K188: 74365 | L188: 2020-03-31 | M188: 2020-04-22 | N188: 148730 | U188: 59492 | AA188: =SUM(O188:W188) -> 59492 | AB188: =SUM(O188:Z188) -> 59492
A189: 165 | B189: AHU Caboto/Apôtre | C189: Ville de Montréal | D189: Transport actif (volet 1) | E189: Transports | F189: 1 | G189: 06-Montréal | H189: Ville de Montréal | I189: AC-Actif | J189: SU-Subvention | K189: 133000 | L189: 2020-03-31 | M189: 2020-04-22 | N189: 266600 | U189: 106400 | AA189: =SUM(O189:W189) -> 106400 | AB189: =SUM(O189:Z189) -> 106400
A190: 166 | B190: AHU É. Visitation | C190: Ville de Montréal | D190: Transport actif (volet 1) | E190: Transports | F190: 1 | G190: 06-Montréal | H190: Ville de Montréal | I190: AC-Actif | J190: SU-Subvention | K190: 161500 | L190: 2020-03-31 | M190: 2020-04-22 | N190: 323000 | U190: 129200 | AA190: =SUM(O190:W190) -> 129200 | AB190: =SUM(O190:Z190) -> 129200
A191: 167 | B191: CDN - Réam. Félix-L. | C191: Ville de Montréal | D191: Transport actif (volet 1) | E191: Transports | F191: 1 | G191: 06-Montréal | H191: Ville de Montréal | I191: AC-Actif | J191: SU-Subvention | K191: 140263 | L191: 2020-03-31 | M191: 2020-04-22 | N191: 280527 | U191: 112210 | AA191: =SUM(O191:W191) -> 112210 | AB191: =SUM(O191:Z191) -> 112210
A192: 168 | B192: CDN - Réam. Enf.monde | C192: Ville de Montréal | D192: Transport actif (volet 1) | E192: Transports | F192: 1 | G192: 06-Montréal | H192: Ville de Montréal | I192: AC-Actif | J192: SU-Subvention | K192: 22138 | L192: 2020-03-31 | M192: 2020-04-22 | N192: 44277 | U192: 17710 | AA192: =SUM(O192:W192) -> 17710 | AB192: =SUM(O192:Z192) -> 17710
A193: 169 | B193: MTN Jubinville | C193: Ville de Montréal | D193: Transport actif (volet 1) | E193: Transports | F193: 1 | G193: 06-Montréal | H193: Ville de Montréal | I193: AC-Actif | J193: SU-Subvention | K193: 250000 | L193: 2020-03-31 | M193: 2020-04-22 | N193: 911387 | U193: 200000 | AA193: =SUM(O193:W193) -> 200000 | AB193: =SUM(O193:Z193) -> 200000
A194: 170 | B194: MTN Charleroi | C194: Ville de Montréal | D194: Transport actif (volet 1) | E194: Transports | F194: 1 | G194: 06-Montréal | H194: Ville de Montréal | I194: AC-Actif | J194: SU-Subvention | K194: 168874 | L194: 2020-03-31 | M194: 2020-04-22 | N194: 562912 | U194: 135099 | AA194: =SUM(O194:W194) -> 135099 | AB194: =SUM(O194:Z194) -> 135099
A195: 171 | B195: MTN Support à vélo | C195: Ville de Montréal | D195: Transport actif (volet 1) | E195: Transports | F195: 1 | G195: 06-Montréal | H195: Ville de Montréal | I195: AC-Actif | J195: SU-Subvention | K195: 23925 | L195: 2020-03-31 | M195: 2020-04-22 | N195: 47850 | U195: 19140 | AA195: =SUM(O195:W195) -> 19140 | AB195: =SUM(O195:Z195) -> 19140
A196: 172 | B196: VSM axe cyx. E.O. | C196: Ville de Montréal | D196: Transport actif (volet 1) | E196: Transports | F196: 1 | G196: 06-Montréal | H196: Ville de Montréal | I196: AC-Actif | J196: SU-Subvention | K196: 210534 | L196: 2020-03-31 | M196: 2020-04-22 | N196: 421128 | U196: 168427 | AA196: =SUM(O196:W196) -> 168427 | AB196: =SUM(O196:Z196) -> 168427
A197: 173 | B197: CDN - É.Beth-R. - Trottoir | C197: Ville de Montréal | D197: Transport actif (volet 1) | E197: Transports | F197: 1 | G197: 06-Montréal | H197: Ville de Montréal | I197: AC-Actif | J197: SU-Subvention | K197: 127001 | L197: 2020-03-31 | M197: 2020-04-22 | N197: 278157 | U197: 101601 | AA197: =SUM(O197:W197) -> 101601 | AB197: =SUM(O197:Z197) -> 101601
A198: 174 | B198: CDN - É. Ste-Catherine | C198: Ville de Montréal | D198: Transport actif (volet 1) | E198: Transports | F198: 1 | G198: 06-Montréal | H198: Ville de Montréal | I198: AC-Actif | J198: SU-Subvention | K198: 165093 | L198: 2020-03-31 | M198: 2020-04-22 | N198: 330186 | U198: 132074 | AA198: =SUM(O198:W198) -> 132074 | AB198: =SUM(O198:Z198) -> 132074
A199: 175 | B199: CDN - É. St-Luc | C199: Ville de Montréal | D199: Transport actif (volet 1) | E199: Transports | F199: 1 | G199: 06-Montréal | H199: Ville de Montréal | I199: AC-Actif | J199: SU-Subvention | K199: 150905 | L199: 2020-03-31 | M199: 2020-04-22 | N199: 301810 | U199: 120724 | AA199: =SUM(O199:W199) -> 120724 | AB199: =SUM(O199:Z199) -> 120724
A200: 176 | B200: 10e Avenue | C200: Ville d'Amos | D200: Transport actif (volet 1) | E200: Transports | F200: 1 | G200: 08-Abitibi-Témiscamingue | H200: Ville d'Amos | I200: AC-Actif | J200: SU-Subvention | K200: 55000 | L200: 2020-03-31 | M200: 2020-04-22 | N200: 504646 | U200: 44000 | AA200: =SUM(O200:W200) -> 44000 | AB200: =SUM(O200:Z200) -> 44000
A201: 177 | B201: Rue Marie-Victorin | C201: Ville de Rouyn-Noranda | D201: Transport actif (volet 1) | E201: Transports | F201: 1 | G201: 08-Abitibi-Témiscamingue | H201: Ville de Rouyn-Noranda | I201: AC-Actif | J201: SU-Subvention | K201: 195929 | L201: 2020-03-31 | M201: 2020-04-22 | N201: 391858 | U201: 156743 | AA201: =SUM(O201:W201) -> 156743 | AB201: =SUM(O201:Z201) -> 156743
A202: 178 | B202: Rue de Métiers | C202: Ville d'Amos | D202: Transport actif (volet 1) | E202: Transports | F202: 1 | G202: 08-Abitibi-Témiscamingue | H202: Ville d'Amos | I202: AC-Actif | J202: SU-Subvention | K202: 241862 | L202: 2020-03-31 | M202: 2020-04-22 | N202: 557940 | U202: 193490 | AA202: =SUM(O202:W202) -> 193490 | AB202: =SUM(O202:Z202) -> 193490
A203: 179 | B203: 12e Avenue | C203: Ville d'Amos | D203: Transport actif (volet 1) | E203: Transports | F203: 1 | G203: 08-Abitibi-Témiscamingue | H203: Ville d'Amos | I203: AC-Actif | J203: SU-Subvention | K203: 70000 | L203: 2020-03-31 | M203: 2020-04-22 | N203: 575000 | U203: 56000 | AA203: =SUM(O203:W203) -> 56000 | AB203: =SUM(O203:Z203) -> 56000
A204: 180 | B204: Rue Côté | C204: Ville d'Alma | D204: Transport actif (volet 1) | E204: Transports | F204: 1 | G204: 02-Saguenay- Lac-Saint-Jean | H204: Ville d'Alma | I204: AC-Actif | J204: SU-Subvention | K204: 71770 | L204: 2020-03-31 | M204: 2020-04-22 | N204: 143540 | U204: 57416 | AA204: =SUM(O204:W204) -> 57416 | AB204: =SUM(O204:Z204) -> 57416
A205: 181 | B205: Rue Boivin | C205: Ville d'Alma | D205: Transport actif (volet 1) | E205: Transports | F205: 1 | G205: 02-Saguenay- Lac-Saint-Jean | H205: Ville d'Alma | I205: AC-Actif | J205: SU-Subvention | K205: 18727 | L205: 2020-03-31 | M205: 2020-04-22 | N205: 37455 | U205: 14982 | AA205: =SUM(O205:W205) -> 14982 | AB205: =SUM(O205:Z205) -> 14982
A206: 182 | B206: Poly Jonquière | C206: Ville de Saguenay | D206: Transport actif (volet 1) | E206: Transports | F206: 1 | G206: 02-Saguenay- Lac-Saint-Jean | H206: Ville de Saguenay | I206: TE-Terminé | J206: SU-Subvention | K206: 183995 | L206: 2020-03-31 | M206: 2020-04-22 | N206: 663146 | U206: 147196 | W206: 36799 | AA206: =SUM(O206:W206) -> 183995 | AB206: =SUM(O206:Z206) -> 183995
A207: 183 | B207: Forteresse | C207: Ville de Gatineau | D207: Transport actif (volet 1) | E207: Transports | F207: 1 | G207: 07-Outaouais | H207: Ville de Gatineau | I207: AC-Actif | J207: SU-Subvention | K207: 157584 | L207: 2020-03-31 | M207: 2020-04-22 | N207: 315168 | U207: 126067 | AA207: =SUM(O207:W207) -> 126067 | AB207: =SUM(O207:Z207) -> 126067
A208: 184 | B208: Eardley (F.Princip.) | C208: Ville de Gatineau | D208: Transport actif (volet 1) | E208: Transports | F208: 1 | G208: 07-Outaouais | H208: Ville de Gatineau | I208: TE-Terminé | J208: SU-Subvention | K208: 158965 | L208: 2020-03-31 | M208: 2020-04-22 | N208: 497258 | U208: 127172 | W208: 21825 | AA208: =SUM(O208:W208) -> 148997 | AB208: =SUM(O208:Z208) -> 148997
A209: 185 | B209: Rue Cannes | C209: Ville de Gatineau | D209: Transport actif (volet 1) | E209: Transports | F209: 1 | G209: 07-Outaouais | H209: Ville de Gatineau | I209: TE-Terminé | J209: SU-Subvention | K209: 133285 | L209: 2020-03-31 | M209: 2020-04-22 | N209: 266570 | U209: 106628 | W209: 26657 | AA209: =SUM(O209:W209) -> 133285 | AB209: =SUM(O209:Z209) -> 133285
A210: 186 | B210: Demande d'aide financière 2020 / Réseau aquatique Drummondville-d'un abri et de supports à vélos dans le complexe aquatique- Ville de Drummondville | C210: Réseau aquatique Drummondville | D210: Transport actif (volet 1) | E210: Transports | F210: 1 | G210: 17-Centre-du-Québec | H210: Réseau aquatique Drummondville | I210: AC-Actif | J210: SU-Subvention | K210: 7200 | L210: 2020-07-02 | M210: 2021-12-31 | N210: 100000 | V210: 7200 | AA210: =SUM(O210:W210) -> 7200 | AB210: =SUM(O210:Z210) -> 7200
A211: 187 | B211: Demande d'aide financière 2020 / Le Groupe Beau-Village - d'un nouveau réseau cyclable - Ville de Gaspé | C211: Groupe Beau Village de Rivière-au-Renard | D211: Transport actif (volet 1) | E211: Transports | F211: 1 | G211: 11-Gaspésie-Iles-de-la-Madeleine | H211: Groupe Beau Village de Rivière-au-Renard | I211: AC-Actif | J211: SU-Subvention | K211: 317512 | L211: 2020-07-02 | M211: 2021-12-31 | N211: 1283696 | V211: 317512 | AA211: =SUM(O211:W211) -> 317512 | AB211: =SUM(O211:Z211) -> 317512
A212: 188 | B212: Demande d'aide financière 2020 / d'un réseau de transports actif et collectif | C212: Ville de Paspébiac | D212: Transport actif (volet 1) | E212: Transports | F212: 1 | G212: 11-Gaspésie-Iles-de-la-Madeleine | H212: Ville de Paspébiac | I212: AC-Actif | J212: SU-Subvention | K212: 383347 | L212: 2020-07-02 | M212: 2021-12-31 | N212: 2285055 | V212: 383347 | AA212: =SUM(O212:W212) -> 383347 | AB212: =SUM(O212:Z212) -> 383347
A213: 189 | B213: Demande d'aide financière 2020 / d'une passerelle de seize mètres de long au-dessus du ruisseau Monier | C213: Municipalité de Pointe-à-la-Croix | D213: Transport actif (volet 1) | E213: Transports | F213: 1 | G213: 11-Gaspésie-Iles-de-la-Madeleine | H213: Municipalité de Pointe-à-la-Croix | I213: AC-Actif | J213: SU-Subvention | K213: 88189 | L213: 2020-07-02 | M213: 2021-12-31 | N213: 235472 | V213: 88189 | AA213: =SUM(O213:W213) -> 88189 | AB213: =SUM(O213:Z213) -> 88189
A214: 190 | B214: d'un aménagement d'un lien cyclopédestre sur le viaduc de l'A-40 et la construction d'une passerelle cyclopédestre | C214: Ville de Kirkland | D214: Transport actif (volet 1) | E214: Transports | F214: 1 | G214: 06-Montréal | H214: Ville de Kirkland | I214: AC-Actif | J214: SU-Subvention | K214: 303056 | L214: 2020-07-02 | M214: 2021-12-31 | N214: 757640 | V214: 303056 | AA214: =SUM(O214:W214) -> 303056 | AB214: =SUM(O214:Z214) -> 303056
A215: 191 | B215: Demande d'aide financière 2020 / Abris vélos à l'hôtel de ville | C215: Ville de Rimouski | D215: Transport actif (volet 1) | E215: Transports | F215: 1 | G215: 01-Bas-Saint-Laurent | H215: Ville de Rimouski | I215: TE-Terminé | J215: SU-Subvention | K215: 10800 | L215: 2020-07-02 | M215: 2021-12-31 | N215: 21600 | V215: 10800 | AA215: =SUM(O215:W215) -> 10800 | AB215: =SUM(O215:Z215) -> 10800
... 163 more rows

Sheet GES (hidden)
B2: =Utilitaire!E8 -> Plan d'action 2013-2020 sur les changements climatiques | I2: Conseils de rédaction : | L2: Informations en date du : | O2: =Utilitaire!G6 -> 2022-03-31
B3: ="Action " & Accueil!D58 -> Action en cours | I3: - Répondez aux questions et commentaires s'il y a lieu. - Des précisions sur les contenus attendus sont disponibles en commentaires dans les cellules titres. - Pensez à remplir les cases G20 et P20. - Les projets inscrits sont ceux définis dans l'onglet « Détail des projets ». - Pensez à inscrire le coût par tonne de la colonne H, même si seul un potentiel de réduction est inclus pour cette action.
B4: =Accueil!D55 -> 13.4 | C4: =Accueil!E55 -> Programme d’aide financière au développement des transports actifs dans les périmètres urbains (TAPU) (FORT)
B5: Ministère porteur : | C5: =Accueil!$D$65 -> MTQ
B6: GES
B20: Potentiel de réduction des GES évalué lors de la sélection des projets de cette action : | G20: Non | I20: Réductions réelles quantifiables des émissions de GES attendues pour cette action : | O20: Non
F22: ÉVALUATION DU POTENTIEL DE RÉDUCTION ET D'ÉVITEMENT D'ÉMISSIONS DE GES À TERME. | H22: DÉTAIL DES ÉMISSIONS DE GES RÉDUITES OU ÉVITÉES (en tonnes éq. CO2)
B23: Nom du projet | C23: Nom du requérant ou du bénéficiaire | D23: Région administrative | E23: Montant engagé ($) | F23: Potentiel de réduction des GES sur une base annuelle | G23: Horizon temporel pour la réalisation du potentiel | H23: Coût/tonne estimé | I23: Type d'émission | J23: Émissions rapportées dans l'inventaire | K23: Durée du projet | L23: Émissions | N23: Vérifiées | P23: 2013-2014 | R23: 2014-2015 | T23: 2015-2016 | V23: 2016-2017 | X23: 2017-2018 | Z23: 2018-2019 | AB23: 2019-2020 | AD23: 2020-2021 | AF23: 2021-2022 | AH23: 2022-2023 | AJ23: 2023-2024 | AL23: 2024-2025
F24: (tonnes éq. CO2) | H24: $ ------------ tonne éq. CO2 | K24: (années) | L24: Réduites | M24: Évitées | N24: Tierce partie | O24: M/O | P24: Vérifié | Q24: Non vérifié | R24: Vérifié | S24: Non vérifié | T24: Vérifié | U24: Non vérifié | V24: Vérifié | W24: Non vérifié | X24: Vérifié | Y24: Non vérifié | Z24: Vérifié | AA24: Non vérifié | AB24: Vérifié | AC24: Non vérifié | AD24: Vérifié | AE24: Non vérifié | AF24: Vérifié | AG24: Non vérifié | AH24: Vérifié | AI24: Non vérifié | AJ24: Vérifié | AK24: Non vérifié | AL24: Vérifié | AM24: Non vérifié
B25: =IF(LEN('Détail des projets'!B25)=0,"",'Détail des projets'!B25) -> Paserelle Normandie | C25: ='Détail des projets'!C25 -> Ville de Longueuil | D25: =IF(LEN('Détail des projets'!G25)=0,"",'Détail des projets'!G25) -> 16-Montérégie | E25: =IF(LEN('Détail des projets'!K25)=0,"",'Détail des projets'!K25) -> 1000000
B26: =IF(LEN('Détail des projets'!B26)=0,"",'Détail des projets'!B26) -> Piste de la rue Sicotte | C26: =IF(LEN('Détail des projets'!C26)=0,"",'Détail des projets'!C26) -> Ville de Saint-Hyacinthe | D26: =IF(LEN('Détail des projets'!G26)=0,"",'Détail des projets'!G26) -> 16-Montérégie | E26: =IF(LEN('Détail des projets'!K26)=0,"",'Détail des projets'!K26) -> 54230
B27: =IF(LEN('Détail des projets'!B27)=0,"",'Détail des projets'!B27) -> Piste de la rue Laurier | C27: =IF(LEN('Détail des projets'!C27)=0,"",'Détail des projets'!C27) -> Ville de Gatineau | D27: =IF(LEN('Détail des projets'!G27)=0,"",'Détail des projets'!G27) -> 07-Outaouais | E27: =IF(LEN('Détail des projets'!K27)=0,"",'Détail des projets'!K27) -> 293378
B28: =IF(LEN('Détail des projets'!B28)=0,"",'Détail des projets'!B28) -> Lien A-20 Saint-Rédempteur | C28: =IF(LEN('Détail des projets'!C28)=0,"",'Détail des projets'!C28) -> Ville de Lévis | D28: =IF(LEN('Détail des projets'!G28)=0,"",'Détail des projets'!G28) -> 12-Chaudières-Appalaches | E28: =IF(LEN('Détail des projets'!K28)=0,"",'Détail des projets'!K28) -> 100000
B29: =IF(LEN('Détail des projets'!B29)=0,"",'Détail des projets'!B29) -> 1317 Langelier | C29: =IF(LEN('Détail des projets'!C29)=0,"",'Détail des projets'!C29) -> Ville de Montréal | D29: =IF(LEN('Détail des projets'!G29)=0,"",'Détail des projets'!G29) -> 06-Montréal | E29: =IF(LEN('Détail des projets'!K29)=0,"",'Détail des projets'!K29) -> 300000
B30: =IF(LEN('Détail des projets'!B30)=0,"",'Détail des projets'!B30) -> 3e Avenue | C30: =IF(LEN('Détail des projets'!C30)=0,"",'Détail des projets'!C30) -> Ville de Québec | D30: =IF(LEN('Détail des projets'!G30)=0,"",'Détail des projets'!G30) -> 03-Capitale-Nationale | E30: =IF(LEN('Détail des projets'!K30)=0,"",'Détail des projets'!K30) -> 46765
B31: =IF(LEN('Détail des projets'!B31)=0,"",'Détail des projets'!B31) -> 1508 Desjardins | C31: =IF(LEN('Détail des projets'!C31)=0,"",'Détail des projets'!C31) -> Ville de Montréal | D31: =IF(LEN('Détail des projets'!G31)=0,"",'Détail des projets'!G31) -> 06-Montréal | E31: =IF(LEN('Détail des projets'!K31)=0,"",'Détail des projets'!K31) -> 552170
B32: =IF(LEN('Détail des projets'!B32)=0,"",'Détail des projets'!B32) -> Arr. Plateau Mont-Royan (école Saint-Pierre-Claver) | C32: =IF(LEN('Détail des projets'!C32)=0,"",'Détail des projets'!C32) -> Ville de Montréal | D32: =IF(LEN('Détail des projets'!G32)=0,"",'Détail des projets'!G32) -> 06-Montréal | E32: =IF(LEN('Détail des projets'!K32)=0,"",'Détail des projets'!K32) -> 250000
B33: =IF(LEN('Détail des projets'!B33)=0,"",'Détail des projets'!B33) -> École primaire | C33: =IF(LEN('Détail des projets'!C33)=0,"",'Détail des projets'!C33) -> Municipalité de Boischatel | D33: =IF(LEN('Détail des projets'!G33)=0,"",'Détail des projets'!G33) -> 03-Capitale-Nationale | E33: =IF(LEN('Détail des projets'!K33)=0,"",'Détail des projets'!K33) -> 32762
B34: =IF(LEN('Détail des projets'!B34)=0,"",'Détail des projets'!B34) -> Piste bidirectionnelle asphaltée | C34: =IF(LEN('Détail des projets'!C34)=0,"",'Détail des projets'!C34) -> Ville de Rouyn-Noranda | D34: =IF(LEN('Détail des projets'!G34)=0,"",'Détail des projets'!G34) -> 08-Abitibi-Témiscamingue | E34: =IF(LEN('Détail des projets'!K34)=0,"",'Détail des projets'!K34) -> 72500
B35: =IF(LEN('Détail des projets'!B35)=0,"",'Détail des projets'!B35) -> Piste Jean-de-Brébeuf | C35: =IF(LEN('Détail des projets'!C35)=0,"",'Détail des projets'!C35) -> Ville de Drummondville | D35: =IF(LEN('Détail des projets'!G35)=0,"",'Détail des projets'!G35) -> 17-Centre-du-Québec | E35: =IF(LEN('Détail des projets'!K35)=0,"",'Détail des projets'!K35) -> 94400
B36: =IF(LEN('Détail des projets'!B36)=0,"",'Détail des projets'!B36) -> Portion urbaine de la piste dans Beauceville | C36: =IF(LEN('Détail des projets'!C36)=0,"",'Détail des projets'!C36) -> MRC de Robert-Cliche | D36: =IF(LEN('Détail des projets'!G36)=0,"",'Détail des projets'!G36) -> 12-Chaudières-Appalaches | E36: =IF(LEN('Détail des projets'!K36)=0,"",'Détail des projets'!K36) -> 1000000
B37: =IF(LEN('Détail des projets'!B37)=0,"",'Détail des projets'!B37) -> 0849 Cardinal | C37: =IF(LEN('Détail des projets'!C37)=0,"",'Détail des projets'!C37) -> Ville de Montréal | D37: =IF(LEN('Détail des projets'!G37)=0,"",'Détail des projets'!G37) -> 06-Montréal | E37: =IF(LEN('Détail des projets'!K37)=0,"",'Détail des projets'!K37) -> 1000000
B38: =IF(LEN('Détail des projets'!B38)=0,"",'Détail des projets'!B38) -> Piste campus UQTR | C38: =IF(LEN('Détail des projets'!C38)=0,"",'Détail des projets'!C38) -> Ville de Drummondville (piste campus UQTR) | D38: =IF(LEN('Détail des projets'!G38)=0,"",'Détail des projets'!G38) -> 17-Centre-du-Québec | E38: =IF(LEN('Détail des projets'!K38)=0,"",'Détail des projets'!K38) -> 41012.25
B39: =IF(LEN('Détail des projets'!B39)=0,"",'Détail des projets'!B39) -> Supports à vélo | C39: =IF(LEN('Détail des projets'!C39)=0,"",'Détail des projets'!C39) -> Ville de Québec (supports à vélo) | D39: =IF(LEN('Détail des projets'!G39)=0,"",'Détail des projets'!G39) -> 03-Capitale-Nationale | E39: =IF(LEN('Détail des projets'!K39)=0,"",'Détail des projets'!K39) -> 11181.12
B40: =IF(LEN('Détail des projets'!B40)=0,"",'Détail des projets'!B40) -> Sécurisatin des déplacements actifs dans le village | C40: =IF(LEN('Détail des projets'!C40)=0,"",'Détail des projets'!C40) -> Municipalité de Saint-Thomas | D40: =IF(LEN('Détail des projets'!G40)=0,"",'Détail des projets'!G40) -> 14-Lanaudière | E40: =IF(LEN('Détail des projets'!K40)=0,"",'Détail des projets'!K40) -> 3361
B41: =IF(LEN('Détail des projets'!B41)=0,"",'Détail des projets'!B41) -> Rivière Aulneuse Saint-Nicolas | C41: =IF(LEN('Détail des projets'!C41)=0,"",'Détail des projets'!C41) -> Ville de Lévis (rivière Aulneuse Saint-Nicolas) | D41: =IF(LEN('Détail des projets'!G41)=0,"",'Détail des projets'!G41) -> 12-Chaudières-Appalaches | E41: =IF(LEN('Détail des projets'!K41)=0,"",'Détail des projets'!K41) -> 5000
B42: =IF(LEN('Détail des projets'!B42)=0,"",'Détail des projets'!B42) -> Apaisement de la circulation 6e Avenue et 9e Rue | C42: =IF(LEN('Détail des projets'!C42)=0,"",'Détail des projets'!C42) -> Ville de La Pocatière | D42: =IF(LEN('Détail des projets'!G42)=0,"",'Détail des projets'!G42) -> 01-Bas-Saint-Laurent | E42: =IF(LEN('Détail des projets'!K42)=0,"",'Détail des projets'!K42) -> 140000
B43: =IF(LEN('Détail des projets'!B43)=0,"",'Détail des projets'!B43) -> Ville de Gatineau | C43: =IF(LEN('Détail des projets'!C43)=0,"",'Détail des projets'!C43) -> Ville de Gatineau | D43: =IF(LEN('Détail des projets'!G43)=0,"",'Détail des projets'!G43) -> 07-Outaouais | E43: =IF(LEN('Détail des projets'!K43)=0,"",'Détail des projets'!K43) -> 180967
B44: =IF(LEN('Détail des projets'!B44)=0,"",'Détail des projets'!B44) -> Bande cyclable rue Principale | C44: =IF(LEN('Détail des projets'!C44)=0,"",'Détail des projets'!C44) -> Municipalité de Saint-Amable | D44: =IF(LEN('Détail des projets'!G44)=0,"",'Détail des projets'!G44) -> 16-Montérégie | E44: =IF(LEN('Détail des projets'!K44)=0,"",'Détail des projets'!K44) -> 22500
B45: =IF(LEN('Détail des projets'!B45)=0,"",'Détail des projets'!B45) -> Promenade rivière Saint-François | C45: =IF(LEN('Détail des projets'!C45)=0,"",'Détail des projets'!C45) -> Ville de Drummondville | D45: =IF(LEN('Détail des projets'!G45)=0,"",'Détail des projets'!G45) -> 17-Centre-du-Québec | E45: =IF(LEN('Détail des projets'!K45)=0,"",'Détail des projets'!K45) -> 1000000
B46: =IF(LEN('Détail des projets'!B46)=0,"",'Détail des projets'!B46) -> Avenue Legendre | C46: =IF(LEN('Détail des projets'!C46)=0,"",'Détail des projets'!C46) -> Ville de Québec | D46: =IF(LEN('Détail des projets'!G46)=0,"",'Détail des projets'!G46) -> 03-Capitale-Nationale | E46: =IF(LEN('Détail des projets'!K46)=0,"",'Détail des projets'!K46) -> 108378
B47: =IF(LEN('Détail des projets'!B47)=0,"",'Détail des projets'!B47) -> Rue Bourdages | C47: =IF(LEN('Détail des projets'!C47)=0,"",'Détail des projets'!C47) -> Ville de Québec | D47: =IF(LEN('Détail des projets'!G47)=0,"",'Détail des projets'!G47) -> 03-Capitale-Nationale | E47: =IF(LEN('Détail des projets'!K47)=0,"",'Détail des projets'!K47) -> 970000
B48: =IF(LEN('Détail des projets'!B48)=0,"",'Détail des projets'!B48) -> Passerelle | C48: =IF(LEN('Détail des projets'!C48)=0,"",'Détail des projets'!C48) -> Ville de Québec (rue Soumande) | D48: =IF(LEN('Détail des projets'!G48)=0,"",'Détail des projets'!G48) -> 03-Capitale-Nationale | E48: =IF(LEN('Détail des projets'!K48)=0,"",'Détail des projets'!K48) -> 960000
B49: =IF(LEN('Détail des projets'!B49)=0,"",'Détail des projets'!B49) -> Rotue 116 - Train de banlieue | C49: =IF(LEN('Détail des projets'!C49)=0,"",'Détail des projets'!C49) -> Saint-Basile-le-Grand | D49: =IF(LEN('Détail des projets'!G49)=0,"",'Détail des projets'!G49) -> 16-Montérégie | E49: =IF(LEN('Détail des projets'!K49)=0,"",'Détail des projets'!K49) -> 30000
B50: =IF(LEN('Détail des projets'!B50)=0,"",'Détail des projets'!B50) -> Piste école secondaire/route 132 | C50: =IF(LEN('Détail des projets'!C50)=0,"",'Détail des projets'!C50) -> Ville de Montmagny | D50: =IF(LEN('Détail des projets'!G50)=0,"",'Détail des projets'!G50) -> 01-Bas-Saint-Laurent | E50: =IF(LEN('Détail des projets'!K50)=0,"",'Détail des projets'!K50) -> 243875
B51: =IF(LEN('Détail des projets'!B51)=0,"",'Détail des projets'!B51) -> Piste cyclable écoles primaire et secondaire | C51: =IF(LEN('Détail des projets'!C51)=0,"",'Détail des projets'!C51) -> Municipalité de Saint-Rémi | D51: =IF(LEN('Détail des projets'!G51)=0,"",'Détail des projets'!G51) -> 16-Montérégie | E51: =IF(LEN('Détail des projets'!K51)=0,"",'Détail des projets'!K51) -> 50000
B52: =IF(LEN('Détail des projets'!B52)=0,"",'Détail des projets'!B52) -> Lien Pincourt-Île-Perrot | C52: =IF(LEN('Détail des projets'!C52)=0,"",'Détail des projets'!C52) -> Ville de Pincourt | D52: =IF(LEN('Détail des projets'!G52)=0,"",'Détail des projets'!G52) -> 16-Montérégie | E52: =IF(LEN('Détail des projets'!K52)=0,"",'Détail des projets'!K52) -> 46916
B53: =IF(LEN('Détail des projets'!B53)=0,"",'Détail des projets'!B53) -> Supports à vélo | C53: =IF(LEN('Détail des projets'!C53)=0,"",'Détail des projets'!C53) -> Arrondissement Saint-Laurent | D53: =IF(LEN('Détail des projets'!G53)=0,"",'Détail des projets'!G53) -> 06-Montréal | E53: =IF(LEN('Détail des projets'!K53)=0,"",'Détail des projets'!K53) -> 35631
B54: =IF(LEN('Détail des projets'!B54)=0,"",'Détail des projets'!B54) -> Piste cyclable en milieu urbain | C54: =IF(LEN('Détail des projets'!C54)=0,"",'Détail des projets'!C54) -> Municipalité de Havre-Saint-Pierre | D54: =IF(LEN('Détail des projets'!G54)=0,"",'Détail des projets'!G54) -> 09-Côte-Nord | E54: =IF(LEN('Détail des projets'!K54)=0,"",'Détail des projets'!K54) -> 124108
B55: =IF(LEN('Détail des projets'!B55)=0,"",'Détail des projets'!B55) -> Piste cyclable Rivière-au-Renard | C55: =IF(LEN('Détail des projets'!C55)=0,"",'Détail des projets'!C55) -> Groupe Beau-Village Rivière-au-Renard | D55: =IF(LEN('Détail des projets'!G55)=0,"",'Détail des projets'!G55) -> 11-Gaspésie-Iles-de-la-Madeleine | E55: =IF(LEN('Détail des projets'!K55)=0,"",'Détail des projets'!K55) -> 23000
B56: =IF(LEN('Détail des projets'!B56)=0,"",'Détail des projets'!B56) -> Rue des Vétérans | C56: =IF(LEN('Détail des projets'!C56)=0,"",'Détail des projets'!C56) -> Rimouski | D56: =IF(LEN('Détail des projets'!G56)=0,"",'Détail des projets'!G56) -> 11-Gaspésie-Iles-de-la-Madeleine | E56: =IF(LEN('Détail des projets'!K56)=0,"",'Détail des projets'!K56) -> 25000
B57: =IF(LEN('Détail des projets'!B57)=0,"",'Détail des projets'!B57) -> Piste cyclable en milieu urbain | C57: =IF(LEN('Détail des projets'!C57)=0,"",'Détail des projets'!C57) -> Ville de Richelieu
B58: =IF(LEN('Détail des projets'!B58)=0,"",'Détail des projets'!B58) -> Piste cyclable en milieu urbain | C58: =IF(LEN('Détail des projets'!C58)=0,"",'Détail des projets'!C58) -> Municipalité de Rigaud | D58: =IF(LEN('Détail des projets'!G58)=0,"",'Détail des projets'!G58) -> 16-Montérégie | E58: =IF(LEN('Détail des projets'!K58)=0,"",'Détail des projets'!K58) -> 122898
B59: =IF(LEN('Détail des projets'!B59)=0,"",'Détail des projets'!B59) -> Rue Jacques-Cartier | C59: =IF(LEN('Détail des projets'!C59)=0,"",'Détail des projets'!C59) -> Ville de Gatineau | D59: =IF(LEN('Détail des projets'!G59)=0,"",'Détail des projets'!G59) -> 07-Outaouais | E59: =IF(LEN('Détail des projets'!K59)=0,"",'Détail des projets'!K59) -> 536428
B60: =IF(LEN('Détail des projets'!B60)=0,"",'Détail des projets'!B60) -> #944 Ste-Croix | C60: =IF(LEN('Détail des projets'!C60)=0,"",'Détail des projets'!C60) -> Ville de Montréal | D60: =IF(LEN('Détail des projets'!G60)=0,"",'Détail des projets'!G60) -> 06-Montréal | E60: =IF(LEN('Détail des projets'!K60)=0,"",'Détail des projets'!K60) -> 198000
B61: =IF(LEN('Détail des projets'!B61)=0,"",'Détail des projets'!B61) -> Corridor scolaire rues Réjean et Caron | C61: =IF(LEN('Détail des projets'!C61)=0,"",'Détail des projets'!C61) -> Saint-Joseph-du-Lac | D61: =IF(LEN('Détail des projets'!G61)=0,"",'Détail des projets'!G61) -> 15-Laurentides | E61: =IF(LEN('Détail des projets'!K61)=0,"",'Détail des projets'!K61) -> 239838
B62: =IF(LEN('Détail des projets'!B62)=0,"",'Détail des projets'!B62) -> École Saint-Jean-de-la-Lande | C62: =IF(LEN('Détail des projets'!C62)=0,"",'Détail des projets'!C62) -> Arrondissement Rosemont-La Petite-Patrie | D62: =IF(LEN('Détail des projets'!G62)=0,"",'Détail des projets'!G62) -> 06-Montréal | E62: =IF(LEN('Détail des projets'!K62)=0,"",'Détail des projets'!K62) -> 249823
B63: =IF(LEN('Détail des projets'!B63)=0,"",'Détail des projets'!B63) -> École Saint-Albert-Le-Grand | C63: =IF(LEN('Détail des projets'!C63)=0,"",'Détail des projets'!C63) -> Arrondissement Rosemont-La Petite-Patrie | D63: =IF(LEN('Détail des projets'!G63)=0,"",'Détail des projets'!G63) -> 06-Montréal | E63: =IF(LEN('Détail des projets'!K63)=0,"",'Détail des projets'!K63) -> 250000
B64: =IF(LEN('Détail des projets'!B64)=0,"",'Détail des projets'!B64) -> École Saint-Louis-de-Gonzague | C64: =IF(LEN('Détail des projets'!C64)=0,"",'Détail des projets'!C64) -> Arrondissement Le Plateau-Mont-Royal | D64: =IF(LEN('Détail des projets'!G64)=0,"",'Détail des projets'!G64) -> 06-Montréal | E64: =IF(LEN('Détail des projets'!K64)=0,"",'Détail des projets'!K64) -> 133677
B65: =IF(LEN('Détail des projets'!B65)=0,"",'Détail des projets'!B65) -> Prolongement Trans-Terrebonne | C65: =IF(LEN('Détail des projets'!C65)=0,"",'Détail des projets'!C65) -> Ville de Terrebonne | D65: =IF(LEN('Détail des projets'!G65)=0,"",'Détail des projets'!G65) -> 14-Lanaudière | E65: =IF(LEN('Détail des projets'!K65)=0,"",'Détail des projets'!K65) -> 920000
B66: =IF(LEN('Détail des projets'!B66)=0,"",'Détail des projets'!B66) -> #1211 De Marseille | C66: =IF(LEN('Détail des projets'!C66)=0,"",'Détail des projets'!C66) -> Ville de Montréal | D66: =IF(LEN('Détail des projets'!G66)=0,"",'Détail des projets'!G66) -> 06-Montréal | E66: =IF(LEN('Détail des projets'!K66)=0,"",'Détail des projets'!K66) -> 95000
B67: =IF(LEN('Détail des projets'!B67)=0,"",'Détail des projets'!B67) -> Pistes cyclables sur rue | C67: =IF(LEN('Détail des projets'!C67)=0,"",'Détail des projets'!C67) -> Beauharnois | D67: =IF(LEN('Détail des projets'!G67)=0,"",'Détail des projets'!G67) -> 16-Montérégie | E67: =IF(LEN('Détail des projets'!K67)=0,"",'Détail des projets'!K67) -> 253545
B68: =IF(LEN('Détail des projets'!B68)=0,"",'Détail des projets'!B68) -> École Lanaudière | C68: =IF(LEN('Détail des projets'!C68)=0,"",'Détail des projets'!C68) -> Arrorndissement Le Plateau-Mont-Royal | D68: =IF(LEN('Détail des projets'!G68)=0,"",'Détail des projets'!G68) -> 06-Montréal | E68: =IF(LEN('Détail des projets'!K68)=0,"",'Détail des projets'!K68) -> 126537
B69: =IF(LEN('Détail des projets'!B69)=0,"",'Détail des projets'!B69) -> #1313 Dudemaine | C69: =IF(LEN('Détail des projets'!C69)=0,"",'Détail des projets'!C69) -> Ville de Montréal | D69: =IF(LEN('Détail des projets'!G69)=0,"",'Détail des projets'!G69) -> 06-Montréal | E69: =IF(LEN('Détail des projets'!K69)=0,"",'Détail des projets'!K69) -> 88600
B70: =IF(LEN('Détail des projets'!B70)=0,"",'Détail des projets'!B70) -> École Saint-Pierre-Claver | C70: =IF(LEN('Détail des projets'!C70)=0,"",'Détail des projets'!C70) -> Arrondissement Le Plateau-Mont-Royal (École Saint-Pierre-Claver) | D70: =IF(LEN('Détail des projets'!G70)=0,"",'Détail des projets'!G70) -> 06-Montréal | E70: =IF(LEN('Détail des projets'!K70)=0,"",'Détail des projets'!K70) -> 40787
B71: =IF(LEN('Détail des projets'!B71)=0,"",'Détail des projets'!B71) -> École Nesbit | C71: =IF(LEN('Détail des projets'!C71)=0,"",'Détail des projets'!C71) -> Arrondissement Rosemont-La Petite-Patrie (École Nesbitt) | D71: =IF(LEN('Détail des projets'!G71)=0,"",'Détail des projets'!G71) -> 06-Montréal | E71: =IF(LEN('Détail des projets'!K71)=0,"",'Détail des projets'!K71) -> 132247
B72: =IF(LEN('Détail des projets'!B72)=0,"",'Détail des projets'!B72) -> École Au-Pied-de-la-Montagne | C72: =IF(LEN('Détail des projets'!C72)=0,"",'Détail des projets'!C72) -> Arrondissement Le Plateau-Mont-Royal (École Au Pied de la Montagne) | D72: =IF(LEN('Détail des projets'!G72)=0,"",'Détail des projets'!G72) -> 06-Montréal | E72: =IF(LEN('Détail des projets'!K72)=0,"",'Détail des projets'!K72) -> 178163
B73: =IF(LEN('Détail des projets'!B73)=0,"",'Détail des projets'!B73) -> Piste cyclable en milieu urbain | C73: =IF(LEN('Détail des projets'!C73)=0,"",'Détail des projets'!C73) -> Ville de Waterville | D73: =IF(LEN('Détail des projets'!G73)=0,"",'Détail des projets'!G73) -> 05-Estrie | E73: =IF(LEN('Détail des projets'!K73)=0,"",'Détail des projets'!K73) -> 4000
B74: =IF(LEN('Détail des projets'!B74)=0,"",'Détail des projets'!B74) -> Boulevard Chevrier | C74: =IF(LEN('Détail des projets'!C74)=0,"",'Détail des projets'!C74) -> Ville de Brossard | D74: =IF(LEN('Détail des projets'!G74)=0,"",'Détail des projets'!G74) -> 16-Montérégie | E74: =IF(LEN('Détail des projets'!K74)=0,"",'Détail des projets'!K74) -> 84000
B75: =IF(LEN('Détail des projets'!B75)=0,"",'Détail des projets'!B75) -> Boulevard Jacques-Cartier | C75: =IF(LEN('Détail des projets'!C75)=0,"",'Détail des projets'!C75) -> Ville de Longueuil | D75: =IF(LEN('Détail des projets'!G75)=0,"",'Détail des projets'!G75) -> 16-Montérégie | E75: =IF(LEN('Détail des projets'!K75)=0,"",'Détail des projets'!K75) -> 94000
B76: =IF(LEN('Détail des projets'!B76)=0,"",'Détail des projets'!B76) -> Sentier pour désenclavement | C76: =IF(LEN('Détail des projets'!C76)=0,"",'Détail des projets'!C76) -> Ville de Lac-Mégantic | D76: =IF(LEN('Détail des projets'!G76)=0,"",'Détail des projets'!G76) -> 05-Estrie | E76: =IF(LEN('Détail des projets'!K76)=0,"",'Détail des projets'!K76) -> 108021.5
B77: =IF(LEN('Détail des projets'!B77)=0,"",'Détail des projets'!B77) -> 12e Avenue | C77: =IF(LEN('Détail des projets'!C77)=0,"",'Détail des projets'!C77) -> Ville de Shawinigan | D77: =IF(LEN('Détail des projets'!G77)=0,"",'Détail des projets'!G77) -> 04-Mauricie | E77: =IF(LEN('Détail des projets'!K77)=0,"",'Détail des projets'!K77) -> 470000
B78: =IF(LEN('Détail des projets'!B78)=0,"",'Détail des projets'!B78) -> Apaisement de la circulation, écoles Rose-des-Vents, St-Jean-Vianney, Ste-Anne et Madeleine-de-Verchères | C78: =IF(LEN('Détail des projets'!C78)=0,"",'Détail des projets'!C78) -> Ville de Montréal - Rosemon Petite-Patrie | D78: =IF(LEN('Détail des projets'!G78)=0,"",'Détail des projets'!G78) -> 06-Montréal | E78: =IF(LEN('Détail des projets'!K78)=0,"",'Détail des projets'!K78) -> 560235
B79: =IF(LEN('Détail des projets'!B79)=0,"",'Détail des projets'!B79) -> Notre-Dame-Est | C79: =IF(LEN('Détail des projets'!C79)=0,"",'Détail des projets'!C79) -> Ville de Victoriaville | D79: =IF(LEN('Détail des projets'!G79)=0,"",'Détail des projets'!G79) -> 17-Centre-du-Québec | E79: =IF(LEN('Détail des projets'!K79)=0,"",'Détail des projets'!K79) -> 616360
B80: =IF(LEN('Détail des projets'!B80)=0,"",'Détail des projets'!B80) -> Stationnements vélo | C80: =IF(LEN('Détail des projets'!C80)=0,"",'Détail des projets'!C80) -> Municipalité de St-Liboire | D80: =IF(LEN('Détail des projets'!G80)=0,"",'Détail des projets'!G80) -> 16-Montérégie | E80: =IF(LEN('Détail des projets'!K80)=0,"",'Détail des projets'!K80) -> 2931.07
B81: =IF(LEN('Détail des projets'!B81)=0,"",'Détail des projets'!B81) -> Lac-des-Sables | C81: =IF(LEN('Détail des projets'!C81)=0,"",'Détail des projets'!C81) -> Sainte-Agathe-des-Monts | D81: =IF(LEN('Détail des projets'!G81)=0,"",'Détail des projets'!G81) -> 15-Laurentides | E81: =IF(LEN('Détail des projets'!K81)=0,"",'Détail des projets'!K81) -> 225000
B82: =IF(LEN('Détail des projets'!B82)=0,"",'Détail des projets'!B82) -> Piste dans le village | C82: =IF(LEN('Détail des projets'!C82)=0,"",'Détail des projets'!C82) -> Municipalité de Petite-Rivière-Saint-François | D82: =IF(LEN('Détail des projets'!G82)=0,"",'Détail des projets'!G82) -> 03-Capitale-Nationale | E82: =IF(LEN('Détail des projets'!K82)=0,"",'Détail des projets'!K82) -> 209745
B83: =IF(LEN('Détail des projets'!B83)=0,"",'Détail des projets'!B83) -> Boulevard Laflèche | C83: =IF(LEN('Détail des projets'!C83)=0,"",'Détail des projets'!C83) -> Ville de Baie-Comeau | D83: =IF(LEN('Détail des projets'!G83)=0,"",'Détail des projets'!G83) -> 09-Côte-Nord | E83: =IF(LEN('Détail des projets'!K83)=0,"",'Détail des projets'!K83) -> 197000
B84: =IF(LEN('Détail des projets'!B84)=0,"",'Détail des projets'!B84) -> Vieux-Verchères | C84: =IF(LEN('Détail des projets'!C84)=0,"",'Détail des projets'!C84) -> Ville de Verchères | D84: =IF(LEN('Détail des projets'!G84)=0,"",'Détail des projets'!G84) -> 16-Montérégie | E84: =IF(LEN('Détail des projets'!K84)=0,"",'Détail des projets'!K84) -> 216717
B85: =IF(LEN('Détail des projets'!B85)=0,"",'Détail des projets'!B85) -> Signalisation cyclable noyaux villageois. | C85: =IF(LEN('Détail des projets'!C85)=0,"",'Détail des projets'!C85) -> MRC / CLD de l'Ile-d'Orléans | D85: =IF(LEN('Détail des projets'!G85)=0,"",'Détail des projets'!G85) -> 03-Capitale-Nationale | E85: =IF(LEN('Détail des projets'!K85)=0,"",'Détail des projets'!K85) -> 7773
B86: =IF(LEN('Détail des projets'!B86)=0,"",'Détail des projets'!B86) -> Bandes cyclables secteur commercial et communautaire. | C86: =IF(LEN('Détail des projets'!C86)=0,"",'Détail des projets'!C86) -> Cantons unis de Stoneham-et-Tewkesbury | D86: =IF(LEN('Détail des projets'!G86)=0,"",'Détail des projets'!G86) -> 03-Capitale-Nationale | E86: =IF(LEN('Détail des projets'!K86)=0,"",'Détail des projets'!K86) -> 98400
B87: =IF(LEN('Détail des projets'!B87)=0,"",'Détail des projets'!B87) -> Feux de circulation, train de l'Est, projet Oka-Mont-St-Hilaire, Antenne Longue-Pointe et canal de l'Aqueduc. | C87: =IF(LEN('Détail des projets'!C87)=0,"",'Détail des projets'!C87) -> Ville de Montréal | D87: =IF(LEN('Détail des projets'!G87)=0,"",'Détail des projets'!G87) -> 06-Montréal | E87: =IF(LEN('Détail des projets'!K87)=0,"",'Détail des projets'!K87) -> 2553568
B88: =IF(LEN('Détail des projets'!B88)=0,"",'Détail des projets'!B88) -> Rue Laurier | C88: =IF(LEN('Détail des projets'!C88)=0,"",'Détail des projets'!C88) -> Montréal - Arrondissement Le Plateau-Mont-Royal) | D88: =IF(LEN('Détail des projets'!G88)=0,"",'Détail des projets'!G88) -> 06-Montréal | E88: =IF(LEN('Détail des projets'!K88)=0,"",'Détail des projets'!K88) -> 635100
B89: =IF(LEN('Détail des projets'!B89)=0,"",'Détail des projets'!B89) -> Apaisement de la circulation dans un corridor scolaire | C89: =IF(LEN('Détail des projets'!C89)=0,"",'Détail des projets'!C89) -> Municipalité de Saint-Amable | D89: =IF(LEN('Détail des projets'!G89)=0,"",'Détail des projets'!G89) -> 16-Montérégie | E89: =IF(LEN('Détail des projets'!K89)=0,"",'Détail des projets'!K89) -> 2465
B90: =IF(LEN('Détail des projets'!B90)=0,"",'Détail des projets'!B90) -> Passerelle | C90: =IF(LEN('Détail des projets'!C90)=0,"",'Détail des projets'!C90) -> Ville d'Alma | D90: =IF(LEN('Détail des projets'!G90)=0,"",'Détail des projets'!G90) -> 02-Saguenay- Lac-Saint-Jean | E90: =IF(LEN('Détail des projets'!K90)=0,"",'Détail des projets'!K90) -> 1000000
B91: =IF(LEN('Détail des projets'!B91)=0,"",'Détail des projets'!B91) -> Boulevard Sardaigne | C91: =IF(LEN('Détail des projets'!C91)=0,"",'Détail des projets'!C91) -> Ville de Candiac | D91: =IF(LEN('Détail des projets'!G91)=0,"",'Détail des projets'!G91) -> 16-Montérégie | E91: =IF(LEN('Détail des projets'!K91)=0,"",'Détail des projets'!K91) -> 84000
B92: =IF(LEN('Détail des projets'!B92)=0,"",'Détail des projets'!B92) -> Rue Jacques-Cartier | C92: =IF(LEN('Détail des projets'!C92)=0,"",'Détail des projets'!C92) -> Ville de Gatineau | D92: =IF(LEN('Détail des projets'!G92)=0,"",'Détail des projets'!G92) -> 07-Outaouais | E92: =IF(LEN('Détail des projets'!K92)=0,"",'Détail des projets'!K92) -> 402523
B93: =IF(LEN('Détail des projets'!B93)=0,"",'Détail des projets'!B93) -> Connexion cyclable entre les quartiers | C93: =IF(LEN('Détail des projets'!C93)=0,"",'Détail des projets'!C93) -> Ville de Coaticook | D93: =IF(LEN('Détail des projets'!G93)=0,"",'Détail des projets'!G93) -> 05-Estrie | E93: =IF(LEN('Détail des projets'!K93)=0,"",'Détail des projets'!K93) -> 92494
B94: =IF(LEN('Détail des projets'!B94)=0,"",'Détail des projets'!B94) -> Boulevard Portland | C94: =IF(LEN('Détail des projets'!C94)=0,"",'Détail des projets'!C94) -> Ville de Sherbrooke | D94: =IF(LEN('Détail des projets'!G94)=0,"",'Détail des projets'!G94) -> 05-Estrie | E94: =IF(LEN('Détail des projets'!K94)=0,"",'Détail des projets'!K94) -> 973205
B95: =IF(LEN('Détail des projets'!B95)=0,"",'Détail des projets'!B95) -> Apaisement de la circulation : École St-Arsène, St-Étienne et Ste-Bernadette-Soubirou | C95: =IF(LEN('Détail des projets'!C95)=0,"",'Détail des projets'!C95) -> Ville de Montréal Rosemont École St-Arsène | D95: =IF(LEN('Détail des projets'!G95)=0,"",'Détail des projets'!G95) -> 06-Montréal | E95: =IF(LEN('Détail des projets'!K95)=0,"",'Détail des projets'!K95) -> 164222
B96: =IF(LEN('Détail des projets'!B96)=0,"",'Détail des projets'!B96) -> Traverse du chemin de fer du CP à la hauteur de Saint-Laurent et Bellechasse. | C96: =IF(LEN('Détail des projets'!C96)=0,"",'Détail des projets'!C96) -> Ville de Montréal Saint-Laurent Bellechasse | D96: =IF(LEN('Détail des projets'!G96)=0,"",'Détail des projets'!G96) -> 06-Montréal | E96: =IF(LEN('Détail des projets'!K96)=0,"",'Détail des projets'!K96) -> 280900
B97: =IF(LEN('Détail des projets'!B97)=0,"",'Détail des projets'!B97) -> Piste centre-ville Causapscal | C97: =IF(LEN('Détail des projets'!C97)=0,"",'Détail des projets'!C97) -> MRC de la Matapédia | D97: =IF(LEN('Détail des projets'!G97)=0,"",'Détail des projets'!G97) -> 11-Gaspésie-Iles-de-la-Madeleine | E97: =IF(LEN('Détail des projets'!K97)=0,"",'Détail des projets'!K97) -> 90496
B98: =IF(LEN('Détail des projets'!B98)=0,"",'Détail des projets'!B98) -> Piste cyclable centre du village | C98: =IF(LEN('Détail des projets'!C98)=0,"",'Détail des projets'!C98) -> Saint-Marc-de-Figuery | D98: =IF(LEN('Détail des projets'!G98)=0,"",'Détail des projets'!G98) -> 08-Abitibi-Témiscamingue | E98: =IF(LEN('Détail des projets'!K98)=0,"",'Détail des projets'!K98) -> 3319
B99: =IF(LEN('Détail des projets'!B99)=0,"",'Détail des projets'!B99) -> Piste du boulevard Montcalm Nord | C99: =IF(LEN('Détail des projets'!C99)=0,"",'Détail des projets'!C99) -> Ville de Candiac | D99: =IF(LEN('Détail des projets'!G99)=0,"",'Détail des projets'!G99) -> 16-Montérégie | E99: =IF(LEN('Détail des projets'!K99)=0,"",'Détail des projets'!K99) -> 375000
B100: =IF(LEN('Détail des projets'!B100)=0,"",'Détail des projets'!B100) -> Piste et passerelle du parc des Saules | C100: =IF(LEN('Détail des projets'!C100)=0,"",'Détail des projets'!C100) -> Ville de Québec | D100: =IF(LEN('Détail des projets'!G100)=0,"",'Détail des projets'!G100) -> 03-Capitale-Nationale | E100: =IF(LEN('Détail des projets'!K100)=0,"",'Détail des projets'!K100) -> 1000000
B101: =IF(LEN('Détail des projets'!B101)=0,"",'Détail des projets'!B101) -> Piste du boulevard Taché, du Rapibus à Montcalm | C101: =IF(LEN('Détail des projets'!C101)=0,"",'Détail des projets'!C101) -> Ville de Gatineau | D101: =IF(LEN('Détail des projets'!G101)=0,"",'Détail des projets'!G101) -> 07-Outaouais | E101: =IF(LEN('Détail des projets'!K101)=0,"",'Détail des projets'!K101) -> 146033
B102: =IF(LEN('Détail des projets'!B102)=0,"",'Détail des projets'!B102) -> Lien cyclo-pédestre entre la route 116 et la piste du Grand-Tronc | C102: =IF(LEN('Détail des projets'!C102)=0,"",'Détail des projets'!C102) -> Ville de Lévis | D102: =IF(LEN('Détail des projets'!G102)=0,"",'Détail des projets'!G102) -> 12-Chaudières-Appalaches | E102: =IF(LEN('Détail des projets'!K102)=0,"",'Détail des projets'!K102) -> 85000
B103: =IF(LEN('Détail des projets'!B103)=0,"",'Détail des projets'!B103) -> Bandes cyclables sur 21 segments dans la ville. | C103: =IF(LEN('Détail des projets'!C103)=0,"",'Détail des projets'!C103) -> Ville de Laval | D103: =IF(LEN('Détail des projets'!G103)=0,"",'Détail des projets'!G103) -> 13-Laval | E103: =IF(LEN('Détail des projets'!K103)=0,"",'Détail des projets'!K103) -> 288924
B104: =IF(LEN('Détail des projets'!B104)=0,"",'Détail des projets'!B104) -> Piste cyclable sur la 12e Avenue | C104: =IF(LEN('Détail des projets'!C104)=0,"",'Détail des projets'!C104) -> Ville de Sherbrooke | D104: =IF(LEN('Détail des projets'!G104)=0,"",'Détail des projets'!G104) -> 05-Estrie | E104: =IF(LEN('Détail des projets'!K104)=0,"",'Détail des projets'!K104) -> 570256
B105: =IF(LEN('Détail des projets'!B105)=0,"",'Détail des projets'!B105) -> 2e phase du projet de voie cyclable de la 3e Avenue (projet 2017-2018) | C105: =IF(LEN('Détail des projets'!C105)=0,"",'Détail des projets'!C105) -> Ville de Québec | D105: =IF(LEN('Détail des projets'!G105)=0,"",'Détail des projets'!G105) -> 03-Capitale-Nationale | E105: =IF(LEN('Détail des projets'!K105)=0,"",'Détail des projets'!K105) -> 68770
B106: =IF(LEN('Détail des projets'!B106)=0,"",'Détail des projets'!B106) -> Piste du boulevard Royal | C106: =IF(LEN('Détail des projets'!C106)=0,"",'Détail des projets'!C106) -> Ville de Shawinigan | D106: =IF(LEN('Détail des projets'!G106)=0,"",'Détail des projets'!G106) -> 04-Mauricie | E106: =IF(LEN('Détail des projets'!K106)=0,"",'Détail des projets'!K106) -> 775000
B107: =IF(LEN('Détail des projets'!B107)=0,"",'Détail des projets'!B107) -> Piste de la rue Franck-Carrel | C107: =IF(LEN('Détail des projets'!C107)=0,"",'Détail des projets'!C107) -> Ville de Québec | D107: =IF(LEN('Détail des projets'!G107)=0,"",'Détail des projets'!G107) -> 03-Capitale-Nationale | E107: =IF(LEN('Détail des projets'!K107)=0,"",'Détail des projets'!K107) -> 569989
B108: =IF(LEN('Détail des projets'!B108)=0,"",'Détail des projets'!B108) -> Lien entre une piste multifonctionnelle et la route 132 | C108: =IF(LEN('Détail des projets'!C108)=0,"",'Détail des projets'!C108) -> Ville de Bonaventure | D108: =IF(LEN('Détail des projets'!G108)=0,"",'Détail des projets'!G108) -> 11-Gaspésie-Iles-de-la-Madeleine | E108: =IF(LEN('Détail des projets'!K108)=0,"",'Détail des projets'!K108) -> 20724
B109: =IF(LEN('Détail des projets'!B109)=0,"",'Détail des projets'!B109) -> Piste de la 3e Rue | C109: =IF(LEN('Détail des projets'!C109)=0,"",'Détail des projets'!C109) -> Ville de Shawinigan | D109: =IF(LEN('Détail des projets'!G109)=0,"",'Détail des projets'!G109) -> 04-Mauricie | E109: =IF(LEN('Détail des projets'!K109)=0,"",'Détail des projets'!K109) -> 212075
B110: =IF(LEN('Détail des projets'!B110)=0,"",'Détail des projets'!B110) -> Piste de la rue Garnier | C110: =IF(LEN('Détail des projets'!C110)=0,"",'Détail des projets'!C110) -> Ville de Shawinigan | D110: =IF(LEN('Détail des projets'!G110)=0,"",'Détail des projets'!G110) -> 04-Mauricie | E110: =IF(LEN('Détail des projets'!K110)=0,"",'Détail des projets'!K110) -> 130225
B111: =IF(LEN('Détail des projets'!B111)=0,"",'Détail des projets'!B111) -> Aménagement de corridors scolaires autour de deux écoles | C111: =IF(LEN('Détail des projets'!C111)=0,"",'Détail des projets'!C111) -> Ville de Saint-Honoré | D111: =IF(LEN('Détail des projets'!G111)=0,"",'Détail des projets'!G111) -> 02-Saguenay- Lac-Saint-Jean | E111: =IF(LEN('Détail des projets'!K111)=0,"",'Détail des projets'!K111) -> 68250
B112: =IF(LEN('Détail des projets'!B112)=0,"",'Détail des projets'!B112) -> Apaisement de la circulation à Simone-Monet | C112: =IF(LEN('Détail des projets'!C112)=0,"",'Détail des projets'!C112) -> Ville de Montréal - Arr. CDN-NDG | D112: =IF(LEN('Détail des projets'!G112)=0,"",'Détail des projets'!G112) -> 06-Montréal | E112: =IF(LEN('Détail des projets'!K112)=0,"",'Détail des projets'!K112) -> 92
B113: =IF(LEN('Détail des projets'!B113)=0,"",'Détail des projets'!B113) -> Piste de la base de plein-air Sainte-Foy | C113: =IF(LEN('Détail des projets'!C113)=0,"",'Détail des projets'!C113) -> Ville de Québec | D113: =IF(LEN('Détail des projets'!G113)=0,"",'Détail des projets'!G113) -> 03-Capitale-Nationale | E113: =IF(LEN('Détail des projets'!K113)=0,"",'Détail des projets'!K113) -> 360174
B114: =IF(LEN('Détail des projets'!B114)=0,"",'Détail des projets'!B114) -> Apaisement de la circulation à l'école Bedford | C114: =IF(LEN('Détail des projets'!C114)=0,"",'Détail des projets'!C114) -> Ville de Montréal - Arr. CDN-NDG | D114: =IF(LEN('Détail des projets'!G114)=0,"",'Détail des projets'!G114) -> 06-Montréal | E114: =IF(LEN('Détail des projets'!K114)=0,"",'Détail des projets'!K114) -> 250000
B115: =IF(LEN('Détail des projets'!B115)=0,"",'Détail des projets'!B115) -> Piste du boulevard Taché, de Ferme Moore à Saint-Dominique | C115: =IF(LEN('Détail des projets'!C115)=0,"",'Détail des projets'!C115) -> Ville de Gatineau | D115: =IF(LEN('Détail des projets'!G115)=0,"",'Détail des projets'!G115) -> 07-Outaouais | E115: =IF(LEN('Détail des projets'!K115)=0,"",'Détail des projets'!K115) -> 65988
B116: =IF(LEN('Détail des projets'!B116)=0,"",'Détail des projets'!B116) -> Apaisement de la circulation à l'Académie Beth-Rivkah | C116: =IF(LEN('Détail des projets'!C116)=0,"",'Détail des projets'!C116) -> Ville de Montréal - Arr. CDN-NDG | D116: =IF(LEN('Détail des projets'!G116)=0,"",'Détail des projets'!G116) -> 06-Montréal | E116: =IF(LEN('Détail des projets'!K116)=0,"",'Détail des projets'!K116) -> 205571
B117: =IF(LEN('Détail des projets'!B117)=0,"",'Détail des projets'!B117) -> Apaisement de la circulation à l'école Des Nations | C117: =IF(LEN('Détail des projets'!C117)=0,"",'Détail des projets'!C117) -> Ville de Montréal - Arr. CDN-NDG | D117: =IF(LEN('Détail des projets'!G117)=0,"",'Détail des projets'!G117) -> 06-Montréal | E117: =IF(LEN('Détail des projets'!K117)=0,"",'Détail des projets'!K117) -> 226093
B118: =IF(LEN('Détail des projets'!B118)=0,"",'Détail des projets'!B118) -> Piste rues Hubert, Biermans et Chahoon | C118: =IF(LEN('Détail des projets'!C118)=0,"",'Détail des projets'!C118) -> Ville de Shawinigan | D118: =IF(LEN('Détail des projets'!G118)=0,"",'Détail des projets'!G118) -> 04-Mauricie | E118: =IF(LEN('Détail des projets'!K118)=0,"",'Détail des projets'!K118) -> 1000000
B119: =IF(LEN('Détail des projets'!B119)=0,"",'Détail des projets'!B119) -> Piste multifonctionnelle parallèle à la route 132 | C119: =IF(LEN('Détail des projets'!C119)=0,"",'Détail des projets'!C119) -> Ville de Carleton-sur-Mer | D119: =IF(LEN('Détail des projets'!G119)=0,"",'Détail des projets'!G119) -> 11-Gaspésie-Iles-de-la-Madeleine | E119: =IF(LEN('Détail des projets'!K119)=0,"",'Détail des projets'!K119) -> 35592
B120: =IF(LEN('Détail des projets'!B120)=0,"",'Détail des projets'!B120) -> Piste reliant le village au secteur des Jardins de Saint-Rémi | C120: =IF(LEN('Détail des projets'!C120)=0,"",'Détail des projets'!C120) -> Ville de Saint-Rémi | D120: =IF(LEN('Détail des projets'!G120)=0,"",'Détail des projets'!G120) -> 16-Montérégie | E120: =IF(LEN('Détail des projets'!K120)=0,"",'Détail des projets'!K120) -> 160000
B121: =IF(LEN('Détail des projets'!B121)=0,"",'Détail des projets'!B121) -> Apaisement de la circulation en milieu scolaire | C121: =IF(LEN('Détail des projets'!C121)=0,"",'Détail des projets'!C121) -> Municipalité d'Henryville | D121: =IF(LEN('Détail des projets'!G121)=0,"",'Détail des projets'!G121) -> 16-Montérégie | E121: =IF(LEN('Détail des projets'!K121)=0,"",'Détail des projets'!K121) -> 19825
B122: =IF(LEN('Détail des projets'!B122)=0,"",'Détail des projets'!B122) -> Piste cyclable en milieu urbain | C122: =IF(LEN('Détail des projets'!C122)=0,"",'Détail des projets'!C122) -> Ville de Saint-Urbain-Premier | D122: =IF(LEN('Détail des projets'!G122)=0,"",'Détail des projets'!G122) -> 16-Montérégie | E122: =IF(LEN('Détail des projets'!K122)=0,"",'Détail des projets'!K122) -> 56837
B123: =IF(LEN('Détail des projets'!B123)=0,"",'Détail des projets'!B123) -> Piste cyclable dans une emprise d'H-Q à Sainte-Anne-de-Bellevue | C123: =IF(LEN('Détail des projets'!C123)=0,"",'Détail des projets'!C123) -> Ville de Montréal | D123: =IF(LEN('Détail des projets'!G123)=0,"",'Détail des projets'!G123) -> 06-Montréal | E123: =IF(LEN('Détail des projets'!K123)=0,"",'Détail des projets'!K123) -> 110506
B124: =IF(LEN('Détail des projets'!B124)=0,"",'Détail des projets'!B124) -> Apaisement de la circulation près d'une école au centre du village | C124: =IF(LEN('Détail des projets'!C124)=0,"",'Détail des projets'!C124) -> Municipalité de Notre-Dame-de-Laus | D124: =IF(LEN('Détail des projets'!G124)=0,"",'Détail des projets'!G124) -> 15-Laurentides | E124: =IF(LEN('Détail des projets'!K124)=0,"",'Détail des projets'!K124) -> 9350
B125: =IF(LEN('Détail des projets'!B125)=0,"",'Détail des projets'!B125) -> Abris 4 saisons pour vélo | C125: =IF(LEN('Détail des projets'!C125)=0,"",'Détail des projets'!C125) -> Ville de Montréal - Arr. Plateau-Mont-Royal | D125: =IF(LEN('Détail des projets'!G125)=0,"",'Détail des projets'!G125) -> 06-Montréal | E125: =IF(LEN('Détail des projets'!K125)=0,"",'Détail des projets'!K125) -> 27000
B126: =IF(LEN('Détail des projets'!B126)=0,"",'Détail des projets'!B126) -> Piste de la rue des Ruisseaux | C126: =IF(LEN('Détail des projets'!C126)=0,"",'Détail des projets'!C126) -> Ville de Gatineau | D126: =IF(LEN('Détail des projets'!G126)=0,"",'Détail des projets'!G126) -> 07-Outaouais | E126: =IF(LEN('Détail des projets'!K126)=0,"",'Détail des projets'!K126) -> 246170
B127: =IF(LEN('Détail des projets'!B127)=0,"",'Détail des projets'!B127) -> Apaisement de la circulation à l'école Les-Enfants-du-Monde | C127: =IF(LEN('Détail des projets'!C127)=0,"",'Détail des projets'!C127) -> Ville de Montréal - Arr. CDN-NDG | D127: =IF(LEN('Détail des projets'!G127)=0,"",'Détail des projets'!G127) -> 06-Montréal | E127: =IF(LEN('Détail des projets'!K127)=0,"",'Détail des projets'!K127) -> 180914
B128: =IF(LEN('Détail des projets'!B128)=0,"",'Détail des projets'!B128) -> Apaisement de la circulation à l'école Saint-Raymond | C128: =IF(LEN('Détail des projets'!C128)=0,"",'Détail des projets'!C128) -> Ville de Montréal - Arr. CDN-NDG | D128: =IF(LEN('Détail des projets'!G128)=0,"",'Détail des projets'!G128) -> 06-Montréal | E128: =IF(LEN('Détail des projets'!K128)=0,"",'Détail des projets'!K128) -> 89653
B129: =IF(LEN('Détail des projets'!B129)=0,"",'Détail des projets'!B129) -> Piste multifonctionnelle et voies cyclables des rues Demsey, Proudfoot, Principale et Romain. | C129: =IF(LEN('Détail des projets'!C129)=0,"",'Détail des projets'!C129) -> Municipalité de Fort-Coulonge | D129: =IF(LEN('Détail des projets'!G129)=0,"",'Détail des projets'!G129) -> 07-Outaouais | E129: =IF(LEN('Détail des projets'!K129)=0,"",'Détail des projets'!K129) -> 51566
B130: =IF(LEN('Détail des projets'!B130)=0,"",'Détail des projets'!B130) -> Sentier rue Westem | C130: =IF(LEN('Détail des projets'!C130)=0,"",'Détail des projets'!C130) -> Ville de Waterloo | D130: =IF(LEN('Détail des projets'!G130)=0,"",'Détail des projets'!G130) -> 16-Montérégie | E130: =IF(LEN('Détail des projets'!K130)=0,"",'Détail des projets'!K130) -> 147304
B131: =IF(LEN('Détail des projets'!B131)=0,"",'Détail des projets'!B131) -> Piste rue St-Hubert | C131: =IF(LEN('Détail des projets'!C131)=0,"",'Détail des projets'!C131) -> Ville de Granby | D131: =IF(LEN('Détail des projets'!G131)=0,"",'Détail des projets'!G131) -> 16-Montérégie | E131: =IF(LEN('Détail des projets'!K131)=0,"",'Détail des projets'!K131) -> 1379130
B132: =IF(LEN('Détail des projets'!B132)=0,"",'Détail des projets'!B132) -> Sentier polyvalent | C132: =IF(LEN('Détail des projets'!C132)=0,"",'Détail des projets'!C132) -> Municipalité du Canton d'Orford | D132: =IF(LEN('Détail des projets'!G132)=0,"",'Détail des projets'!G132) -> 05-Estrie | E132: =IF(LEN('Détail des projets'!K132)=0,"",'Détail des projets'!K132) -> 139682
B133: =IF(LEN('Détail des projets'!B133)=0,"",'Détail des projets'!B133) -> Piste cyclable bidirectionnelle | C133: =IF(LEN('Détail des projets'!C133)=0,"",'Détail des projets'!C133) -> Ville de Bromont | D133: =IF(LEN('Détail des projets'!G133)=0,"",'Détail des projets'!G133) -> 16-Montérégie | E133: =IF(LEN('Détail des projets'!K133)=0,"",'Détail des projets'!K133) -> 545350
B134: =IF(LEN('Détail des projets'!B134)=0,"",'Détail des projets'!B134) -> Piste route 108 | C134: =IF(LEN('Détail des projets'!C134)=0,"",'Détail des projets'!C134) -> Municipalité de Lambton | D134: =IF(LEN('Détail des projets'!G134)=0,"",'Détail des projets'!G134) -> 05-Estrie | E134: =IF(LEN('Détail des projets'!K134)=0,"",'Détail des projets'!K134) -> 120000
B135: =IF(LEN('Détail des projets'!B135)=0,"",'Détail des projets'!B135) -> Sentier Donnacona | C135: =IF(LEN('Détail des projets'!C135)=0,"",'Détail des projets'!C135) -> Ville de Donnacona | D135: =IF(LEN('Détail des projets'!G135)=0,"",'Détail des projets'!G135) -> 03-Capitale-Nationale | E135: =IF(LEN('Détail des projets'!K135)=0,"",'Détail des projets'!K135) -> 250000
B136: =IF(LEN('Détail des projets'!B136)=0,"",'Détail des projets'!B136) -> Infra cyc. L-Beauport | C136: =IF(LEN('Détail des projets'!C136)=0,"",'Détail des projets'!C136) -> Municipalité de Lac-Beauport | D136: =IF(LEN('Détail des projets'!G136)=0,"",'Détail des projets'!G136) -> 03-Capitale-Nationale | E136: =IF(LEN('Détail des projets'!K136)=0,"",'Détail des projets'!K136) -> 95250
B137: =IF(LEN('Détail des projets'!B137)=0,"",'Détail des projets'!B137) -> Piste cyclo Québec | C137: =IF(LEN('Détail des projets'!C137)=0,"",'Détail des projets'!C137) -> Ville de Québec | D137: =IF(LEN('Détail des projets'!G137)=0,"",'Détail des projets'!G137) -> 03-Capitale-Nationale | E137: =IF(LEN('Détail des projets'!K137)=0,"",'Détail des projets'!K137) -> 172593
B138: =IF(LEN('Détail des projets'!B138)=0,"",'Détail des projets'!B138) -> Rang Montagne | C138: =IF(LEN('Détail des projets'!C138)=0,"",'Détail des projets'!C138) -> Municipalité de Mont-Saint-Grégoire | D138: =IF(LEN('Détail des projets'!G138)=0,"",'Détail des projets'!G138) -> 16-Montérégie | E138: =IF(LEN('Détail des projets'!K138)=0,"",'Détail des projets'!K138) -> 120375
B139: =IF(LEN('Détail des projets'!B139)=0,"",'Détail des projets'!B139) -> Rue Gilmore | C139: =IF(LEN('Détail des projets'!C139)=0,"",'Détail des projets'!C139) -> Municipalité de Mont-Saint-Grégoire | D139: =IF(LEN('Détail des projets'!G139)=0,"",'Détail des projets'!G139) -> 16-Montérégie | E139: =IF(LEN('Détail des projets'!K139)=0,"",'Détail des projets'!K139) -> 27900
B140: =IF(LEN('Détail des projets'!B140)=0,"",'Détail des projets'!B140) -> Secteur Sud ville | C140: =IF(LEN('Détail des projets'!C140)=0,"",'Détail des projets'!C140) -> Ville de Salaberry-de-Valleyfield | D140: =IF(LEN('Détail des projets'!G140)=0,"",'Détail des projets'!G140) -> 16-Montérégie | E140: =IF(LEN('Détail des projets'!K140)=0,"",'Détail des projets'!K140) -> 761899
B141: =IF(LEN('Détail des projets'!B141)=0,"",'Détail des projets'!B141) -> Boul. Casavant O. | C141: =IF(LEN('Détail des projets'!C141)=0,"",'Détail des projets'!C141) -> Ville Saint-Hyacinthe | D141: =IF(LEN('Détail des projets'!G141)=0,"",'Détail des projets'!G141) -> 16-Montérégie | E141: =IF(LEN('Détail des projets'!K141)=0,"",'Détail des projets'!K141) -> 280939
B142: =IF(LEN('Détail des projets'!B142)=0,"",'Détail des projets'!B142) -> Piste cyclable | C142: =IF(LEN('Détail des projets'!C142)=0,"",'Détail des projets'!C142) -> Ville de Lachute | D142: =IF(LEN('Détail des projets'!G142)=0,"",'Détail des projets'!G142) -> 15-Laurentides | E142: =IF(LEN('Détail des projets'!K142)=0,"",'Détail des projets'!K142) -> 337750
B143: =IF(LEN('Détail des projets'!B143)=0,"",'Détail des projets'!B143) -> Réseau cyclable | C143: =IF(LEN('Détail des projets'!C143)=0,"",'Détail des projets'!C143) -> Ville de Carleton-sur-Mer | D143: =IF(LEN('Détail des projets'!G143)=0,"",'Détail des projets'!G143) -> 11-Gaspésie-Iles-de-la-Madeleine | E143: =IF(LEN('Détail des projets'!K143)=0,"",'Détail des projets'!K143) -> 32000
B144: =IF(LEN('Détail des projets'!B144)=0,"",'Détail des projets'!B144) -> P. Cyclable Riv. au Renard | C144: =IF(LEN('Détail des projets'!C144)=0,"",'Détail des projets'!C144) -> Ville de Gaspé | D144: =IF(LEN('Détail des projets'!G144)=0,"",'Détail des projets'!G144) -> 11-Gaspésie-Iles-de-la-Madeleine | E144: =IF(LEN('Détail des projets'!K144)=0,"",'Détail des projets'!K144) -> 185238
B145: =IF(LEN('Détail des projets'!B145)=0,"",'Détail des projets'!B145) -> Emprise ferr. | C145: =IF(LEN('Détail des projets'!C145)=0,"",'Détail des projets'!C145) -> Ville de Charlemagne | D145: =IF(LEN('Détail des projets'!G145)=0,"",'Détail des projets'!G145) -> 15-Laurentides | E145: =IF(LEN('Détail des projets'!K145)=0,"",'Détail des projets'!K145) -> 230800
B146: =IF(LEN('Détail des projets'!B146)=0,"",'Détail des projets'!B146) -> Hector-Lanthier | C146: =IF(LEN('Détail des projets'!C146)=0,"",'Détail des projets'!C146) -> Ville de Saint-Eustache | D146: =IF(LEN('Détail des projets'!G146)=0,"",'Détail des projets'!G146) -> 15-Laurentides | E146: =IF(LEN('Détail des projets'!K146)=0,"",'Détail des projets'!K146) -> 271600
B147: =IF(LEN('Détail des projets'!B147)=0,"",'Détail des projets'!B147) -> Passerelle | C147: =IF(LEN('Détail des projets'!C147)=0,"",'Détail des projets'!C147) -> Ville de L'Assomption | D147: =IF(LEN('Détail des projets'!G147)=0,"",'Détail des projets'!G147) -> 15-Laurentides | E147: =IF(LEN('Détail des projets'!K147)=0,"",'Détail des projets'!K147) -> 1689000
B148: =IF(LEN('Détail des projets'!B148)=0,"",'Détail des projets'!B148) -> Arthur-Sauvé | C148: =IF(LEN('Détail des projets'!C148)=0,"",'Détail des projets'!C148) -> Ville de Laval | D148: =IF(LEN('Détail des projets'!G148)=0,"",'Détail des projets'!G148) -> 13-Laval | E148: =IF(LEN('Détail des projets'!K148)=0,"",'Détail des projets'!K148) -> 26275
B149: =IF(LEN('Détail des projets'!B149)=0,"",'Détail des projets'!B149) -> Curé-Labelle | C149: =IF(LEN('Détail des projets'!C149)=0,"",'Détail des projets'!C149) -> Ville de Laval | D149: =IF(LEN('Détail des projets'!G149)=0,"",'Détail des projets'!G149) -> 13-Laval | E149: =IF(LEN('Détail des projets'!K149)=0,"",'Détail des projets'!K149) -> 200513
B150: =IF(LEN('Détail des projets'!B150)=0,"",'Détail des projets'!B150) -> Parcours Écoles | C150: =IF(LEN('Détail des projets'!C150)=0,"",'Détail des projets'!C150) -> Ville de Laval | D150: =IF(LEN('Détail des projets'!G150)=0,"",'Détail des projets'!G150) -> 13-Laval | E150: =IF(LEN('Détail des projets'!K150)=0,"",'Détail des projets'!K150) -> 888064
B151: =IF(LEN('Détail des projets'!B151)=0,"",'Détail des projets'!B151) -> St-Martin O. | C151: =IF(LEN('Détail des projets'!C151)=0,"",'Détail des projets'!C151) -> Ville de Laval | D151: =IF(LEN('Détail des projets'!G151)=0,"",'Détail des projets'!G151) -> 13-Laval | E151: =IF(LEN('Détail des projets'!K151)=0,"",'Détail des projets'!K151) -> 60000
B152: =IF(LEN('Détail des projets'!B152)=0,"",'Détail des projets'!B152) -> Inters. 132-204 | C152: =IF(LEN('Détail des projets'!C152)=0,"",'Détail des projets'!C152) -> Municipalité de Saint-Jean-Port-Joli | D152: =IF(LEN('Détail des projets'!G152)=0,"",'Détail des projets'!G152) -> 12-Chaudières-Appalaches | E152: =IF(LEN('Détail des projets'!K152)=0,"",'Détail des projets'!K152) -> 41672
B153: =IF(LEN('Détail des projets'!B153)=0,"",'Détail des projets'!B153) -> Piste boul. Taché | C153: =IF(LEN('Détail des projets'!C153)=0,"",'Détail des projets'!C153) -> Ville de Montmagny | D153: =IF(LEN('Détail des projets'!G153)=0,"",'Détail des projets'!G153) -> 12-Chaudières-Appalaches | E153: =IF(LEN('Détail des projets'!K153)=0,"",'Détail des projets'!K153) -> 44420
B154: =IF(LEN('Détail des projets'!B154)=0,"",'Détail des projets'!B154) -> 30e Rue et 1ere Avenue | C154: =IF(LEN('Détail des projets'!C154)=0,"",'Détail des projets'!C154) -> Municipalité de la Paroisse de Notre-Dame-des-Pins | D154: =IF(LEN('Détail des projets'!G154)=0,"",'Détail des projets'!G154) -> 12-Chaudières-Appalaches | E154: =IF(LEN('Détail des projets'!K154)=0,"",'Détail des projets'!K154) -> 299286
B155: =IF(LEN('Détail des projets'!B155)=0,"",'Détail des projets'!B155) -> Tunnel Exo | C155: =IF(LEN('Détail des projets'!C155)=0,"",'Détail des projets'!C155) -> Ville de Vaudreuil-Dorion | D155: =IF(LEN('Détail des projets'!G155)=0,"",'Détail des projets'!G155) -> 16-Montérégie | E155: =IF(LEN('Détail des projets'!K155)=0,"",'Détail des projets'!K155) -> 1744003
B156: =IF(LEN('Détail des projets'!B156)=0,"",'Détail des projets'!B156) -> Rue Ampère | C156: =IF(LEN('Détail des projets'!C156)=0,"",'Détail des projets'!C156) -> Ville de Boucherville | D156: =IF(LEN('Détail des projets'!G156)=0,"",'Détail des projets'!G156) -> 16-Montérégie | E156: =IF(LEN('Détail des projets'!K156)=0,"",'Détail des projets'!K156) -> 655810
B157: =IF(LEN('Détail des projets'!B157)=0,"",'Détail des projets'!B157) -> Avenue Fouquet | C157: =IF(LEN('Détail des projets'!C157)=0,"",'Détail des projets'!C157) -> Ville de Candiac | D157: =IF(LEN('Détail des projets'!G157)=0,"",'Détail des projets'!G157) -> 16-Montérégie | E157: =IF(LEN('Détail des projets'!K157)=0,"",'Détail des projets'!K157) -> 29000
B158: =IF(LEN('Détail des projets'!B158)=0,"",'Détail des projets'!B158) -> Piste cyclable | C158: =IF(LEN('Détail des projets'!C158)=0,"",'Détail des projets'!C158) -> Ville de Chambly | D158: =IF(LEN('Détail des projets'!G158)=0,"",'Détail des projets'!G158) -> 16-Montérégie | E158: =IF(LEN('Détail des projets'!K158)=0,"",'Détail des projets'!K158) -> 185120
B159: =IF(LEN('Détail des projets'!B159)=0,"",'Détail des projets'!B159) -> Avenue Mont-Bruno | C159: =IF(LEN('Détail des projets'!C159)=0,"",'Détail des projets'!C159) -> Ville de Saint-Basile-le-Grand | D159: =IF(LEN('Détail des projets'!G159)=0,"",'Détail des projets'!G159) -> 16-Montérégie | E159: =IF(LEN('Détail des projets'!K159)=0,"",'Détail des projets'!K159) -> 99676
B160: =IF(LEN('Détail des projets'!B160)=0,"",'Détail des projets'!B160) -> A-Frappier Paris | C160: =IF(LEN('Détail des projets'!C160)=0,"",'Détail des projets'!C160) -> Ville de Sainte-Julie | D160: =IF(LEN('Détail des projets'!G160)=0,"",'Détail des projets'!G160) -> 16-Montérégie | E160: =IF(LEN('Détail des projets'!K160)=0,"",'Détail des projets'!K160) -> 93500
B161: =IF(LEN('Détail des projets'!B161)=0,"",'Détail des projets'!B161) -> A-Frappier - A20 | C161: =IF(LEN('Détail des projets'!C161)=0,"",'Détail des projets'!C161) -> Ville de Sainte-Julie | D161: =IF(LEN('Détail des projets'!G161)=0,"",'Détail des projets'!G161) -> 16-Montérégie | E161: =IF(LEN('Détail des projets'!K161)=0,"",'Détail des projets'!K161) -> 122500
B162: =IF(LEN('Détail des projets'!B162)=0,"",'Détail des projets'!B162) -> Rue Borduas | C162: =IF(LEN('Détail des projets'!C162)=0,"",'Détail des projets'!C162) -> Ville de Sainte-Julie | D162: =IF(LEN('Détail des projets'!G162)=0,"",'Détail des projets'!G162) -> 16-Montérégie | E162: =IF(LEN('Détail des projets'!K162)=0,"",'Détail des projets'!K162) -> 100000
B163: =IF(LEN('Détail des projets'!B163)=0,"",'Détail des projets'!B163) -> Rue Robert | C163: =IF(LEN('Détail des projets'!C163)=0,"",'Détail des projets'!C163) -> Municipalité de Saint-Jean-Baptiste | D163: =IF(LEN('Détail des projets'!G163)=0,"",'Détail des projets'!G163) -> 16-Montérégie | E163: =IF(LEN('Détail des projets'!K163)=0,"",'Détail des projets'!K163) -> 90275
B164: =IF(LEN('Détail des projets'!B164)=0,"",'Détail des projets'!B164) -> Viaduc Chenaux | C164: =IF(LEN('Détail des projets'!C164)=0,"",'Détail des projets'!C164) -> Ville de Vaudreuil-Dorion | D164: =IF(LEN('Détail des projets'!G164)=0,"",'Détail des projets'!G164) -> 16-Montérégie | E164: =IF(LEN('Détail des projets'!K164)=0,"",'Détail des projets'!K164) -> 205647
B165: =IF(LEN('Détail des projets'!B165)=0,"",'Détail des projets'!B165) -> Nénuphars | C165: =IF(LEN('Détail des projets'!C165)=0,"",'Détail des projets'!C165) -> Ville de Vaudreuil-Dorion | D165: =IF(LEN('Détail des projets'!G165)=0,"",'Détail des projets'!G165) -> 16-Montérégie | E165: =IF(LEN('Détail des projets'!K165)=0,"",'Détail des projets'!K165) -> 415500
B166: =IF(LEN('Détail des projets'!B166)=0,"",'Détail des projets'!B166) -> RPP - St-Zotique | C166: =IF(LEN('Détail des projets'!C166)=0,"",'Détail des projets'!C166) -> Ville de Montréal | D166: =IF(LEN('Détail des projets'!G166)=0,"",'Détail des projets'!G166) -> 06-Montréal | E166: =IF(LEN('Détail des projets'!K166)=0,"",'Détail des projets'!K166) -> 25133
B167: =IF(LEN('Détail des projets'!B167)=0,"",'Détail des projets'!B167) -> RPP - Station | C167: =IF(LEN('Détail des projets'!C167)=0,"",'Détail des projets'!C167) -> Ville de Montréal | D167: =IF(LEN('Détail des projets'!G167)=0,"",'Détail des projets'!G167) -> 06-Montréal | E167: =IF(LEN('Détail des projets'!K167)=0,"",'Détail des projets'!K167) -> 116116
B168: =IF(LEN('Détail des projets'!B168)=0,"",'Détail des projets'!B168) -> RPP - Bellechasse | C168: =IF(LEN('Détail des projets'!C168)=0,"",'Détail des projets'!C168) -> Ville de Montréal | D168: =IF(LEN('Détail des projets'!G168)=0,"",'Détail des projets'!G168) -> 06-Montréal | E168: =IF(LEN('Détail des projets'!K168)=0,"",'Détail des projets'!K168) -> 130798
B169: =IF(LEN('Détail des projets'!B169)=0,"",'Détail des projets'!B169) -> CDN - Yeshiva | C169: =IF(LEN('Détail des projets'!C169)=0,"",'Détail des projets'!C169) -> Ville de Montréal | D169: =IF(LEN('Détail des projets'!G169)=0,"",'Détail des projets'!G169) -> 06-Montréal | E169: =IF(LEN('Détail des projets'!K169)=0,"",'Détail des projets'!K169) -> 96571
B170: =IF(LEN('Détail des projets'!B170)=0,"",'Détail des projets'!B170) -> CDN - Supports vélo | C170: =IF(LEN('Détail des projets'!C170)=0,"",'Détail des projets'!C170) -> Ville de Montréal | D170: =IF(LEN('Détail des projets'!G170)=0,"",'Détail des projets'!G170) -> 06-Montréal | E170: =IF(LEN('Détail des projets'!K170)=0,"",'Détail des projets'!K170) -> 67500
B171: =IF(LEN('Détail des projets'!B171)=0,"",'Détail des projets'!B171) -> CDN - ND-des-Neiges | C171: =IF(LEN('Détail des projets'!C171)=0,"",'Détail des projets'!C171) -> Ville de Montréal | D171: =IF(LEN('Détail des projets'!G171)=0,"",'Détail des projets'!G171) -> 06-Montréal | E171: =IF(LEN('Détail des projets'!K171)=0,"",'Détail des projets'!K171) -> 33768
B172: =IF(LEN('Détail des projets'!B172)=0,"",'Détail des projets'!B172) -> CDN - L-Teasdale | C172: =IF(LEN('Détail des projets'!C172)=0,"",'Détail des projets'!C172) -> Ville de Montréal | D172: =IF(LEN('Détail des projets'!G172)=0,"",'Détail des projets'!G172) -> 06-Montréal | E172: =IF(LEN('Détail des projets'!K172)=0,"",'Détail des projets'!K172) -> 49880
B173: =IF(LEN('Détail des projets'!B173)=0,"",'Détail des projets'!B173) -> Piste H-Q | C173: =IF(LEN('Détail des projets'!C173)=0,"",'Détail des projets'!C173) -> Ville de Trois-Rivières | D173: =IF(LEN('Détail des projets'!G173)=0,"",'Détail des projets'!G173) -> 04-Mauricie | E173: =IF(LEN('Détail des projets'!K173)=0,"",'Détail des projets'!K173) -> 614250
B174: =IF(LEN('Détail des projets'!B174)=0,"",'Détail des projets'!B174) -> Bellefeuille | C174: =IF(LEN('Détail des projets'!C174)=0,"",'Détail des projets'!C174) -> Ville de Trois-Rivières | D174: =IF(LEN('Détail des projets'!G174)=0,"",'Détail des projets'!G174) -> 04-Mauricie | E174: =IF(LEN('Détail des projets'!K174)=0,"",'Détail des projets'!K174) -> 304375
B175: =IF(LEN('Détail des projets'!B175)=0,"",'Détail des projets'!B175) -> Rue Pelletier | C175: =IF(LEN('Détail des projets'!C175)=0,"",'Détail des projets'!C175) -> Ville de Drummondville | D175: =IF(LEN('Détail des projets'!G175)=0,"",'Détail des projets'!G175) -> 17-Centre-du-Québec | E175: =IF(LEN('Détail des projets'!K175)=0,"",'Détail des projets'!K175) -> 100950
B176: =IF(LEN('Détail des projets'!B176)=0,"",'Détail des projets'!B176) -> Grande-Allée | C176: =IF(LEN('Détail des projets'!C176)=0,"",'Détail des projets'!C176) -> Ville de Drummondville | D176: =IF(LEN('Détail des projets'!G176)=0,"",'Détail des projets'!G176) -> 17-Centre-du-Québec | E176: =IF(LEN('Détail des projets'!K176)=0,"",'Détail des projets'!K176) -> 307624
B177: =IF(LEN('Détail des projets'!B177)=0,"",'Détail des projets'!B177) -> Feux Évêché/Rivière | C177: =IF(LEN('Détail des projets'!C177)=0,"",'Détail des projets'!C177) -> Ville de Rimouski | D177: =IF(LEN('Détail des projets'!G177)=0,"",'Détail des projets'!G177) -> 01-Bas-Saint-Laurent | E177: =IF(LEN('Détail des projets'!K177)=0,"",'Détail des projets'!K177) -> 26000
B178: =IF(LEN('Détail des projets'!B178)=0,"",'Détail des projets'!B178) -> Feux Roul/St-J.-Bapt | C178: =IF(LEN('Détail des projets'!C178)=0,"",'Détail des projets'!C178) -> Ville de Rimouski | D178: =IF(LEN('Détail des projets'!G178)=0,"",'Détail des projets'!G178) -> 01-Bas-Saint-Laurent | E178: =IF(LEN('Détail des projets'!K178)=0,"",'Détail des projets'!K178) -> 30300
B179: =IF(LEN('Détail des projets'!B179)=0,"",'Détail des projets'!B179) -> Ferm. rue Ste-Marie | C179: =IF(LEN('Détail des projets'!C179)=0,"",'Détail des projets'!C179) -> Ville de Rimouski | D179: =IF(LEN('Détail des projets'!G179)=0,"",'Détail des projets'!G179) -> 01-Bas-Saint-Laurent | E179: =IF(LEN('Détail des projets'!K179)=0,"",'Détail des projets'!K179) -> 12500
B180: =IF(LEN('Détail des projets'!B180)=0,"",'Détail des projets'!B180) -> Amén. rue St-Pierre | C180: =IF(LEN('Détail des projets'!C180)=0,"",'Détail des projets'!C180) -> Ville de Rimouski | D180: =IF(LEN('Détail des projets'!G180)=0,"",'Détail des projets'!G180) -> 01-Bas-Saint-Laurent | E180: =IF(LEN('Détail des projets'!K180)=0,"",'Détail des projets'!K180) -> 132750
B181: =IF(LEN('Détail des projets'!B181)=0,"",'Détail des projets'!B181) -> P. bidirectionelle | C181: =IF(LEN('Détail des projets'!C181)=0,"",'Détail des projets'!C181) -> Ville de Rimouski | D181: =IF(LEN('Détail des projets'!G181)=0,"",'Détail des projets'!G181) -> 01-Bas-Saint-Laurent | E181: =IF(LEN('Détail des projets'!K181)=0,"",'Détail des projets'!K181) -> 40500
B182: =IF(LEN('Détail des projets'!B182)=0,"",'Détail des projets'!B182) -> CDN École Prep international | C182: =IF(LEN('Détail des projets'!C182)=0,"",'Détail des projets'!C182) -> Ville de Montréal | D182: =IF(LEN('Détail des projets'!G182)=0,"",'Détail des projets'!G182) -> 06-Montréal | E182: =IF(LEN('Détail des projets'!K182)=0,"",'Détail des projets'!K182) -> 55099
B183: =IF(LEN('Détail des projets'!B183)=0,"",'Détail des projets'!B183) -> CND - Réam. École Iona | C183: =IF(LEN('Détail des projets'!C183)=0,"",'Détail des projets'!C183) -> Ville de Montréal | D183: =IF(LEN('Détail des projets'!G183)=0,"",'Détail des projets'!G183) -> 06-Montréal | E183: =IF(LEN('Détail des projets'!K183)=0,"",'Détail des projets'!K183) -> 250000
B184: =IF(LEN('Détail des projets'!B184)=0,"",'Détail des projets'!B184) -> AHU E. Louisbourg | C184: =IF(LEN('Détail des projets'!C184)=0,"",'Détail des projets'!C184) -> Ville de Montréal | D184: =IF(LEN('Détail des projets'!G184)=0,"",'Détail des projets'!G184) -> 06-Montréal | E184: =IF(LEN('Détail des projets'!K184)=0,"",'Détail des projets'!K184) -> 94000
B185: =IF(LEN('Détail des projets'!B185)=0,"",'Détail des projets'!B185) -> AHU - Laval/Roscelli | C185: =IF(LEN('Détail des projets'!C185)=0,"",'Détail des projets'!C185) -> Ville de Montréal | D185: =IF(LEN('Détail des projets'!G185)=0,"",'Détail des projets'!G185) -> 06-Montréal | E185: =IF(LEN('Détail des projets'!K185)=0,"",'Détail des projets'!K185) -> 243850
B186: =IF(LEN('Détail des projets'!B186)=0,"",'Détail des projets'!B186) -> CDN - Pas de géant | C186: =IF(LEN('Détail des projets'!C186)=0,"",'Détail des projets'!C186) -> Ville de Montréal | D186: =IF(LEN('Détail des projets'!G186)=0,"",'Détail des projets'!G186) -> 06-Montréal | E186: =IF(LEN('Détail des projets'!K186)=0,"",'Détail des projets'!K186) -> 103425
B187: =IF(LEN('Détail des projets'!B187)=0,"",'Détail des projets'!B187) -> CDN/A. Talmud Torah | C187: =IF(LEN('Détail des projets'!C187)=0,"",'Détail des projets'!C187) -> Ville de Montréal | D187: =IF(LEN('Détail des projets'!G187)=0,"",'Détail des projets'!G187) -> 06-Montréal | E187: =IF(LEN('Détail des projets'!K187)=0,"",'Détail des projets'!K187) -> 250000
B188: =IF(LEN('Détail des projets'!B188)=0,"",'Détail des projets'!B188) -> CDN/5-Continents | C188: =IF(LEN('Détail des projets'!C188)=0,"",'Détail des projets'!C188) -> Ville de Montréal | D188: =IF(LEN('Détail des projets'!G188)=0,"",'Détail des projets'!G188) -> 06-Montréal | E188: =IF(LEN('Détail des projets'!K188)=0,"",'Détail des projets'!K188) -> 74365
B189: =IF(LEN('Détail des projets'!B189)=0,"",'Détail des projets'!B189) -> AHU Caboto/Apôtre | C189: =IF(LEN('Détail des projets'!C189)=0,"",'Détail des projets'!C189) -> Ville de Montréal | D189: =IF(LEN('Détail des projets'!G189)=0,"",'Détail des projets'!G189) -> 06-Montréal | E189: =IF(LEN('Détail des projets'!K189)=0,"",'Détail des projets'!K189) -> 133000
B190: =IF(LEN('Détail des projets'!B190)=0,"",'Détail des projets'!B190) -> AHU É. Visitation | C190: =IF(LEN('Détail des projets'!C190)=0,"",'Détail des projets'!C190) -> Ville de Montréal | D190: =IF(LEN('Détail des projets'!G190)=0,"",'Détail des projets'!G190) -> 06-Montréal | E190: =IF(LEN('Détail des projets'!K190)=0,"",'Détail des projets'!K190) -> 161500
B191: =IF(LEN('Détail des projets'!B191)=0,"",'Détail des projets'!B191) -> CDN - Réam. Félix-L. | C191: =IF(LEN('Détail des projets'!C191)=0,"",'Détail des projets'!C191) -> Ville de Montréal | D191: =IF(LEN('Détail des projets'!G191)=0,"",'Détail des projets'!G191) -> 06-Montréal | E191: =IF(LEN('Détail des projets'!K191)=0,"",'Détail des projets'!K191) -> 140263
B192: =IF(LEN('Détail des projets'!B192)=0,"",'Détail des projets'!B192) -> CDN - Réam. Enf.monde | C192: =IF(LEN('Détail des projets'!C192)=0,"",'Détail des projets'!C192) -> Ville de Montréal | D192: =IF(LEN('Détail des projets'!G192)=0,"",'Détail des projets'!G192) -> 06-Montréal | E192: =IF(LEN('Détail des projets'!K192)=0,"",'Détail des projets'!K192) -> 22138
B193: =IF(LEN('Détail des projets'!B193)=0,"",'Détail des projets'!B193) -> MTN Jubinville | C193: =IF(LEN('Détail des projets'!C193)=0,"",'Détail des projets'!C193) -> Ville de Montréal | D193: =IF(LEN('Détail des projets'!G193)=0,"",'Détail des projets'!G193) -> 06-Montréal | E193: =IF(LEN('Détail des projets'!K193)=0,"",'Détail des projets'!K193) -> 250000
B194: =IF(LEN('Détail des projets'!B194)=0,"",'Détail des projets'!B194) -> MTN Charleroi | C194: =IF(LEN('Détail des projets'!C194)=0,"",'Détail des projets'!C194) -> Ville de Montréal | D194: =IF(LEN('Détail des projets'!G194)=0,"",'Détail des projets'!G194) -> 06-Montréal | E194: =IF(LEN('Détail des projets'!K194)=0,"",'Détail des projets'!K194) -> 168874
B195: =IF(LEN('Détail des projets'!B195)=0,"",'Détail des projets'!B195) -> MTN Support à vélo | C195: =IF(LEN('Détail des projets'!C195)=0,"",'Détail des projets'!C195) -> Ville de Montréal | D195: =IF(LEN('Détail des projets'!G195)=0,"",'Détail des projets'!G195) -> 06-Montréal | E195: =IF(LEN('Détail des projets'!K195)=0,"",'Détail des projets'!K195) -> 23925
B196: =IF(LEN('Détail des projets'!B196)=0,"",'Détail des projets'!B196) -> VSM axe cyx. E.O. | C196: =IF(LEN('Détail des projets'!C196)=0,"",'Détail des projets'!C196) -> Ville de Montréal | D196: =IF(LEN('Détail des projets'!G196)=0,"",'Détail des projets'!G196) -> 06-Montréal | E196: =IF(LEN('Détail des projets'!K196)=0,"",'Détail des projets'!K196) -> 210534
B197: =IF(LEN('Détail des projets'!B197)=0,"",'Détail des projets'!B197) -> CDN - É.Beth-R. - Trottoir | C197: =IF(LEN('Détail des projets'!C197)=0,"",'Détail des projets'!C197) -> Ville de Montréal | D197: =IF(LEN('Détail des projets'!G197)=0,"",'Détail des projets'!G197) -> 06-Montréal | E197: =IF(LEN('Détail des projets'!K197)=0,"",'Détail des projets'!K197) -> 127001
B198: =IF(LEN('Détail des projets'!B198)=0,"",'Détail des projets'!B198) -> CDN - É. Ste-Catherine | C198: =IF(LEN('Détail des projets'!C198)=0,"",'Détail des projets'!C198) -> Ville de Montréal | D198: =IF(LEN('Détail des projets'!G198)=0,"",'Détail des projets'!G198) -> 06-Montréal | E198: =IF(LEN('Détail des projets'!K198)=0,"",'Détail des projets'!K198) -> 165093
B199: =IF(LEN('Détail des projets'!B199)=0,"",'Détail des projets'!B199) -> CDN - É. St-Luc | C199: =IF(LEN('Détail des projets'!C199)=0,"",'Détail des projets'!C199) -> Ville de Montréal | D199: =IF(LEN('Détail des projets'!G199)=0,"",'Détail des projets'!G199) -> 06-Montréal | E199: =IF(LEN('Détail des projets'!K199)=0,"",'Détail des projets'!K199) -> 150905
B200: =IF(LEN('Détail des projets'!B200)=0,"",'Détail des projets'!B200) -> 10e Avenue | C200: =IF(LEN('Détail des projets'!C200)=0,"",'Détail des projets'!C200) -> Ville d'Amos | D200: =IF(LEN('Détail des projets'!G200)=0,"",'Détail des projets'!G200) -> 08-Abitibi-Témiscamingue | E200: =IF(LEN('Détail des projets'!K200)=0,"",'Détail des projets'!K200) -> 55000
B201: =IF(LEN('Détail des projets'!B201)=0,"",'Détail des projets'!B201) -> Rue Marie-Victorin | C201: =IF(LEN('Détail des projets'!C201)=0,"",'Détail des projets'!C201) -> Ville de Rouyn-Noranda | D201: =IF(LEN('Détail des projets'!G201)=0,"",'Détail des projets'!G201) -> 08-Abitibi-Témiscamingue | E201: =IF(LEN('Détail des projets'!K201)=0,"",'Détail des projets'!K201) -> 195929
B202: =IF(LEN('Détail des projets'!B202)=0,"",'Détail des projets'!B202) -> Rue de Métiers | C202: =IF(LEN('Détail des projets'!C202)=0,"",'Détail des projets'!C202) -> Ville d'Amos | D202: =IF(LEN('Détail des projets'!G202)=0,"",'Détail des projets'!G202) -> 08-Abitibi-Témiscamingue | E202: =IF(LEN('Détail des projets'!K202)=0,"",'Détail des projets'!K202) -> 241862
B203: =IF(LEN('Détail des projets'!B203)=0,"",'Détail des projets'!B203) -> 12e Avenue | C203: =IF(LEN('Détail des projets'!C203)=0,"",'Détail des projets'!C203) -> Ville d'Amos | D203: =IF(LEN('Détail des projets'!G203)=0,"",'Détail des projets'!G203) -> 08-Abitibi-Témiscamingue | E203: =IF(LEN('Détail des projets'!K203)=0,"",'Détail des projets'!K203) -> 70000
B204: =IF(LEN('Détail des projets'!B204)=0,"",'Détail des projets'!B204) -> Rue Côté | C204: =IF(LEN('Détail des projets'!C204)=0,"",'Détail des projets'!C204) -> Ville d'Alma | D204: =IF(LEN('Détail des projets'!G204)=0,"",'Détail des projets'!G204) -> 02-Saguenay- Lac-Saint-Jean | E204: =IF(LEN('Détail des projets'!K204)=0,"",'Détail des projets'!K204) -> 71770
B205: =IF(LEN('Détail des projets'!B205)=0,"",'Détail des projets'!B205) -> Rue Boivin | C205: =IF(LEN('Détail des projets'!C205)=0,"",'Détail des projets'!C205) -> Ville d'Alma | D205: =IF(LEN('Détail des projets'!G205)=0,"",'Détail des projets'!G205) -> 02-Saguenay- Lac-Saint-Jean | E205: =IF(LEN('Détail des projets'!K205)=0,"",'Détail des projets'!K205) -> 18727
B206: =IF(LEN('Détail des projets'!B206)=0,"",'Détail des projets'!B206) -> Poly Jonquière | C206: =IF(LEN('Détail des projets'!C206)=0,"",'Détail des projets'!C206) -> Ville de Saguenay | D206: =IF(LEN('Détail des projets'!G206)=0,"",'Détail des projets'!G206) -> 02-Saguenay- Lac-Saint-Jean | E206: =IF(LEN('Détail des projets'!K206)=0,"",'Détail des projets'!K206) -> 183995
B207: =IF(LEN('Détail des projets'!B207)=0,"",'Détail des projets'!B207) -> Forteresse | C207: =IF(LEN('Détail des projets'!C207)=0,"",'Détail des projets'!C207) -> Ville de Gatineau | D207: =IF(LEN('Détail des projets'!G207)=0,"",'Détail des projets'!G207) -> 07-Outaouais | E207: =IF(LEN('Détail des projets'!K207)=0,"",'Détail des projets'!K207) -> 157584
B208: =IF(LEN('Détail des projets'!B208)=0,"",'Détail des projets'!B208) -> Eardley (F.Princip.) | C208: =IF(LEN('Détail des projets'!C208)=0,"",'Détail des projets'!C208) -> Ville de Gatineau | D208: =IF(LEN('Détail des projets'!G208)=0,"",'Détail des projets'!G208) -> 07-Outaouais | E208: =IF(LEN('Détail des projets'!K208)=0,"",'Détail des projets'!K208) -> 158965
B209: =IF(LEN('Détail des projets'!B209)=0,"",'Détail des projets'!B209) -> Rue Cannes | C209: =IF(LEN('Détail des projets'!C209)=0,"",'Détail des projets'!C209) -> Ville de Gatineau | D209: =IF(LEN('Détail des projets'!G209)=0,"",'Détail des projets'!G209) -> 07-Outaouais | E209: =IF(LEN('Détail des projets'!K209)=0,"",'Détail des projets'!K209) -> 133285
B210: =IF(LEN('Détail des projets'!B210)=0,"",'Détail des projets'!B210) -> Demande d'aide financière 2020 / Réseau aquatique Drummondville-d'un abri et de supports à vélos dans le complexe aquatique- Ville de Drummondville | C210: =IF(LEN('Détail des projets'!C210)=0,"",'Détail des projets'!C210) -> Réseau aquatique Drummondville | D210: =IF(LEN('Détail des projets'!G210)=0,"",'Détail des projets'!G210) -> 17-Centre-du-Québec | E210: =IF(LEN('Détail des projets'!K210)=0,"",'Détail des projets'!K210) -> 7200
B211: =IF(LEN('Détail des projets'!B211)=0,"",'Détail des projets'!B211) -> Demande d'aide financière 2020 / Le Groupe Beau-Village - d'un nouveau réseau cyclable - Ville de Gaspé | C211: =IF(LEN('Détail des projets'!C211)=0,"",'Détail des projets'!C211) -> Groupe Beau Village de Rivière-au-Renard | D211: =IF(LEN('Détail des projets'!G211)=0,"",'Détail des projets'!G211) -> 11-Gaspésie-Iles-de-la-Madeleine | E211: =IF(LEN('Détail des projets'!K211)=0,"",'Détail des projets'!K211) -> 317512
B212: =IF(LEN('Détail des projets'!B212)=0,"",'Détail des projets'!B212) -> Demande d'aide financière 2020 / d'un réseau de transports actif et collectif | C212: =IF(LEN('Détail des projets'!C212)=0,"",'Détail des projets'!C212) -> Ville de Paspébiac | D212: =IF(LEN('Détail des projets'!G212)=0,"",'Détail des projets'!G212) -> 11-Gaspésie-Iles-de-la-Madeleine | E212: =IF(LEN('Détail des projets'!K212)=0,"",'Détail des projets'!K212) -> 383347
B213: =IF(LEN('Détail des projets'!B213)=0,"",'Détail des projets'!B213) -> Demande d'aide financière 2020 / d'une passerelle de seize mètres de long au-dessus du ruisseau Monier | C213: =IF(LEN('Détail des projets'!C213)=0,"",'Détail des projets'!C213) -> Municipalité de Pointe-à-la-Croix | D213: =IF(LEN('Détail des projets'!G213)=0,"",'Détail des projets'!G213) -> 11-Gaspésie-Iles-de-la-Madeleine | E213: =IF(LEN('Détail des projets'!K213)=0,"",'Détail des projets'!K213) -> 88189
B214: =IF(LEN('Détail des projets'!B214)=0,"",'Détail des projets'!B214) -> d'un aménagement d'un lien cyclopédestre sur le viaduc de l'A-40 et la construction d'une passerelle cyclopédestre | C214: =IF(LEN('Détail des projets'!C214)=0,"",'Détail des projets'!C214) -> Ville de Kirkland | D214: =IF(LEN('Détail des projets'!G214)=0,"",'Détail des projets'!G214) -> 06-Montréal | E214: =IF(LEN('Détail des projets'!K214)=0,"",'Détail des projets'!K214) -> 303056
B215: =IF(LEN('Détail des projets'!B215)=0,"",'Détail des projets'!B215) -> Demande d'aide financière 2020 / Abris vélos à l'hôtel de ville | C215: =IF(LEN('Détail des projets'!C215)=0,"",'Détail des projets'!C215) -> Ville de Rimouski | D215: =IF(LEN('Détail des projets'!G215)=0,"",'Détail des projets'!G215) -> 01-Bas-Saint-Laurent | E215: =IF(LEN('Détail des projets'!K215)=0,"",'Détail des projets'!K215) -> 10800
... 160 more rows

Sheet Indicateurs
B2: =Utilitaire!E8 -> Plan d'action 2013-2020 sur les changements climatiques
B3: ="Action " & Accueil!D58 -> Action en cours
B4: =Accueil!D55 -> 13.4 | C4: =Accueil!E55 -> Programme d’aide financière au développement des transports actifs dans les périmètres urbains (TAPU) (FORT)
B5: Ministère porteur: | C5: =Accueil!$D$65 -> MTQ
B6: Indicateurs
B20: Informations en date du : | E20: 2022-03-31
B22: INDICATEURS DE PERFORMANCE | H22: =IF(OR(AND(MONTH(#REF!)>6,YEAR(#REF!)=VALUE(MID(G23,1,4))),YEAR(#REF!)>VALUE(MID(G23,1,4))),"Réel","Prévu") ->  | I22: =IF(OR(AND(MONTH(#REF!)>6,YEAR(#REF!)=VALUE(MID(H23,1,4))),YEAR(#REF!)>VALUE(MID(H23,1,4))),"Réel","Prévu") ->  | J22: =IF(OR(AND(MONTH(#REF!)>6,YEAR(#REF!)=VALUE(MID(I23,1,4))),YEAR(#REF!)>VALUE(MID(I23,1,4))),"Réel","Prévu") ->  | K22: =IF(OR(AND(MONTH(#REF!)>6,YEAR(#REF!)=VALUE(MID(J23,1,4))),YEAR(#REF!)>VALUE(MID(J23,1,4))),"Réel","Prévu") ->  | L22: =IF(OR(AND(MONTH(#REF!)>6,YEAR(#REF!)=VALUE(MID(K23,1,4))),YEAR(#REF!)>VALUE(MID(K23,1,4))),"Réel","Prévu") ->  | M22: =IF(OR(AND(MONTH(#REF!)>6,YEAR(#REF!)=VALUE(MID(L23,1,4))),YEAR(#REF!)>VALUE(MID(L23,1,4))),"Réel","Prévu") ->  | N22: =IF(OR(AND(MONTH(#REF!)>6,YEAR(#REF!)=VALUE(MID(M23,1,4))),YEAR(#REF!)>VALUE(MID(M23,1,4))),"Réel","Prévu") ->  | O22: =IF(OR(AND(MONTH(#REF!)>6,YEAR(#REF!)=VALUE(MID(N23,1,4))),YEAR(#REF!)>VALUE(MID(N23,1,4))),"Réel","Prévu") ->  | P22: =IF(OR(AND(MONTH(#REF!)>6,YEAR(#REF!)=VALUE(MID(O23,1,4))),YEAR(#REF!)>VALUE(MID(O23,1,4))),"Réel","Prévu") ->  | Q22: =IF(OR(AND(MONTH(#REF!)>6,YEAR(#REF!)=VALUE(MID(P23,1,4))),YEAR(#REF!)>VALUE(MID(P23,1,4))),"Réel","Prévu") ->  | S22: =IF(OR(AND(MONTH(#REF!)>6,YEAR(#REF!)=VALUE(MID(Q23,1,4))),YEAR(#REF!)>VALUE(MID(Q23,1,4))),"Réel","Prévu") ->  | T22: =MONTH(#REF!) -> 
B23: Cible | C23: Unité de mesure | D23: Année prévue d'atteinte de la cible | E23: Description de l'indicateur | F23: Type d'indicateur | G23: 2013-2014 | H23: 2014-2015 | I23: 2015-2016 | J23: 2016-2017 | K23: 2017-2018 | L23: 2018-2019 | M23: 2019-2020 | N23: 2020-2021 | O23: 2021-2022 | P23: 2022-2023 | Q23: 2023-2024 | R23: 2024-2025 | S23: RÉSULTAT À COMPARER AVEC LA CIBLE | T23: Pourcentage d'atteinte de la cible | U23: Commentaires sur les résultats
G24: Réel | H24: Réel | I24: Réel | J24: Réel | K24: Réel | L24: Réel | M24: Réel | N24: Réel | O24: Réel | P24: Prévu | Q24: Prévu | R24: Prévu | U24: (facultatif)
A25: 1 | G25: =PourcentageAvancementJbf(Utilitaire!C229,'Détail des projets'!O375,1000000*Accueil!$D$67) -> 0.01778084237 | H25: =PourcentageAvancementJbf(Utilitaire!D229,'Détail des projets'!P375,1000000*Accueil!$D$67) -> 0.05014023676 | I25: =PourcentageAvancementJbf(Utilitaire!E229,'Détail des projets'!Q375,1000000*Accueil!$D$67) -> 0.08277814264 | J25: =PourcentageAvancementJbf(Utilitaire!F229,'Détail des projets'!R375,1000000*Accueil!$D$67) -> 0.01167622886 | K25: =PourcentageAvancementJbf(Utilitaire!G229,'Détail des projets'!S375,1000000*Accueil!$D$67) -> 0.06788652678 | L25: =PourcentageAvancementJbf(Utilitaire!H229,'Détail des projets'!T375,1000000*Accueil!$D$67) -> 0.1202026128 | M25: =PourcentageAvancementJbf(Utilitaire!I229,'Détail des projets'!U375,1000000*Accueil!$D$67) -> 0.1714333458 | N25: =PourcentageAvancementJbf(Utilitaire!J229,'Détail des projets'!V375,1000000*Accueil!$D$67) -> 0.1649231079 | O25: =PourcentageAvancementJbf(Utilitaire!K229,'Détail des projets'!W375,1000000*Accueil!$D$67) -> -0.02519361695 | T25: =IF(COUNTA(B25)=1,IF(COUNTA(S25)=1,IF(F25="Minimum à atteindre",IF(B25=0,IF(S25>0,1,0),S25/B25),IF(F25="Maximum à ne pas dépasser",IF(B25=0,IF(S25<0,1,0),(B25-S25)/B25+1),IF(F25="Binaire",IF(B25=S25,1,0),""))),0),"") -> 
A26: 2 | B26: 50 | C26: km / an | E26: Nombre de km de voies cyclables (et piétonnes) réalisées par année | F26: minimum à atteindre | G26: 9.3 | H26: 44 | I26: 34.2 | J26: 0 | K26: 19.1 | L26: 46.55 | M26: 69.09 | N26: 64.2 | O26: 50 | S26: 64.2 | T26: =IF(COUNTA(B26)=1,IF(COUNTA(S26)=1,IF(F26="Minimum à atteindre",IF(B26=0,IF(S26>0,1,0),S26/B26),IF(F26="Maximum à ne pas dépasser",IF(B26=0,IF(S26<0,1,0),(B26-S26)/B26+1),IF(F26="Binaire",IF(B26=S26,1,0),""))),0),"") -> 1.284
A27: 3 | B27: 8 | C27: projets / an | E27: Nombre de projets d'apaisement de la circulation dans les corridors scolaires | F27: minimum à atteindre | G27: 3 | H27: 11 | I27: 8 | J27: 0 | K27: 4 | L27: 11 | M27: 29 | N27: 25 | O27: 33 | S27: 25 | T27: 3.125
A28: 4 | B28: 10 | C28: structures / an | E28: Nombre de structures (ajout d'une voie cyclable sur un pont existant ou construction d'une nouvelle structure cyclable) | F28: minimum à atteindre | G28: 1 | H28: 1 | I28: 3 | J28: 0 | K28: 2 | L28: 1 | M28: 4 | N28: 16 | O28: 6 | S28: 16 | T28: 1.6
A29: 5 | B29: 36 | C29: % | D29: 2020 | E29: Pourcentage de la population adulte utilisant la bicyclette au moins une fois par semaine | F29: minimum à atteindre | G29: 35 | H29: 35 | I29: 35 | J29: 34 | K29: 34 | L29: 34 | M29: 34 | N29: 34 | S29: 34 | T29: 0.9444444444 | U29: Reddition de comptes ponctuelle . Les données en 2021-2022 ne sont pas encore disponibles.
A30: 6 | B30: 19 | C30: % | D30: 2020 | E30: Pourcentage des cyclistes utilisant la bicyclette à des fins utilitaires | F30: minimum à atteindre | G30: 37 | H30: 37 | I30: 40 | J30: 40 | K30: 40 | L30: 40 | M30: 40 | N30: 40 | S30: 40 | T30: 2.105263158 | U30: Reddition de comptes ponctuelle . Les données en 2021-2022 ne sont pas encore disponibles.
A31: 7
A32: 8
A33: 9
A34: 10
A35: 11 | T35: =IF(COUNTA(B35)=1,IF(COUNTA(S35)=1,IF(F35="Minimum à atteindre",IF(B35=0,IF(S35>0,1,0),S35/B35),IF(F35="Maximum à ne pas dépasser",IF(B35=0,IF(S35<0,1,0),(B35-S35)/B35+1),IF(F35="Binaire",IF(B35=S35,1,0),""))),0),"") -> 
A36: 12 | T36: =IF(COUNTA(B36)=1,IF(COUNTA(S36)=1,IF(F36="Minimum à atteindre",IF(B36=0,IF(S36>0,1,0),S36/B36),IF(F36="Maximum à ne pas dépasser",IF(B36=0,IF(S36<0,1,0),(B36-S36)/B36+1),IF(F36="Binaire",IF(B36=S36,1,0),""))),0),"") -> 
A37: 13 | T37: =IF(COUNTA(B37)=1,IF(COUNTA(S37)=1,IF(F37="Minimum à atteindre",IF(B37=0,IF(S37>0,1,0),S37/B37),IF(F37="Maximum à ne pas dépasser",IF(B37=0,IF(S37<0,1,0),(B37-S37)/B37+1),IF(F37="Binaire",IF(B37=S37,1,0),""))),0),"") -> 
A38: 14
A39: 15 | T39: =IF(COUNTA(B39)=1,IF(COUNTA(S39)=1,IF(F39="Minimum à atteindre",IF(B39=0,IF(S39>0,1,0),S39/B39),IF(F39="Maximum à ne pas dépasser",IF(B39=0,IF(S39<0,1,0),(B39-S39)/B39+1),IF(F39="Binaire",IF(B39=S39,1,0),""))),0),"") -> 
A40: 16 | T40: =IF(COUNTA(B40)=1,IF(COUNTA(S40)=1,IF(F40="Minimum à atteindre",IF(B40=0,IF(S40>0,1,0),S40/B40),IF(F40="Maximum à ne pas dépasser",IF(B40=0,IF(S40<0,1,0),(B40-S40)/B40+1),IF(F40="Binaire",IF(B40=S40,1,0),""))),0),"") -> 
A41: 17
A42: 18
A43: 19
A44: 20
A45: 21 | AQ45: FALSE
B69: PRÉVISIONS DES RETOMBÉES SUR LES RÉDUCTIONS DES ÉMISSIONS DE GES | F69: Ce tableau et les résultats par action qu'il contient ne seront pas publiés. L'objectif est de permettre une appréciation à l'échelle du PACC des résultats escomptés. Veuillez le compléter et vérifier l'information qui y est contenue, au meilleur de vos connaissances et avec l'information dont vous disposez.
B70: Niveau de certitude | E70: Lieu | F70: 2020 | G70: 2021 | H70: 2022 | I70: 2023 | J70: 2024 | K70: 2025 | L70: 2026 | M70: 2030 | N70: 2035 | O70: 2027 | P70: 2038 | Q70: 2029 | R70: 2031 | S70: 2040 | T70: 2050 | U70: Commentaires sur les résultats
B71: Pérennité des réductions d'émissions de GES réalisées à ce jour (T éq. CO2) | E71: Au Québec
E72: Hors Québec
E73: Non distingué
B74: Développement du potentiel de réduction des émissions de GES pour le futur (T éq. CO2) | E74: Au Québec
E75: Hors Québec
E76: Non distingué
B153: ADAPTATION AUX EFFETS DES CHANGEMENTS CLIMATIQUES
B154: Solutions d'adaptation proposées | D154: Lignes concernées de l'onglet Détail des projets | E154: Étape | F154: Ajustements | H154: Risques | J154: Effets des changements climatiques | L154: Région | S154: Échelle humaine | U154: Échelle environnementale
F155: La solution agit sur : | H155: afin de protéger : | J155: de : | S155: (estimation du nombre de personnes desservies) | U155: (estimation du nombre d'espèces desservies)
D156: 25
D157: 26
D158: 27
D159: 28
D160: 29
D161: 30
D162: 31
D163: 32
B292: Ajouter une ligne

Sheet Évaluation (hidden)
B2: =Utilitaire!E8 -> Plan d'action 2013-2020 sur les changements climatiques | H2: Conseils de rédaction : | M2: Informations en date du : | N2: =Utilitaire!G6 -> 2022-03-31
B3: ="Action " & Accueil!D58 -> Action en cours | H3: - Veuillez compléter la section "Évaluation de l'action" (OBLIGATOIRE) - ligne 204 (Fin du PACC) - Cet onglet sera pour usage interne seulement, il ne sera pas publié. - Des bulles commentaires dans chacun des titres vous aideront à remplir adéquatement les différentes colonnes. - Les cases de la section « Évaluation de l'action » sont limitées à 3000 caractères.
B4: =Accueil!D55 -> 13.4 | C4: =Accueil!E55 -> Programme d’aide financière au développement des transports actifs dans les périmètres urbains (TAPU) (FORT)
B5: Ministère porteur: | C5: =Accueil!$D$65 -> MTQ
B6: Évaluation
B7: Informations en date du : | D7: 2022-03-31
B38: Est-ce qu'une production d'un rapport d'évaluation complet est prévue dans le cadre de cette action :
B40: Liste des livrables
B41: Titre du document | D41: Date du document | F41: Type de document | I41: Date prévue de transmission au BECC | K41: Date réelle de transmission au BECC | M41: Référence | N41: Commentaires
B146: Ajouter une ligne
B204: Évaluation de l'action
C209: Début : | D209: =Accueil!$D$68 -> 2013-10-15 | I209: Fin : | J209: =Accueil!$K$68 -> 2023-03-31
B210: Résultats attendus : | C210: =IF(LEN(Description!C49)>0,Description!C49,"") -> Les résultats escomptés sont d'augmenter l'offre en transport actif, notamment en augmentant le nombre de kilomètres de voies cyclables et piétonnes reliant les principales destinations d'une municipalité et offrant des conditions de circulation agréables et sécuritaires pour les cyclistes. Pour chaque investissement en infrastructure de transport actif, les bénéfices sont directs puisque chaque déplacement actif est un déplacement n'émettant aucun gaz à effet de serre. Les résultats attendus sont la réalisation de 50 km de voies cyclables par année, de 10 projets d'apaisement de la circulation dans les corridors scolaires et de 8 aménagements cyclables ou polyvalent sur structures.
B211: Résultats obtenus (Cibles, indicateurs et description) : | C211: =IF(COUNTA(Indicateurs!B25:B45)=0,0,AVERAGE(Indicateurs!$T$25:$T$45)) -> 1.81174152 | D211: =IF(LEN(Description!C50)>0,Description!C50,"") -> 2021-2022 1. Longueur des voies cyclables et piétionnes financées: 50 KM 2. Nombre de projets d'apaisement de la circulation dans les corridors scolaires financés: 33 3. Nombre de structures financées: 6 4. Pourcentage des adultes utilisant la bicyclette au moins une fois par semaine: non disponible pour le moment 5. Pourcentage des cyclistes utilisant la bicyclette à des fins utilitaires: non disponible pour le moment
D212: =IF(LEN(Description!C51)>0,Description!C51,"") -> Depuis 2013-2014 1. Longueur des voies cyclables et piétionnes financées: 336,44 KM 2. Nombre de projets d'apaisement de la circulation dans les corridors scolaires financés: 124 3. Nombre de structures financées: 34 4. Pourcentage des adultes utilisant la bicyclette au moins une fois par semaine: non disponible pour le moment 5. Pourcentage des cyclistes utilisant la bicyclette à des fins utilitaires: non disponible pour le moment
B217: Type d'évaluation :
B218: Est-ce que les résultats obtenus dans le cadre de l'action sont satisfaisants?
B219: Quelles sont les améliorations possibles pour le futur?
B220: Quels sont les forces et les points positifs de l'action?
B221: Quelle est votre recommandation quant à la poursuite de cette action?
B222: Autres commentaires

Sheet Commentaires (hidden)
B2: =Utilitaire!E8 -> Plan d'action 2013-2020 sur les changements climatiques | T2: COF
B3: ="Action " & Accueil!D58 -> Action en cours | T3: Frais
B4: =Accueil!D55 -> 13.4 | C4: =Accueil!E55 -> Programme d’aide financière au développement des transports actifs dans les périmètres urbains (TAPU) (FORT) | T4: ETC
B5: Ministère porteur: | C5: =Accueil!$D$65 -> MTQ | T5: Détail des projets
B6: Commentaires | T6: Détail des projets (GES)
T7: Bilan GES
T8: Indicateurs
T9: Toutes-Autre
T12: 2013-2014
T13: 2014-2015
T14: 2015-2016
T15: 2016-2017
T16: 2017-2018
T17: 2018-2019
T18: 2019-2020
T19: 2020-2021
B20: Informations en date du : | E20: 2022-03-31 | T20: 2021-2022
T21: 2022-2023
T22: 2023-2024
B24: Commentaires | M24: Section concernée | O24: Année | P24: Exercice | Q24: nom Commentateur | R24: courriel Commentateur
T32: juin
T33: décembre

Sheet Validation (hidden)
B2: =Utilitaire!E8 -> Plan d'action 2013-2020 sur les changements climatiques
B3: ="Action " & Accueil!D58 -> Action en cours
B4: =Accueil!D55 -> 13.4
B5: Ministère porteur: | D5: =Accueil!$D$65 -> MTQ | E5: =Accueil!$D$65 -> MTQ
B6: Rapport de validation de la fiche de suivi
B8: Conseils de rédaction : | E8: Informations en date du : | G8: =Utilitaire!G6 -> 2022-03-31
B9: '- Cet onglet ne sera pas diffusé. - Nous apprécierions vos commentaires constructifs par rapport aux nouvelles fiches de suivi. La case B15 est réservée à cet effet. - Complétez la grille de validation ci-dessous (ligne 19) en cochant chaque point. Vous pouvez inscrire des commentaires à l'endroit prévu à cet effet.
B14: Votre appréciation de la fiche de suivi et suggestions pour les prochains exercices
B17: Grille de validation de la fiche de suivi
B18: Fin du PACC | G18: Commentaires
B19: Avez-vous complété le tableau de la ligne 204 de l'onglet Évaluation?
B20: Avez-vous saisi tous vos engagements à SAGIR (vous avez jusqu'au 31 mai)?
B21: Onglet Accueil | G21: Commentaires
B22: Vérifier que toutes les cases sont remplies.
B23: Les cases non remplies s'affichent en orange Les lignes 69 à 73 seront masquées pour la publication.
B24: Vérifier que la part de financement est écrite sous forme de pourcentage (ex. : 60 %).
B25: Inscrire un nombre entre 0 et 100 suivi du symbole "%". Si le pourcentage est variable, inscrire "Variable".
B26: Vérifier que le statut de l'action est toujours conforme avec son évolution.
B27: Utiliser l'information des onglets "Description" et Détail des projets" afin que le statut soit conforme avec l'évolution de l'action.
B28: Vérifier, s'il y a lieu, que le nom du programme est inscrit.
B29: Onglet Description | G29: Commentaires
B30: Vérifier que toutes les cases obligatoires sont remplies.
B31: Vérifier que tous les éléments pertinents en lien avec le COVID-19 sont inscrits au tableau prévu à cet effet.
B32: Vérifier que les éléments de classification de l'action sont sélectionnés à partir du menu déroulant.
B33: Vérifier que l'entièreté du texte est lisible.
B34: Vérifier que l'échéancier dans la section "Mise en œuvre" est inscrit.
B35: Vérifier que l'état d'avancement est sélectionné à partir du menu déroulant.
B36: Vérifier que le tableau "Plans, stratégies, politiques incluant la mise en œuvre de cette action" est rempli.
B37: Onglet Détail des projets | G37: Commentaires
B38: Vérifier que les informations confidentielles sont inscrites en bleu.
B39: Transmettre au BECC le rapport des résultats, si un projet est terminé.
B40: Vérifier le total des dépenses réelles de tous les projets correspond à celui inscrit dans les COF pour chaque année financière complétée.
B41: Vérifier que le total des dépenses réelles et prévues pour un projet n'excède pas le montant engagé.
B42: Vérifier l'utilisation des nouveaux statuts de projets pour les projets affectés par le COVID-19
B43: Onglet GES | G43: Commentaires
B44: Vérifier que le total des réductions de GES correspond aux données de l'onglet "Indicateurs".
B45: Vérifier que les deux cases de la ligne 20 sont bien remplies.
B46: Vérifier que le coût la tonne et la durée du projet sont bien indiqués pour tous les projets ayant soit un potentiel de réduction ou des réductions réelles (colonnes H et K).
B47: La méthode de calcul du coût la tonne doit respecter les indications en commentaire dans la cellule H23.
B48: Onglet Indicateurs | G48: Commentaires
B49: Vérifier la cohérence des cibles, des résultats et des résultats à comparer avec les cibles. (même unité de mesure, évolution des résultats annuels)
B50: S'il y a lieu, utiliser la colonne "Commentaires sur les résultats" afin de fournir davantage d'informations.
B51: Vérifier que les commentaires à l'intention du BECC qui ne sont pas pour diffusion sont inscrits en bleu.
B52: Vérifier qu'il y a des résultats pour tous les indicateurs. Inscrire un 0 comme résultat pour les indicateurs ne présentant pas de résultats.
B53: Si les résultats ne sont pas disponibles, vous devez inscrire un commentaire dans la colonne prévue à cet effet indiquant à quel moment ils seront disponibles.
B54: Transmettre au BECC pour approbation une annexe 4 (fiche-indicateur) si vous désirez qu'un indicateur soit ajouté.
B55: Vérifier que le tableau "PRÉVISIONS DES RETOMBÉES SUR LES RÉDUCTIONS DES ÉMISSIONS DE GES" est bien rempli si votre action vise la réduction des GES.
B56: Vérifier que le tableau "ADAPTATION AUX EFFETS DES CHANGEMENTS CLIMATIQUES" est bien rempli si votre action vise l'adaptation aux changements climatiques.
B57: Onglet Commentaires | G57: Commentaires
B58: Vérifier que les commentaires de l'exercice précédent s'appliquent toujours. Retirer tous les commentaires qui ne s'appliquent plus.
B59: Inscrire en noir les commentaires nécessaires à afficher lors de la publication des fiches
B60: Onglet Évaluation | G60: Commentaires
B61: Remplir et mettre à jour la liste des livrables. Veuillez transmettre tout livrable attendu au BECC avec votre fiche de suivi.
B62: Veuillez remplir la section Évaluation de l'action. Obligatoire pour la fin du PACC.
A81: Code de couleur | B81: Onglet concerné | C81: no ligne | D81: Description de la problématique | E81: No d'erreur | G81: Commentaires
B82: Description | D82: Les informations "Description, objectif, clientèle, critères d'admissibilité, processus de suivi de l'action, résultats attendus, résultats obtenus dans la dernière année, résultats obtenus, finalité, catégorie" sont manquantes dans l'onglet Description. | E82: 18
B83: détail des projets | D83: Aucun projet n'est mentionné dans la fiche. Cette situation est acceptable seulement si l'action n'est pas encore lancée (statut non démarrée ou en élaboration). | E83: 12
B84: GES | D84: Les informations "Potentiel de réduction des GES, réduction réelle des émissions de GES" sont manquantes dans l'onglet GES. | E84: 18
B85: indicateurs | D85: Aucun indicateur n'est inscrit pour cette action. Acceptable seulement si l'action n'est pas démarrée. | E85: 20

Sheet Modalités de fin du PACC (hidden)
B2: Échéancier de la fin du Plan d'action 2013-2020 sur les changements climatiques
B4: - | C4: 2021-03-31 | E4: Fin du PACC. Vous ne pouvez plus prendre de nouveaux engagements en vertu des actions du PACC.
B5: - | C5: 2021-05-31 | E5: Échéance pour saisir dans SAGIR les engagements (lettre d'octroi suffisante) pris avant le 31 mars.
B6: - | C6: 2021-12-31 | E6: Échéance pour signer les conventions de subventions se rapportant aux engagements saisis à SAGIR.
B7: - | C7: 2022-12-31 | E7: Fin des projets réalisés à l'interne des Partenaires
B8: - | C8: 2025-12-31 | E8: Fin des projets
B9: Lorsque tous les projets liés à une action seront terminés et que tous les résultats liés à l'action seront colligés, l'action sera inscrite comme étant « terminée » et sera retirée du suivi semestriel.
B13: Modalités détaillées de la fin du PACC
B14: (Ces modalités sont annexées à l'entente administrative concernant la mise en œuvre du PACC et concordent avec l'échéancier ci-dessus)
C15: 1. Les enveloppes budgétaires 2013-2020 des actions et sous-actions (Annexe 2 de l’ENTENTE) doivent être respectées en tout temps.
C16: 2. Tous les engagements (c.-à-d. une dépense jugée admissible et autorisée) doivent être pris avant le 31 mars 2021. Après cette date, les engagements pris ne peuvent plus être bonifiés.
C17: 3. Tous les engagements pris avant le 31 mars 2021 (par exemple : lettre d’octroi de subvention signée par vos autorités, contrat, convention ou entente signés, décret ou CT approuvé) doivent être saisis dans SAGIR au plus tard le 31 mai 2021. Une nouvelle version de la « Procédure de comptabilisation des dépenses portées au débit du Fonds d’électrification et de changements climatiques par les ministères et organismes partenaires » sera transmise ultérieurement lors de la fermeture de la fin d’année financière 2020-2021 afin de tenir compte de la fin du PACC.
C18: 4. Les conventions d’aide financière qui ne pourront être signées avant le 31 mars 2021 pourront être reconnues comme engagées seulement si le Partenaire transmet une lettre d’octroi de subvention au bénéficiaire avant cette date :
D19: · La lettre d’octroi devra mentionner le montant total de la subvention avec le détail des versements estimés par année financière et devra préciser qu’elle est conditionnelle à une décision du Conseil des ministres ou du Conseil du trésor lorsqu’applicable. Enfin, la lettre devra préciser que la subvention est conditionnelle à la signature d’une convention de subvention au plus tard le 31 décembre 2021.
C20: 5. Aucun engagement ne pourra s’échelonner au-delà du 31 décembre 2025.
C21: 6. Les frais d’administration (dépenses de rémunération et de fonctionnement) nécessaires au suivi de conventions d’aide financière ou de contrats pourront être imputés au FECC jusqu’au terme des projets ou au plus tard au 31 décembre 2025.
C22: 7. Les suivis se poursuivront tant que les actions ne seront pas terminées.
C23: 8. Aucune dépense pour les projets réalisés à l’interne (projets majoritairement réalisés en régie interne par le personnel du Partenaire) ne pourra être effectuée au-delà du 31 mars 2022.

Sheet Prochain Exercice-Commentaire (hidden)
B2: =Utilitaire!E8 -> Plan d'action 2013-2020 sur les changements climatiques
B4: Commentaires | E4: =Accueil!D65 & " - " &Accueil!D53 -> MTQ - 13.4
E5: ="Action " & Accueil!D58 -> Action en cours
B6: Conseils de rédaction : | D6: Informations en date du : | F6: =Utilitaire!G6 -> 2022-03-31
B7: - Veuillez inscrire ici tout commentaire pour prochain exercice
B10: Onglet de la fiche | C10: Case | D10: Commentaire
B11: Évaluation | C11: M38 | D11: Veuillez répondre si un rapport est prévu
